Workbook

Sheet NOTES
A2: The following changes have been made for the tariff approval model to apply to the 2021 6-month extension period
A4: Issue | B4: Location | C4: Item | D4: Comment
A6: 1 | B6: '6 month formulae' | C6: Price control formulae | D6: Added formulae to apply to the 6-month extension
A8: =A6+1 -> 2 | B8: 'Prop2020TSSComp' | C8: Comparison to previous year indicative prices | D8: Removed worksheet as no indicative prices for 2021 to compare to
A10: =A8+1 -> 3 | B10: 'Indicative prices for 2021' | C10: Indicative prices for next year | D10: Removed worksheet as no indicative prices required for 2021/22 year
A12: =A10+1 -> 4 | B12: 'JS cost audit template' | C12: t-2 jurisdictional scheme costs | D12: Removed worksheet as no true-up to occur in 6-month extension
B13: 'TUOS cost audit template' | C13: t-2 designated pricing proposal charges | D13: Removed worksheet as no true-up to occur in 6-month extension
A15: =A12+1 -> 5 | B15: 'Est2019TransRev' | C15: Calculating t-1 estimates for unders/overs account | D15: Removed worksheet as t-1 estimates not needed in 6-month extension
B16: 'Est2019JSRev' | C16: Calculating t-1 estimates for unders/overs account | D16: Removed worksheet as t-1 estimates not needed in 6-month extension
A18: =A15+1 -> 6 | B18: 'Prop2021DistTar' | C18: Proposed 2021 distribution tariffs | D18: Renamed for relevant year
B19: '2021DistRevCapForm' | C19: 2021 distribution revenue cap | D19: Renamed for relevant year
B20: '2021DistTarRebalCont' | C20: 2021 distribution side constraints | D20: Renamed for relevant year
B21: 'Est2020DistRev' | C21: Estimated 2020 distribution revenue | D21: Renamed for relevant year
B22: 'Prop2021TransTar' | C22: Proposed 2021 transmission tariffs | D22: Renamed for relevant year
B23: '2021TransRevCont' | C23: 2021 transmission revenue cap | D23: Renamed for relevant year
B24: 'Prop2021JSTar' | C24: Proposed 2021 jurisdictional scheme tariffs | D24: Renamed for relevant year
B25: '2021JSRevCont' | C25: 2021 jurisdictional scheme revenue cap | D25: Renamed for relevant year
A27: =A18+1 -> 7 | B27: 'Model update'!A34:N299 | C27: Inputs for control formulae | D27: Removed all 2016–20 inputs for control formulae as not used in 6-month extension
A29: =A27+1 -> 8 | B29: 'Model update'!C5 | C29: Regulatory year | D29: Changed to 2021
A31: =A29+1 -> 9 | B31: 'Model update'!A26:F26 | C31: CPI data | D31: Expanded CPI data to include 2021
A33: =A31+1 -> 10 | B33: 'Model update'!C3 | C33: Business name | D33: Updated for relevant business name
A35: =A33+1 -> 11 | B35: 'Model update'!A34:D36 | C35: X-factor for ANS | D35: Added 2021 X-factor for use in escalating ANS price caps
A37: =A35+1 -> 12 | B37: Metering!H26:I28 | C37: Side constraint factors | D37: Removed side constraint factors not applied for 6-month extension.
B38: Metering!I25 | C38: CPI | D38: Updated CPI reference to 'Model update' sheet
A40: =A37+1 -> 13 | B40: Metering!B29:D39 | C40: Table 2 - Total annual revenue calculations | D40: Removed calculations for factors not applied in 6-month extension
C41: Table 3 - Adjusted annual revenue calculations | D41: Removed calculations for escalations not applied in 6-month extension
A43: =A40+1 -> 14 | B43: Metering!B44:F89 | C43: Table 4 - Metering service recovery arrangements | D43: Removed table as unders/overs not applied in 6-month extension
C44: Table 5 - Metering services unders/overs account | D44: Removed table as unders/overs not applied in 6-month extension
C45: Calculation of estimated metering revenue for t-1 | D45: Removed table as unders/overs not applied in 6-month extension
A47: =A43+1 -> 15 | B47: Metering!E22:E33 | C47: t-1 data for calculating revenue cap | D47: Removed t-1 data as not used for calculating revenue cap for 6-month extension
A49: =A47+1 -> 16 | B49: Metering!D26 | C49: Revenue cap | D49: Formula replaced with revenue directly from 6-month extension PTRM
A51: =A49+1 -> 17 | B51: '2021DistRevCapForm'!B13:C38 | C51: Table 2 - Total annual revenue calculations | D51: Removed calculations for factors not applied in 6-month extension
C52: Table 3 - Adjusted annual revenue calculations | D52: Removed calculations for escalations not applied in 6-month extension
C53: Table 4 - B factor calculations | D53: Removed calculations for factors not applied in 6-month extension
C54: Table 5 - License fee calculations | D54: Removed calculations for factors not applied in 6-month extension
A56: =A51+1 -> 18 | B56: '2021DistRevCapForm'!B42:E77 | C56: Table 6 - DUoS recovery arrangements | D56: Removed table as unders/overs not applied in 6-month extension
C57: Table 7 - DUoS unders and overs account | D57: Removed table as unders/overs not applied in 6-month extension
A59: =A56+1 -> 19 | B59: '2021DistRevCapForm'!H6:H38 | C59: t-1 data for calculating revenue cap | D59: Removed t-1 data as not used for calculating revenue cap for 6-month extension
A61: =A59+1 -> 20 | B61: '2021DistRevCapForm'!C10 | C61: Revenue cap | D61: Formula replaced with revenue directly from 6-month extension PTRM
A63: =A61+1 -> 21 | B63: '2021DistTarRebalCont'!B9:C13 | C63: Side constraint factors | D63: Removed side constraint factors not applied for 6-month extension.
B64: '2021DistTarRebalCont'!C8 | C64: CPI | D64: Updated CPI reference to 'Model update' sheet
A66: =A63+1 -> 22 | B66: Est2020DistRev!D6:P54 | C66: t-1 prices | D66: Updated t-1 prices for approved 2020 prices
A68: =A66+1 -> 23 | B68: '2021TransRevCont'!B13:C17 | C68: Table 2 - Total DPPC related payments for year t | D68: Removed calculations for factors not applied in 6-month extension
B69: '2021TransRevCont'!C10 | C69: Revenue cap | D69: Updated formula to source total costs from Table 3
A71: =A68+1 -> 24 | B71: '2021TransRevCont'!B29:E66 | C71: Table 4 - DPPC recovery arrangements | D71: Removed table as unders/overs not applied in 6-month extension
C72: Table 5 - DPPC unders and overs account | D72: Removed table as unders/overs not applied in 6-month extension
A74: =A71+1 -> 25 | B74: '2021JSRevCont'!B13:C17 | C74: Table 2 - Total JSA related payments for year t | D74: Removed calculations for factors not applied in 6-month extension
B75: '2021JSRevCont'!C10 | C75: Revenue cap | D75: Updated formula to source total costs from Table 3
A77: =A74+1 -> 26 | B77: '2021JSRevCont'!B27:E62 | C77: Table 4 - JSA recovery arrangements | D77: Removed table as unders/overs not applied in 6-month extension
C78: Table 5 - JSA unders and overs account | D78: Removed table as unders/overs not applied in 6-month extension
A80: =A77+1 -> 27 | B80: 'Meteing exit fees' | C80: Worksheet | D80: Added worksheet for calculating ACS price caps
B81: 'Public lighting' | C81: Worksheet | D81: Added worksheet for calculating ACS price caps
B82: 'ANS' | C82: Worksheet | D82: Added worksheet for calculating ACS price caps

Sheet Formulae
B2: DUoS
B3: Figure 14.1 Revenue cap formulae
B4: (1) | H4: i=1,..,n and j=1,..,m and t=1,..,5
B5: (2) | H5: t = 1,2,…,5
B6: (3) | H6: t = 1
B7: (4) | H7: t = 2,…,5
B9: where;
C10: is the total annual revenue in year t.
D11: is the price of component 'j' of tariff 'i' in year t.
D12: is the forecast quantity of component 'j' of tariff 'i' in year t.
C13: is the adjusted annual smoothed revenue requirement for year t.
D14: is the annual adjustment f–factor scheme amount in year t. This amount will be calculated as per the method set out in the relevant f–factor scheme.
D15: is the sum of:
B16: · the final carryover amount from the application of the DMIS from the 2011–15 regulatory control period. This amount will be calculated using the method set out in the DMIS and will be deducted from/added to allowed revenue in the 2017 pricing proposal.
D17: is the sum of:
B18: · the recovery of license fee charges by the Victorian Essential Services Commission indexed by one and a half years of interest, calculated using the following method:
B20: where:
C21: are the licence fees paid by DNSP to the Victorian Essential Services Commission in the financial year ending in June of regulatory year t–1,
C22: is the approved nominal weighted average cost of capital (WACC) for the relevant regulatory year using the following method:
B25: · any under or over recovery of actual revenue collected through DUoS charges in regulatory year t–2 as calculated using the method in appendix A,
B26: · the AER approved pass through amounts (positive or negative) with respect to regulatory year t.
C27: is the annual smoothed revenue requirement as stated in the Post Tax Revenue Model (PTRM) for year t (when year t is the first year of the 2016–20 regulatory control period).[43]
C28: is the s‑factor determined in accordance with the service target performance incentive scheme (STPIS) for regulatory year t.[44]
C29: is the annual percentage change in the ABS CPI All Groups, Weighted Average of Eight Capital Cities[45] from the June quarter in year t–2 to the June quarter in year t–1, calculated using the following method :
B30: The ABS CPI All Groups, Weighted Average of Eight Capital Cities for the June quarter in regulatory year t–1
B31: divided by
B32: The ABS CPI All Groups, Weighted Average of Eight Capital Cities for the June quarter in regulatory year t–2
B33: minus one.
B34: For example, for the 2017 regulatory year, t–2 is June quarter 2015 and t–1 is June quarter 2016 and for the 2018 regulatory year, t–2 is June quarter 2016 and t–1 is June quarter 2017 and so on.
C35: is the X factor for each year of the 2016–20 regulatory control period as determined in the PTRM, and annually revised for the return on debt update in accordance with the formula specified in attachment 3—rate of return—calculated for the relevant year.
B38: [43] | C38: Our final F&A stated that if necessary an adjustment for inflation may be required to the annual smoothed revenue requirement for year t. However, as the annual smoothed revenue requirement for year t as stated in our preliminary decision PTRM is in nominal dollars there is no need to adjust it for inflation. This approach is consistent with past regulatory practice.
B39: [44] | C39: For the first two regulatory years of the 2016–20 regulatory control period, the value of St is to be adjusted to account for the change in revenue requirements between the regulatory control periods, as explained in attachment 11. In the formulas in the STPIS, the AR(t+1) is equivalent to ARt in this formula. Calculations of the S factor adjustment are to be made accordingly.
B40: [45] | C40: If the ABS does not or ceases to publish the index, then CPI will mean an index which the AER considers is the best available alternative index
B44: Figure 14.2 Side constraints [46]
C50: where each tariff class has "n" tariffs, with each up to "m" components, and where:
D51: is the proposed price for component ‘j’ of tariff 'i' for year t.
C52: is the price charged for component ‘j’ of tariff 'i' in year t–1.
D53: is the forecast quantity of component ‘j’ of tariff 'i' in year t.
C54: is the annual percentage change in the ABS CPI All Groups, Weighted Average of Eight Capital Cities[4] from the June quarter in year t–2 to the June quarter in year t–1, calculated using the following method :
C55: The ABS CPI All Groups, Weighted Average of Eight Capital Cities[47] for the June quarter in regulatory year t–1
C56: divided by
C57: The ABS CPI All Groups, Weighted Average of Eight Capital Cities for the June quarter in regulatory year t–2
C58: minus one.
B59: For example, for the 2017 regulatory year, t–2 is June quarter 2015 and t–1 is June quarter 2016 and for the 2018 regulatory year, t–2 is June quarter 2016 and t–1 is June quarter 2017 and so on.
D60: is the X factor for each year of the 2016–20 regulatory control period as determined in the PTRM, and annually revised for the return on debt update in accordance with the formula specified in attachment 3—rate of return—calculated for the relevant year. If X>0, then X will be set equal to zero for the purposes of the side constraint formula.
C61: is the s‑factor determined in accordance with the STPIS for regulatory year t.[5]
D62: is the annual percentage change from the f–factor scheme amount in year t. This amount will be calculated as per the method set out in attachment 19—f–factor scheme.
D63: is the annual percentage change from the final carryover amount from the application of the DMIS from the 2011–15 regulatory control period. This amount will be calculated using the method set out in the DMIS and will be deducted from/added to allowed revenue in the 2017 pricing proposal.
D64: is annual percentage change from the sum of:
B65: · the recovery of license fee charges by the Victorian Essential Services Commission indexed by one and a half years of interest, calculated using the following method:
B67: where:
B68: are the licence fees paid byDNSP to the Victorian Essential Services Commission in the financial year ending in June of regulatory year t–1,
C69: is the approved nominal weighted average cost of capital (WACC) for the relevant regulatory year using the following method:
B72: where the
B73: is as set out in our final decision PTRM and updated annually
B74: · the AER approved pass through amounts (positive or negative) with respect to regulatory year t.
B75: With the exception of the CPI, X factor and S factor, the percentage for each of the other factors above can be calculated by dividing the incremental revenues (as used in the total annual revenue formula) for each factor by the expected revenues for regulatory year t–1 (based on the prices in year t–1 multiplied by the forecast quantities for year t).
B77: [46] | C77: All parameters are in nominal terms unless otherwise specified.
B78: [47] | C78: If the ABS does not or ceases to publish the index, then CPI will mean an index which the AER considers is the best available alternative index.
H83: Table 14.1 | I83: Example calculation of DUoS unders and overs account ($'000, nominal)
I84: Year t–2 | J84: Year t–1 | K84: Year t
I85: (actual) | J85: (estimate) | K85: (forecast)
H86: (A) Revenue from DUoS charges | I86: 46 779 | J86: 40 269 | K86: 39 510
H87: (B) Less TAR for regulatory year = | I87: 43 039 | J87: 41 427 | K87: 44 429
H88: + Adjusted annual smoothed revenues (AARt) | I88: 40 189 | J88: 41 393 | K88: 44 393
H89: + f–factor scheme amount (It) | I89: –12 | J89: 10 | K89: 14
H90: + DMIS carryover amount (Tt) | I90: 1013 | J90: 0 | K90: 0
H91: + Annual adjustments (Bt)a = | I91: 1849 | J91: 24 | K91: 22
H92: + License fee recovery | I92: 25 | J92: 24 | K92: 22
H93: + Approved pass through amounts | I93: 1824 | J93: 0 | K93: 0
H95: (A minus B) Under/over recovery of revenue for regulatory year | I95: 3740 | J95: –1158 | K95: –4919b
H97: DUoS unders and overs account
H98: Nominal WACC (per cent) | I98: 0.05 | J98: 0.055 | K98: 0.06
H99: Opening balance | I99: 1737 | J99: 5656c | K99: 4778
H100: Interest on opening balance | I100: 87 | J100: 311 | K100: 287
H101: Under/over recovery of revenue for regulatory year | I101: 3740 | J101: –1158 | K101: –4919b
H102: Interest on under/over recovery for regulatory year | I102: 92 | J102: –31 | K102: –145
H103: Closing balance | I103: 5656 | J103: 4778 | K103: 0d
G104: Notes: | H104: (a) Bt parameter calculations in the DUoS unders and overs account exclude approved DUoS revenue under/over recovery for regulatory year.
H105: (b) Approved DUoS revenue under/over recovery for regulatory year t.
H106: (c) Opening balance is the previous year's closing balance.
H107: (d) The DNSP is expected to achieve a closing balance as close to zero as practicable in its DUoS unders and overs account in each forecast year in its annual pricing proposals in the 2016–20 regulatory control period.
H113: Table 14.2 | I113: Example calculation of designated pricing proposal charges unders and overs account ($'000, nominal)
I114: Year t–2 | J114: Year t–1 | K114: Year t
I115: (actual) | J115: (estimate) | K115: (forecast)
H116: (A) Revenue from designated pricing proposal charges (DPPC) | I116: 40 077 | J116: 34 944 | K116: 36 609
H117: (B) Less DPPC related payments for regulatory year = | I117: 34 365 | J117: 38 734 | K117: 39 200
H118: + DPPC charges to be paid to TNSP | I118: 33 672 | J118: 37 933 | K118: 38 000
H119: + Avoided TUoS/DPPC payments | I119: 572 | J119: 734 | K119: 800
H120: + Inter–distributor payments | I120: 121 | J120: 67 | K120: 400
H122: (A minus B) Under/over recovery of revenue for regulatory year | I122: 5712 | J122: –3790 | K122: –2540a
H124: DPPC unders and overs account
H125: Nominal WACC (per cent) | I125: 0.05 | J125: 0.055 | K125: 0.06
H126: Opening balance | I126: 167 | J126: 6028b | K126: 2467
H127: Interest on opening balance | I127: 8 | J127: 332 | K127: 148
H128: Under/over recovery of revenue for regulatory year | I128: 5712 | J128: –3790 | K128: –2540a
H129: Interest on under/over recovery for regulatory year | I129: 141 | J129: –103 | K129: –75
H130: Closing balance | I130: 6028 | J130: 2467 | K130: 0c
G131: Notes: | H131: (a) Approved DPPC revenue under/over recovery for regulatory year t.
H132: (b) Opening balance is the previous year's closing balance.
H133: (c)The DNSP is expected to achieve a closing balance as close to zero as practicable in its DPPC unders and overs account in each forecast year in its annual pricing proposals in the 2016–20 regulatory control period.
H139: Table 14.3 Example calculation of jurisdictional scheme amounts unders and overs account ($'000, nominal)
I140: Year t–2 | J140: Year t–1 | K140: Year t
I141: (actual) | J141: (estimate) | K141: (forecast)
H142: (A) Revenue from jurisdictional schemes | I142: 19 777 | J142: 23 121 | K142: 26 965
H143: (B) Less jurisdictional scheme payments for regulatory year = | I143: 20 272 | J143: 20 959 | K143: 28 641
H144: + Jurisdictional scheme 1 payments | I144: 14 159 | J144: 13 954 | K144: 13 961
H145: + Jurisdictional scheme 2 payments | I145: 6113 | J145: 7005 | K145: 14 680
H147: (A minus B) Under/over recovery of revenue for regulatory year | I147: –495 | J147: 2162 | K147: –1676a
H149: Jurisdictional scheme amount unders and overs account
H150: Nominal WACC (per cent) | I150: 0.05 | J150: 0.055 | K150: 0.06
H151: Opening balance | I151: –52 | J151: –562b | K151: 1628
H152: Interest on opening balance | I152: –3 | J152: –31 | K152: 98
H153: Under/over recovery of revenue for regulatory year | I153: –495 | J153: 2162 | K153: –1676a
H154: Interest on under/over recovery for regulatory year | I154: –12 | J154: 59 | K154: –50
H155: Closing balance | I155: –562 | J155: 1628 | K155: 0c
G156: Notes: | H156: (a) Approved jurisdictional scheme amounts revenue under/over recovery for regulatory year t.
H157: (b) Opening balance is the previous year's closing balance.
H158: (c) The DNSP is expected to achieve a closing balance as close to zero as practicable in its jurisdictional scheme amount unders and overs account in each forecast year in its annual pricing proposals in the 2016–20 regulatory control period.
B166: Metering
B167: Figure 16.3 | C167: Annual metering charges revenue cap formula
A168: (1) | H168: i=1,..,n and j=1,..,m and t=1,..,5
A170: (2) | H170: t = 1,2,…,5
A172: (3) | H172: t = 1,2,…,5
B175: where;
C176: is the total annual revenue for annual metering charges in year t.
E177: is the price of component 'j' of metering service 'i' in year t.
E178: is the forecast quantity of component 'j' of metering service 'i' in year t.
D179: is the annual revenue requirement for year t. When year t is the first year of the 2016–20 regulatory control period,
D180: is the annual revenue requirement in the annual metering charges Post Tax Revenue Model (PTRM) for year t.
E181: is equal to zero for all years except 2017 and is a once off adjustment to 2017 charges for the unders and overs recoveries relating to Advanced Metering Infrastructure actual revenues and actual costs incurred in 2014 and 2015.
E182: is the sum of annual adjustment factors in year t as calculated in the unders and overs account in appendix C.
D184: is the annual revenue requirement for year t–1.
C185: is the annual percentage change in the ABS CPI All Groups, Weighted Average of Eight Capital Cities[39] from the June quarter in year t–2 to the June quarter in year t–1, calculated using the following method:
B186: The ABS CPI All Groups, Weighted Average of Eight Capital Cities for the June quarter in regulatory year t–1
B187: divided by
B188: The ABS CPI All Groups, Weighted Average of Eight Capital Cities for the June quarter in regulatory year t–2
B189: minus one.
B190: For example, for the 2017 regulatory year, t–2 is June quarter 2015 and t–1 is June quarter 2016 and for the 2018 regulatory year, t–2 is June quarter 2016 and t–1 is June quarter 2017 and so on.
D191: is the X factor for each year of the 2016–20 regulatory control period as determined in the annual metering charges PTRM.
B194: [39] | C194: If the ABS does not or ceases to publish the index, then CPI will mean an index which the AER considers is the best available alternative index
B199: Figure 16.4 Side constraints
B201: where:
E202: is the price of annual metering charges service 'i' in year t.
D203: is the price of annual metering charges service 'i' in year t–1.
C204: is the annual percentage change in the ABS CPI All Groups, Weighted Average of Eight Capital Cities from the June quarter in year t–2 to the June quarter in year t–1, calculated using the following method:
B205: The ABS CPI All Groups, Weighted Average of Eight Capital Cities[40] for the June quarter in regulatory year t–1
B206: divided by
B207: The ABS CPI All Groups, Weighted Average of Eight Capital Cities for the June quarter in regulatory year t–2
B208: minus one.
B209: For example, for the 2017 regulatory year, t–2 is June quarter 2015 and t–1 is June quarter 2016 and for the 2018 regulatory year, t–2 is June quarter 2016 and t–1 is June quarter 2017 and so on.
D210: is the X factor for each year of the 2016–20 regulatory control period as determined in the annual metering charges PTRM.
E211: is the annual percentage change for the unders and overs recoveries relating to Advanced Metering Infrastructure actual revenues and actual costs incurred in 2014 and 2015. It is equal to zero for all years except 2017 and is a once off adjustment to 2017 charges.
E212: is the annual percentage change from the sum of annual adjustment factors in year t as calculated in the unders and overs account in appendix C.
B213: With the exception of the CPI and the X factor, the percentage for each of the other factors above can be calculated by dividing the incremental revenues (as used in the total annual revenue formula) for each factor by the expected revenues for regulatory year t–1 (based on the prices in year t–1 multiplied by the forecast quantities for year t).
B215: [40] | C215: If the ABS does not or ceases to publish the index, then CPI will mean an index which the AER considers is the best available alternative index.
H220: Table 16.xx | I220: Example calculation of annual metering charges unders and overs account ($'000, nominal)
I221: Year t–2 | J221: Year t–1 | K221: Year t
I222: (actual) | J222: (estimate) | K222: (forecast)
H223: (A) Revenue from annual metering charges | I223: 8 449 | J223: 7 389 | K223: 6 460
H224: (B) Less TARM for regulatory year = | I224: 7 366 | J224: 7 422 | K224: 7 573
H225: + Annual revenue requirement (ARt) | I225: 7 349 | J225: 7 412 | K225: 7 559
H226: + T factor (Tt) – true‑ups relating to the AMI–Order in Council | I226: 17 | J226: 10 | K226: 14
H228: (A minus B) Under/over recovery of revenue for regulatory year | I228: 1 083 | J228: –33 | K228: –1 113a
H230: Annual metering charges unders and overs account
H231: Nominal WACC (per cent) | I231: 0.05 | J231: 0.055 | K231: 0.06
H232: Opening balance | I232: –50 | J232: 1 057b | K232: 1 081
H233: Interest on opening balance | I233: –3 | J233: 58 | K233: 65
H234: Under/over recovery of revenue for regulatory year | I234: 1 083 | J234: –33 | K234: –1 113b
H235: Interest on under/over recovery for regulatory year | I235: 27 | J235: –1 | K235: –33
H236: Closing balance | I236: 1 057 | J236: 1 081 | K236: 0c
G237: Notes: | H237: (a) Approved annual metering charges revenue under/over recovery for regulatory year t. This is the Bt parameter in the annual metering charges revenue cap formula.
H238: (b) Opening balance is the previous year's closing balance.
H239: (c) The DNSP is expected to achieve a closing balance as close to zero as practicable in its annual metering charges unders and overs account in each forecast year in its annual pricing proposals in the 2016–20 regulatory control period.

Sheet 6 month formulae
H4: The revenue cap to be applies to standard control services will be as set in the amended PTRM, with no other factors applied.*
H10: The revenue cap to be applied to revenue-capped type 5 and 6 (inc. smart metering) services will be as set in the amended metering PTRM, with no other factors applied.
H16: The side constraint mechanism to apply to standard control services and metering services will be just CPI and the 2% allowance as there is no X-factor to apply, and no other adjustments need to be discounted from the permissable percentage.*
H25: The price cap to be applied to type 7 metering services will be escalated for CPI
H29: The price cap to apply to ancillary network services will be escalated for CPI and x-factor.
H30: X-factor to apply will reflect updated labour escalation forecast for the extended period in line with the calculation of the 2021–26 draft decision, being half of the forecast yearly change in the State utilities sector real wages for Vic in 21/22.
H33: The price cap to apply to metering exit fees and public lighting services will not be escalated.
H39: CPI definition to remain as per the 2015–20 determination.

Sheet Model update
A3: Tariff Approval Template for | C3: Jemena
A5: calendar year commencing | C5: 2021
A7: t | B7: = | C7: =C5 -> 2021
A8: t-1 | B8: = | C8: =C7-1 -> 2020
A9: t-2 | B9: = | C9: 2019
A10: t-3 | B10: = | C10: 2018
A11: t-4 | B11: = | C11: 2017
A13: Please fill in yellow highlighted cells where appropriate
A15: CPI | B15: The ABS changed the index reference base in September 2012 from 1989-90 to 2011-12.
A16: CPI Index Sept 2011 | C16: 99.8
A17: CPI Index Sept 2012 | C17: 101.8 | E17: CPI 2013 | F17: =C17/C16-1 -> 0.02004008016
A18: CPI Index Sept 2013 | C18: 104 | E18: CPI 2014 | F18: =C18/C17-1 -> 0.02161100196
A19: CPI Index Sept 2014 | C19: 106.4 | E19: CPI 2015 | F19: =C19/C18-1 -> 0.02307692308
A20: CPI Index Sept 2015 | C20: 108 | E20: CPI 2016 | F20: =C20/C19-1 -> 0.01503759398
A21: CPI Index June 2015 | C21: 107.5
A22: CPI Index June 2016 | C22: 108.6 | E22: CPI 2017 | F22: =IF(OR(C21="",C22=""),0,C22/C21-1) -> 0.01023255814
A23: CPI Index June 2017 | C23: 110.7 | E23: CPI 2018 | F23: =IF(OR(C22="",C23=""),0,C23/C22-1) -> 0.01933701657
A24: CPI Index June 2018 | C24: 113 | E24: CPI 2019 | F24: 0.02077687444
A25: CPI Index June 2019 | C25: 114.8 | E25: CPI 2020 | F25: 0.01592920354
A26: CPI Index June 2020 | C26: 114.4 | E26: CPI 2021 | F26: =IF(OR(C25="",C26=""),0,C26/C25-1) -> -0.003484320557
A28: ="CPI " &$C$9 -> CPI 2019 | C28: =VLOOKUP(A28,E$17:F$25,2,FALSE) -> 0.02077687444 | D28: (t-2)
A29: ="CPI " &$C$8 -> CPI 2020 | C29: =VLOOKUP(A29,E$17:F$25,2,FALSE) -> 0.01592920354 | D29: (t-1)
A30: ="CPI " &$C$5 -> CPI 2021 | C30: =VLOOKUP(A30,E$17:F$26,2,FALSE) -> -0.003484320557 | D30: (t)
A35: 2021 X-factor for ANS | C35: -0.001192676717

Sheet Metering
B1: ="Tariff Approval - "&'Model update'!C3 -> Tariff Approval - Jemena
B3: ="PROPOSED "&'Model update'!$C$5&" METERING TARIFFS AND REVENUE" -> PROPOSED 2021 METERING TARIFFS AND REVENUE
D5: ="Proposed Metering Tariffs P(t) for " &'Model update'!$C$5 -> Proposed Metering Tariffs P(t) for 2021 | E5: ="Current Metering Tariffs P(t-1) for" &'Model update'!$C$8 -> Current Metering Tariffs P(t-1) for2020 | F5: ="Forecast Quantities (Qt) for "&'Model update'!$C$5 -> Forecast Quantities (Qt) for 2021 | H5: ="Forecast Revenue (Pt "&'Model update'!$C$5&")*(Qt " &'Model update'!$C$5&")" -> Forecast Revenue (Pt 2021)*(Qt 2021) | I5: ="Revenue (Pt-1 "&'Model update'!$C$8&")*(Qt " &'Model update'!$C$5&")" -> Revenue (Pt-1 2020)*(Qt 2021) | K5: Movement | L5: Side Constraint
B6: Proposed tariff | C6: Existing tariff | D6: PropTar $/Cust/year | E6: ExistTar $/Cust/year | F6: FcastVol Cust # | H6: PropRev Fixed | I6: ExistRev Fixed
B8: Single phase single element meter | C8: Single phase single element meter | D8: 66.28 | E8: 79.6380048 | F8: 138549.0533 | H8: =D8*F8 -> 9183031.251 | I8: =E8*F8 -> 11033770.17 | K8: =IFERROR(H8/I8,"") -> 0.8322659535 | L8: =IF(B8="","",IF(K8<$I$30,"COMPLIANT","BREACHED")) -> COMPLIANT
B9: Single phase single element meter with contactor | C9: Single phase single element meter with contactor | D9: 66.28 | E9: 79.552576 | F9: 18322.51688 | H9: 1214416.419 | I9: 1457603.417 | K9: =IFERROR(H9/I9,"") -> 0.8331596955 | L9: COMPLIANT
B10: Three phase direct connected meter | C10: Three phase direct connected meter | D10: 81.14 | E10: 96.60071 | F10: 23268.64202 | H10: 1888017.613 | I10: 2247767.34 | K10: 0.8399524186 | L10: COMPLIANT
B11: Three phase Current transformer connected meter | C11: Three phase Current transformer connected meter | D11: 90.1 | E11: 107.671825 | F11: 935.3076051 | H11: 84271.21522 | I11: 100706.2768 | K11: 0.8368020139 | L11: COMPLIANT
H12: 0 | I12: 0
H13: 0 | I13: 0
H14: 0 | I14: 0
H15: 0 | I15: 0
H16: 0 | I16: 0
H17: =SUM(H7:H16) -> 12369736.5 | I17: =SUM(I7:I16) -> 14839847.2
B22: Year (t) | D22: ='Model update'!C5 -> 2021
B24: Table 1- Compliance with AER Final Determination Total Metering Annual Revenue | H24: Metering tariff rebalancing control
B25: Revenue from Metering charges for year t | D25: =H17 -> 12369736.5 | H25: ="CPI "&'Model update'!$C$5 -> CPI 2021 | I25: ='Model update'!C30 -> -0.003484320557
B26: Total Annual Metering Revenue for year t | D26: 12369741.24
D27: =IF(D25="","",IF(D26>=D25,"METERING REVENUE CAP FORMULA COMPLIANT","METERING REVENUE CAP FORMULA BREACHED")) -> METERING REVENUE CAP FORMULA COMPLIANT
I30: =(1+I25)*(1-I26)*(1+0.02)+SUM(I27:I28) -> 1.016445993

Sheet Unmetered supply
B1: ="Tariff Approval - " &'[1]Model update'!C3 -> Tariff Approval - AusNet Services
B3: ="PROPOSED "&'[1]Model update'!C5&" UNMETERED SUPPLY TARIFF" -> PROPOSED 2021 UNMETERED SUPPLY TARIFF
C4: ="P t-1 ("&'[1]Model update'!$C$8&")" -> P t-1 (2020) | G4: ="Pt ("&'[1]Model update'!$C$7&")" -> Pt (2021) | K4: ="Qt-2 ("&'[1]Model update'!$C$9&")" -> Qt-2 (2019) | O4: P t-1 * Qt-2 | T4: Pt * Qt-2
C5: ($) per NMI | D5: ($) per meter | E5: ($) per light | G5: ($) per NMI | H5: ($) per meter | I5: ($) per light | K5: NMIs | L5: Meters | M5: Lights | O5: $ Comp1 | P5: $ Comp2 | Q5: $ Comp3 | R5: Total $ | T5: NMIs | U5: Meters | V5: Lights
B6: Proposed tariff | C6: ExistTarComp1 | D6: ExistTarComp2 | E6: ExistTarComp3 | G6: PropTarComp1 | H6: PropTarComp2 | I6: PropTarComp3 | K6: ActVolComp1 | L6: ActVolComp2 | M6: ActVolComp3 | O6: $Comp1 | P6: ExistRevComp2 | Q6: ExistRevComp3 | R6: Exist Rev Total | T6: $PropRevComp1 | U6: $PropRevComp2 | V6: $ PropRevComp3 | W6: Total $
B7: metering data services - unmetered supplies | D7: 0 | E7: 0.66 | G7: =ROUNDDOWN(C7*(1+$C$14),1) -> 0 | I7: =ROUNDDOWN(E7*(1+$C$14),4) -> 0.6577 | L7: 0 | M7: 75871 | O7: =IF($B7="","",C7*K7) -> 0 | P7: =IF($B7="","",D7*L7) -> 0 | Q7: =IF($B7="","",E7*M7) -> 50074.86 | R7: =SUM(O7:Q7) -> 50074.86 | T7: =IF($B7="","",G7*K7) -> 0 | U7: =IF($B7="","",H7*L7) -> 0 | V7: =IF($B7="","",I7*M7) -> 49900.3567 | W7: =SUM(T7:V7) -> 49900.3567
B10: UNMETERED SUPPLY TARIFF CONTROL
B12: CPI
B14: ="CPI "&'[1]Model update'!C5 -> CPI 2021 | C14: ='[1]Model update'!C30 -> -0.003484320557

Sheet Metering exit fees
B1: ="Tariff Approval - "&'Model update'!C3 -> Tariff Approval - Jemena
B3: Proposed metering exit fees
B5: Metering type | C5: 2020 price cap | D5: 2021 price cap | E5: Proposed 2021 price
B6: Single Phase | C6: 535.305163 | D6: =IF(C6="","",C6) -> 535.305163 | E6: =D6 -> 535.305163 | F6: =IF(E6="","",IF(E6<=D6,"COMPLIANT","BREACHED")) -> COMPLIANT
B7: Single Phase, Two Element | C7: 537.6458773 | D7: =IF(C7="","",C7) -> 537.6458773 | E7: =D7 -> 537.6458773 | F7: =IF(E7="","",IF(E7<=D7,"COMPLIANT","BREACHED")) -> COMPLIANT
B8: Three Phase DC | C8: 565.0951311 | D8: 565.0951311 | E8: 565.0951311 | F8: COMPLIANT
B9: Three Phase CT | C9: 566.1730308 | D9: 566.1730308 | E9: 566.1730308 | F9: COMPLIANT

Sheet Public lighting
B1: ="Tariff Approval - "&'Model update'!C3 -> Tariff Approval - Jemena
B3: Proposed public lighting prices
B5: Public lighting tariff | C5: 2020 price cap | D5: 2021 price cap | E5: Proposed 2021 price
B6: Existing Lights | D6: =IF(C6="","",C6/2) ->  | E6: =D6 ->  | F6: =IF(E6="","",IF(E6<=D6,"COMPLIANT","BREACHED")) -> 
B7: Mercury Vapour 80 watt | C7: 55.40389986 | D7: =IF(C7="","",C7/2) -> 27.70194993 | E7: =D7 -> 27.70194993 | F7: =IF(E7="","",IF(E7<=D7,"COMPLIANT","BREACHED")) -> COMPLIANT
B8: Sodium High Pressure 150 watt | C8: 102.0694564 | D8: 51.03472818 | E8: 51.03472818 | F8: COMPLIANT
B9: Sodium High Pressure 250 watt | C9: 103.30985 | D9: 51.65492498 | E9: 51.65492498 | F9: COMPLIANT
B10: 55W Ind | C10: 69.25487482 | D10: 34.62743741 | E10: 34.62743741 | F10: COMPLIANT
B11: Fluorescent 20 watt | C11: 69.25487482 | D11: 34.62743741 | E11: 34.62743741 | F11: COMPLIANT
B12: Fluorescent 40 watt | C12: 69.25487482 | D12: 34.62743741 | E12: 34.62743741 | F12: COMPLIANT
B13: Fluorescent 80 watt | C13: 69.25487482 | D13: 34.62743741 | E13: 34.62743741 | F13: COMPLIANT
B14: Mercury Vapour 50 watt | C14: 69.25487482 | D14: 34.62743741 | E14: 34.62743741 | F14: COMPLIANT
B15: Mercury Vapour 125 watt | C15: 81.44373279 | D15: 40.7218664 | E15: 40.7218664 | F15: COMPLIANT
B16: Mercury Vapour 250 watt | C16: 99.17745595 | D16: 49.58872798 | E16: 49.58872798 | F16: COMPLIANT
B17: Mercury Vapour 400 watt | C17: 111.5746379 | D17: 55.78731897 | E17: 55.78731897 | F17: COMPLIANT
B18: Sodium High Pressure 50 watt | C18: 127.5868205 | D18: 63.79341023 | E18: 63.79341023 | F18: COMPLIANT
B19: Sodium Low Pressure 90 watt | C19: 108.1936238 | D19: 54.09681188 | E19: 54.09681188 | F19: COMPLIANT
B20: Sodium High Pressure 100 watt | C20: 139.8351552 | D20: 69.91757761 | E20: 69.91757761 | F20: COMPLIANT
B21: Sodium High Pressure 400 watt | C21: 137.4021004 | D21: 68.70105022 | E21: 68.70105022 | F21: COMPLIANT
B22: Metal Halide 70 watt | C22: 142.3880226 | D22: 71.19401132 | E22: 71.19401132 | F22: COMPLIANT
B23: Metal Halide 150 watt | C23: 226.5941931 | D23: 113.2970966 | E23: 113.2970966 | F23: COMPLIANT
B24: Metal Halide 250 watt | C24: 222.1161774 | D24: 111.0580887 | E24: 111.0580887 | F24: COMPLIANT
B25: Incandescent 100 watt | C25: 86.43008378 | D25: 43.21504189 | E25: 43.21504189 | F25: COMPLIANT
B26: Incandescent 150 watt | C26: 108.0376047 | D26: 54.01880236 | E26: 54.01880236 | F26: COMPLIANT
B27: Sodium High Pressure 250 watt (24 hrs) | C27: 161.1633659 | D27: 80.58168296 | E27: 80.58168296 | F27: COMPLIANT
B28: Metal Halide 100 watt | C28: 226.5941931 | D28: 113.2970966 | E28: 113.2970966 | F28: COMPLIANT
B30: Energy Efficient Lights
B31: T5 2X14W | C31: 38.35484104 | D31: 19.17742052 | E31: 19.17742052 | F31: COMPLIANT
B32: T5 (2x24W) | C32: 43.19698044 | D32: 21.59849022 | E32: 21.59849022 | F32: COMPLIANT
B33: LED 18W | C33: 25.13494958 | D33: 12.56747479 | E33: 12.56747479 | F33: COMPLIANT
B34: Compact Fluoro 32W | C34: 33.08246466 | D34: 16.54123233 | E34: 16.54123233 | F34: COMPLIANT
B35: Compact Fluoro 42W | C35: 37.30995832 | D35: 18.65497916 | E35: 18.65497916 | F35: COMPLIANT

Sheet ANS
B1: ="Tariff Approval - "&'Model update'!C3 -> Tariff Approval - Jemena
B3: Proposed ancillary network service prices
B5: Ancillary network service | C5: 2020 price cap | D5: 2021 price cap | E5: Proposed 2021 price | I5: Escalators
B6: NORMAL HOURS | D6: =IF(C6="","",C6*(1+J6)*(1-J7)) ->  | E6: =D6 ->  | F6: =IF(E6="","",IF(E6<=D6,"COMPLIANT","BREACHED")) ->  | I6: CPI | J6: ='Model update'!C30 -> -0.003484320557
B7: Alternative Control Services - New Connection Services | D7: =IF(C7="","",C7*(1+J7)*(1-J8)) ->  | E7: =D7 ->  | F7: =IF(E7="","",IF(E7<=D7,"COMPLIANT","BREACHED")) ->  | I7: X-factor | J7: ='Model update'!C35 -> -0.001192676717
B8: Connection - single phase service connection to new premises - JEN is the responsible person for metering | C8: 631.01 | D8: =IF(C8="","",C8*(1+$J$6)*(1-$J$7)) -> 629.5613276 | E8: =D8 -> 629.5613276 | F8: COMPLIANT
B9: Connection - three phase service connection to new premises (less than 100amps) - JEN is the responsible person for metering | C9: 817.64 | D9: =IF(C9="","",C9*(1+$J$6)*(1-$J$7)) -> 815.7628625 | E9: =D9 -> 815.7628625 | F9: COMPLIANT
B10: Connection - single phase service connection to new premises - JEN is not the responsible person for metering | C10: 631.01 | D10: 629.5613276 | E10: 629.5613276 | F10: COMPLIANT
B11: Connection - three phase service connection to new premises (less than 100amps) - JEN is not the responsible person for metering | C11: 817.64 | D11: 815.7628625 | E11: 815.7628625 | F11: COMPLIANT
B12: Alternative Control Services - Network Services | D12: =IF(C12="","",C12*(1+$J$8)*(1-$J$9)) -> 
B13: Manual energisation of new premises | C13: 38.54 | D13: =IF(C13="","",C13*(1+$J$6)*(1-$J$7)) -> 38.45151989 | E13: 38.45151989 | F13: =IF(E13="","",IF(E13<=D13,"COMPLIANT","BREACHED")) -> COMPLIANT
B14: Manual re-energisation existing premises | C14: 38.54 | D14: =IF(C14="","",C14*(1+$J$6)*(1-$J$7)) -> 38.45151989 | E14: 38.45151989 | F14: COMPLIANT
B15: Manual de-energisation existing premises | C15: 59.46 | D15: 59.32349176 | E15: 59.32349176 | F15: COMPLIANT
B16: Temporary single-phase connection | C16: 614.59 | D16: 613.1790246 | E16: 613.1790246 | F16: COMPLIANT
B17: Temporary three-phase connection | C17: 786.48 | D17: 784.6743996 | E17: 784.6743996 | F17: COMPLIANT
B18: Reconnection after temporary disconnection for non-payment | C18: 72.93 | D18: =IF(C18="","",C18*(1+$J$6)*(1-$J$7)) -> 72.76256734 | E18: 72.76256734 | F18: COMPLIANT
B19: Special meter reads (including a special meter read) | C19: 34.42 | D19: 34.34097858 | E19: 34.34097858 | F19: COMPLIANT
B20: Service vehicle visit | C20: 478.95 | D20: 477.8504268 | E20: 477.8504268 | F20: COMPLIANT
B21: Wasted service truck visit - not JEN's fault | C21: 444.19 | D21: 443.1702288 | E21: 443.1702288 | F21: COMPLIANT
B22: Fault response - not JEN's fault | C22: 478.95 | D22: 477.8504268 | E22: 477.8504268 | F22: COMPLIANT
B23: Re-test types 5, 6 and AMI smart metering installations | C23: 405.68 | D23: 404.7486401 | E23: 404.7486401 | F23: COMPLIANT
B24: PV installation | C24: 0 | D24: 0 | E24: 0 | F24: COMPLIANT
B25: Remote meter re-configuration | C25: 54.49 | D25: 54.36490188 | E25: 54.36490188 | F25: COMPLIANT
B26: Remote de-energisation | C26: 10.42 | D26: 10.39607777 | E26: 10.39607777 | F26: COMPLIANT
B27: Remote re-energisation | C27: 10.42 | D27: 10.39607777 | E27: 10.39607777 | F27: COMPLIANT
E29: =D29 -> 
B30: AFTER HOURS
B31: Alternative Control Services - New Connection Services
B32: Connection - single phase service connection to new premises - JEN is the responsible person for metering | C32: 631.01 | D32: =IF(C32="","",C32*(1+$J$6)*(1-$J$7)) -> 629.5613276 | E32: 629.5613276 | F32: COMPLIANT
B33: Connection - three phase service connection to new premises (less than 100amps) - JEN is the responsible person for metering | C33: 817.64 | D33: =IF(C33="","",C33*(1+$J$6)*(1-$J$7)) -> 815.7628625 | E33: 815.7628625 | F33: COMPLIANT
B34: Connection - single phase service connection to new premises - JEN is not the responsible person for metering | C34: 631.01 | D34: 629.5613276 | E34: 629.5613276 | F34: COMPLIANT
B35: Connection - three phase service connection to new premises (less than 100amps) - JEN is not the responsible person for metering | C35: 817.64 | D35: 815.7628625 | E35: 815.7628625 | F35: COMPLIANT
B36: Alternative Control Services - Network Services
B37: Manual energisation of new premises | C37: 61.24 | D37: =IF(C37="","",C37*(1+$J$6)*(1-$J$7)) -> 61.09940524 | E37: 61.09940524 | F37: COMPLIANT
B38: Manual re-energisation existing premises | C38: 61.24 | D38: =IF(C38="","",C38*(1+$J$6)*(1-$J$7)) -> 61.09940524 | E38: 61.09940524 | F38: COMPLIANT
B39: Manual de-energisation existing premises | C39: 78.08 | D39: 77.90074397 | E39: 77.90074397 | F39: COMPLIANT
B40: Temporary single-phase connection | C40: 614.59 | D40: 613.1790246 | E40: 613.1790246 | F40: COMPLIANT
B41: Temporary three-phase connection | C41: 786.48 | D41: =IF(C41="","",C41*(1+$J$6)*(1-$J$7)) -> 784.6743996 | E41: 784.6743996 | F41: COMPLIANT
B42: Reconnection after temporary disconnection for non-payment | C42: 81.43 | D42: 81.24305305 | E42: 81.24305305 | F42: COMPLIANT
B43: Service vehicle visit | C43: 629.55 | D43: 628.1046794 | E43: 628.1046794 | F43: COMPLIANT
B44: Wasted service truck visit - not JEN's fault | C44: 629.54 | D44: 628.0947024 | E44: 628.0947024 | F44: COMPLIANT
B45: Fault response - not JEN's fault | C45: 629.55 | D45: 628.1046794 | E45: 628.1046794 | F45: COMPLIANT
B46: Re-test types 5, 6 and AMI smart metering installations | C46: 667.67 | D46: 666.1371635 | E46: 666.1371635 | F46: COMPLIANT
B48: QUOTED SERVICES
B49: Back office/administration | C49: 92.08 | D49: =IF(C49="","",C49*(1+$J$6)*(1-$J$7)) -> 91.86860278 | E49: 91.86860278 | F49: COMPLIANT
B50: Linesperson/field worker – Business hours | C50: 114.205 | D50: =IF(C50="","",C50*(1+$J$6)*(1-$J$7)) -> 113.9428082 | E50: 113.9428082 | F50: COMPLIANT
B51: Linesperson/field worker – After hours | C51: 141.363 | D51: 141.0384589 | E51: 141.0384589 | F51: COMPLIANT
B52: Technical officer – Business hours | C52: 158.023 | D52: 157.6602109 | E52: 157.6602109 | F52: COMPLIANT
B53: Technical officer – After hours | C53: 184.93 | D53: 184.5054378 | E53: 184.5054378 | F53: COMPLIANT
B54: Engineer – Business hours | C54: 205.589 | D54: 205.1170089 | E54: 205.1170089 | F54: COMPLIANT
B55: Engineer – After hours | C55: 225.07 | D55: 224.5532844 | E55: 224.5532844 | F55: COMPLIANT
B56: Reserve feeder charge - per kW | C56: 16.483 | D56: 16.44515834 | E56: 16.44515834 | F56: COMPLIANT

Sheet Prop2021DistTar
B1: ="Tariff Approval - "&'Model update'!$C$3 -> Tariff Approval - Jemena | C1: ="Prop"&'Model update'!$C$5&"DistTar" -> Prop2021DistTar
B3: ="PROPOSED "&'Model update'!$C$5&" DISTRIBUTION TARIFFS" -> PROPOSED 2021 DISTRIBUTION TARIFFS
D4: ="Proposed Distribution Tariffs (Pt) for "&'Model update'!$C$5 -> Proposed Distribution Tariffs (Pt) for 2021 | R4: ="Current Distribution Tariffs (Pt-1) for "&'Model update'!$C$8 -> Current Distribution Tariffs (Pt-1) for 2020 | AF4: ="Forecast Quantities (Qt) for "&'Model update'!$C$5 -> Forecast Quantities (Qt) for 2021 | AT4: ="Forecast Revenue (Pt "&'Model update'!$C$5&")*(Qt " &'Model update'!$C$5&")" -> Forecast Revenue (Pt 2021)*(Qt 2021) | BI4: ="Revenue (Pt-1 "&'Model update'!$C$8&")*(Qt " &'Model update'!$C$5&")" -> Revenue (Pt-1 2020)*(Qt 2021)
B5: Proposed tariff | C5: Existing tariff | D5: PropTar Fixed | E5: PropTar PkBlk1 | F5: PropTar Shoulder summer | G5: PropTar peak non-summer | H5: PropTar Shoulder non-summer | I5: PropTar OPkBlk1 | J5: PropTar off peak non-summer | K5: PropTar OPkBlk3 | L5: PropTar OPkBlk4 | M5: PropTar DemBlk1 | N5: PropTar DemBlk2 | O5: PropTar DemBlk3 | P5: PropTar DemBlk4 | R5: ExistTar Fixed | S5: ExistTar PkBlk1 | T5: ExistTar Shoulder summer | U5: ExistTar peak non-summer | V5: ExistTar Shoulder non-summer | W5: ExistTar OPkBlk1 | X5: ExistTar off peak non-summer | Y5: ExistTar OPkBlk3 | Z5: ExistTar OPkBlk4 | AA5: ExistTar DemBlk1 | AB5: ExistTar DemBlk2 | AC5: ExistTar DemBlk3 | AD5: ExistTar DemBlk4 | AF5: FcastVol Fixed | AG5: FcastVol PkBlk1 | AH5: FcastVol Shoulder summer | AI5: FcastVol peak non-summer | AJ5: FcastVol Shoulder non-summer | AK5: FcastVol OPkBlk1 | AL5: FcastVol off peak non-summer | AM5: FcastVol OPkBlk3 | AN5: FcastVol OPkBlk4 | AO5: FcastVol DemBlk1 | AP5: FcastVol DemBlk2 | AQ5: FcastVol DemBlk3 | AR5: FcastVol DemBlk4 | AT5: PropRev Fixed | AU5: PropRev PkBlk1 | AV5: PropRev Shoulder summer | AW5: PropRev peak non-summer | AX5: PropRev Shoulder non-summer | AY5: PropRev OPkBlk1 | AZ5: PropRev off peak non-summer | BA5: PropRev OPkBlk3 | BB5: PropRev OPkBlk4 | BC5: PropRev DemBlk1 | BD5: PropRev DemBlk2 | BE5: PropRev DemBlk3 | BF5: PropRev DemBlk4 | BG5: PropRev Total | BI5: ExistRev Fixed | BJ5: ExistRev PkBlk1 | BK5: ExistRev Shoulder summer | BL5: ExistRev peak non-summer | BM5: ExistRev Shoulder non-summer | BN5: ExistRev OPkBlk1 | BO5: ExistRev off peak non-summer | BP5: ExistRev OPkBlk3 | BQ5: ExistRev OPkBlk4 | BR5: ExistRev DemBlk1 | BS5: ExistRev DemBlk2 | BT5: ExistRev DemBlk3 | BU5: ExistRev DemBlk4 | BV5: ExistRev Total
B6: Residential - General Purpose | C6: Residential - General Purpose | D6: 67.458 | E6: 6.314 | F6: 0 | G6: 0 | H6: 0 | I6: 0 | J6: 0 | K6: 0 | L6: 0 | M6: 0 | N6: 0 | O6: 0 | P6: 0 | R6: =Est2020DistRev!D6 -> 58.659 | S6: =Est2020DistRev!E6 -> 7.821 | T6: =Est2020DistRev!F6 -> 0 | U6: =Est2020DistRev!G6 -> 0 | V6: =Est2020DistRev!H6 -> 0 | W6: =Est2020DistRev!I6 -> 0 | X6: =Est2020DistRev!J6 -> 0 | Y6: =Est2020DistRev!K6 -> 0 | Z6: =Est2020DistRev!L6 -> 0 | AA6: =Est2020DistRev!M6 -> 0 | AB6: =Est2020DistRev!N6 -> 0 | AC6: =Est2020DistRev!O6 -> 0 | AD6: =Est2020DistRev!P6 -> 0 | AF6: 158878.4444 | AG6: 639147331.9 | AH6: =Est2020DistRev!T6/2 -> 0 | AI6: =Est2020DistRev!U6/2 -> 0 | AJ6: =Est2020DistRev!V6/2 -> 0 | AK6: =Est2020DistRev!W6/2 -> 0 | AL6: =Est2020DistRev!X6/2 -> 0 | AM6: =Est2020DistRev!Y6/2 -> 0 | AN6: =Est2020DistRev!Z6/2 -> 0 | AO6: =Est2020DistRev!AA6/2 -> 0 | AP6: =Est2020DistRev!AB6/2 -> 0 | AQ6: =Est2020DistRev!AC6/2 -> 0 | AR6: =Est2020DistRev!AD6/2 -> 0 | AT6: =D6*AF6 -> 10717622.1 | AU6: =E6/100*AG6 -> 40355762.53 | AV6: 0 | AW6: 0 | AX6: 0 | AY6: 0 | AZ6: 0 | BA6: 0 | BB6: 0 | BC6: =M6*AO6 -> 0 | BD6: 0 | BE6: 0 | BF6: 0 | BG6: =SUM(AT6:BF6) -> 51073384.64 | BI6: =R6*AF6 -> 9319650.669 | BJ6: =S6/100*AG6 -> 49987712.83 | BK6: 0 | BL6: 0 | BM6: 0 | BN6: 0 | BO6: 0 | BP6: 0 | BQ6: 0 | BR6: =AA6*AO6 -> 0 | BS6: 0 | BT6: 0 | BU6: 0 | BV6: =SUM(BI6:BU6) -> 59307363.49
B7: Residential - General Purpose Demand | C7: Residential - General Purpose Demand | D7: 67.458 | E7: 1.825 | F7: 0 | G7: 0 | H7: 0 | I7: 0 | J7: 0 | K7: 0 | L7: 0 | M7: 60.031 | N7: 0 | O7: 0 | P7: 0 | R7: =Est2020DistRev!D7 -> 58.659 | S7: =Est2020DistRev!E7 -> 3.443 | T7: =Est2020DistRev!F7 -> 0 | U7: =Est2020DistRev!G7 -> 0 | V7: =Est2020DistRev!H7 -> 0 | W7: =Est2020DistRev!I7 -> 0 | X7: =Est2020DistRev!J7 -> 0 | Y7: =Est2020DistRev!K7 -> 0 | Z7: =Est2020DistRev!L7 -> 0 | AA7: =Est2020DistRev!M7 -> 60.031 | AB7: =Est2020DistRev!N7 -> 0 | AC7: =Est2020DistRev!O7 -> 0 | AD7: =Est2020DistRev!P7 -> 0 | AF7: 2.710534965 | AG7: 30970.704 | AH7: =Est2020DistRev!T7/2 -> 0 | AI7: =Est2020DistRev!U7/2 -> 0 | AJ7: =Est2020DistRev!V7/2 -> 0 | AK7: =Est2020DistRev!W7/2 -> 0 | AL7: =Est2020DistRev!X7/2 -> 0 | AM7: =Est2020DistRev!Y7/2 -> 0 | AN7: =Est2020DistRev!Z7/2 -> 0 | AO7: 5 | AP7: =Est2020DistRev!AB7/2 -> 0 | AQ7: =Est2020DistRev!AC7/2 -> 0 | AR7: =Est2020DistRev!AD7/2 -> 0 | AT7: =D7*AF7 -> 182.8472677 | AU7: =E7/100*AG7 -> 565.215348 | AV7: 0 | AW7: 0 | AX7: 0 | AY7: 0 | AZ7: 0 | BA7: 0 | BB7: 0 | BC7: =M7*AO7 -> 300.155 | BD7: =N7*AP7 -> 0 | BE7: =O7*AQ7 -> 0 | BF7: =P7*AR7 -> 0 | BG7: =SUM(AT7:BF7) -> 1048.217616 | BI7: =R7*AF7 -> 158.9972705 | BJ7: =S7/100*AG7 -> 1066.321339 | BK7: =T7/100*AH7 -> 0 | BL7: =U7/100*AI7 -> 0 | BM7: =V7/100*AJ7 -> 0 | BN7: =W7/100*AK7 -> 0 | BO7: =X7/100*AL7 -> 0 | BP7: =Y7/100*AM7 -> 0 | BQ7: =Z7/100*AN7 -> 0 | BR7: =AA7*AO7 -> 300.155 | BS7: =AB7*AP7 -> 0 | BT7: =AC7*AQ7 -> 0 | BU7: =AD7*AR7 -> 0 | BV7: =SUM(BI7:BU7) -> 1525.473609
B8: Residential - Flexible | C8: Residential - Flexible | D8: 67.458 | E8: 12.063 | F8: 7.487 | G8: 12.063 | H8: 7.487 | I8: 3.64 | J8: 3.64 | K8: 0 | L8: 0 | M8: 0 | N8: 0 | O8: 0 | P8: 0 | R8: =Est2020DistRev!D8 -> 58.659 | S8: =Est2020DistRev!E8 -> 12.601 | T8: =Est2020DistRev!F8 -> 7.821 | U8: =Est2020DistRev!G8 -> 12.601 | V8: =Est2020DistRev!H8 -> 7.821 | W8: =Est2020DistRev!I8 -> 3.80212356 | X8: =Est2020DistRev!J8 -> 3.802 | Y8: =Est2020DistRev!K8 -> 0 | Z8: =Est2020DistRev!L8 -> 0 | AA8: =Est2020DistRev!M8 -> 0 | AB8: =Est2020DistRev!N8 -> 0 | AC8: =Est2020DistRev!O8 -> 0 | AD8: =Est2020DistRev!P8 -> 0 | AF8: 415.048838 | AG8: 309609.7466 | AH8: 580688.3796 | AI8: 407370.3282 | AJ8: 757351.4178 | AK8: 614725.7076 | AL8: 495167.1411 | AM8: =Est2020DistRev!Y8/2 -> 0 | AN8: =Est2020DistRev!Z8/2 -> 0 | AO8: =Est2020DistRev!AA8/2 -> 0 | AP8: =Est2020DistRev!AB8/2 -> 0 | AQ8: =Est2020DistRev!AC8/2 -> 0 | AR8: =Est2020DistRev!AD8/2 -> 0 | AT8: 27998.36451 | AU8: 37348.22374 | AV8: 43476.13898 | AW8: 49141.0827 | AX8: 56702.90065 | AY8: 22376.01576 | AZ8: 18024.08394 | BA8: 0 | BB8: 0 | BC8: 0 | BD8: 0 | BE8: 0 | BF8: 0 | BG8: 255066.8103 | BI8: 24346.34979 | BJ8: 39013.92417 | BK8: 45415.63817 | BL8: 51332.73506 | BM8: 59232.45439 | BN8: 23372.63096 | BO8: 18826.25471 | BP8: 0 | BQ8: 0 | BR8: 0 | BS8: 0 | BT8: 0 | BU8: 0 | BV8: 261539.9872
B9: Residential - Time of Use Interval Meter | C9: Residential - Time of Use Interval Meter | D9: 67.458 | E9: 12.129 | F9: 0 | G9: 0 | H9: 0 | I9: 1.765 | J9: 0 | K9: 0 | L9: 0 | M9: 0 | N9: 0 | O9: 0 | P9: 0 | R9: =Est2020DistRev!D9 -> 58.659 | S9: =Est2020DistRev!E9 -> 12.67 | T9: =Est2020DistRev!F9 -> 0 | U9: =Est2020DistRev!G9 -> 0 | V9: =Est2020DistRev!H9 -> 0 | W9: =Est2020DistRev!I9 -> 1.844 | X9: =Est2020DistRev!J9 -> 0 | Y9: =Est2020DistRev!K9 -> 0 | Z9: =Est2020DistRev!L9 -> 0 | AA9: =Est2020DistRev!M9 -> 0 | AB9: =Est2020DistRev!N9 -> 0 | AC9: =Est2020DistRev!O9 -> 0 | AD9: =Est2020DistRev!P9 -> 0 | AF9: 7444.484259 | AG9: 16938462.59 | AH9: =Est2020DistRev!T9/2 -> 0 | AI9: =Est2020DistRev!U9/2 -> 0 | AJ9: =Est2020DistRev!V9/2 -> 0 | AK9: 17531385.14 | AL9: =Est2020DistRev!X9/2 -> 0 | AM9: =Est2020DistRev!Y9/2 -> 0 | AN9: =Est2020DistRev!Z9/2 -> 0 | AO9: =Est2020DistRev!AA9/2 -> 0 | AP9: =Est2020DistRev!AB9/2 -> 0 | AQ9: =Est2020DistRev!AC9/2 -> 0 | AR9: =Est2020DistRev!AD9/2 -> 0 | AT9: 502190.0191 | AU9: 2054466.128 | AV9: 0 | AW9: 0 | AX9: 0 | AY9: 309428.9477 | AZ9: 0 | BA9: 0 | BB9: 0 | BC9: 0 | BD9: 0 | BE9: 0 | BF9: 0 | BG9: 2866085.094 | BI9: 436686.0021 | BJ9: 2146103.21 | BK9: 0 | BL9: 0 | BM9: 0 | BN9: 323278.742 | BO9: 0 | BP9: 0 | BQ9: 0 | BR9: 0 | BS9: 0 | BT9: 0 | BU9: 0 | BV9: 2906067.954
B10: Residential - TOU | C10: Residential - TOU | D10: 99.122 | E10: 8.739 | F10: 0 | G10: 0 | H10: 0 | I10: 1.475 | J10: 0 | K10: 0 | L10: 0 | M10: 0 | N10: 0 | O10: 0 | P10: 0 | R10: =Est2020DistRev!D10 -> 99.122 | S10: =Est2020DistRev!E10 -> 8.739 | T10: =Est2020DistRev!F10 -> 0 | U10: =Est2020DistRev!G10 -> 0 | V10: =Est2020DistRev!H10 -> 0 | W10: =Est2020DistRev!I10 -> 1.475 | X10: =Est2020DistRev!J10 -> 0 | Y10: =Est2020DistRev!K10 -> 0 | Z10: =Est2020DistRev!L10 -> 0 | AA10: =Est2020DistRev!M10 -> 0 | AB10: =Est2020DistRev!N10 -> 0 | AC10: =Est2020DistRev!O10 -> 0 | AD10: =Est2020DistRev!P10 -> 0 | AF10: 678.1290096 | AG10: 3116768.903 | AH10: =Est2020DistRev!T10/2 -> 0 | AI10: =Est2020DistRev!U10/2 -> 0 | AJ10: =Est2020DistRev!V10/2 -> 0 | AK10: 3413336.918 | AL10: =Est2020DistRev!X10/2 -> 0 | AM10: =Est2020DistRev!Y10/2 -> 0 | AN10: =Est2020DistRev!Z10/2 -> 0 | AO10: =Est2020DistRev!AA10/2 -> 0 | AP10: =Est2020DistRev!AB10/2 -> 0 | AQ10: =Est2020DistRev!AC10/2 -> 0 | AR10: =Est2020DistRev!AD10/2 -> 0 | AT10: 67217.50369 | AU10: 272374.4344 | AV10: 0 | AW10: 0 | AX10: 0 | AY10: 50346.71955 | AZ10: 0 | BA10: 0 | BB10: 0 | BC10: 0 | BD10: 0 | BE10: 0 | BF10: 0 | BG10: 389938.6577 | BI10: 67217.50369 | BJ10: 272374.4344 | BK10: 0 | BL10: 0 | BM10: 0 | BN10: 50346.71955 | BO10: 0 | BP10: 0 | BQ10: 0 | BR10: 0 | BS10: 0 | BT10: 0 | BU10: 0 | BV10: 389938.6577
B11: Residential - Off Peak Only | C11: Residential - Off Peak Only | D11: 0 | E11: 0 | F11: 0 | G11: 0 | H11: 0 | I11: 1.627 | J11: 0 | K11: 0 | L11: 0 | M11: 0 | N11: 0 | O11: 0 | P11: 0 | R11: =Est2020DistRev!D11 -> 0 | S11: =Est2020DistRev!E11 -> 0 | T11: =Est2020DistRev!F11 -> 0 | U11: =Est2020DistRev!G11 -> 0 | V11: =Est2020DistRev!H11 -> 0 | W11: =Est2020DistRev!I11 -> 1.7 | X11: =Est2020DistRev!J11 -> 0 | Y11: =Est2020DistRev!K11 -> 0 | Z11: =Est2020DistRev!L11 -> 0 | AA11: =Est2020DistRev!M11 -> 0 | AB11: =Est2020DistRev!N11 -> 0 | AC11: =Est2020DistRev!O11 -> 0 | AD11: =Est2020DistRev!P11 -> 0 | AF11: 0 | AG11: 0 | AH11: =Est2020DistRev!T11/2 -> 0 | AI11: =Est2020DistRev!U11/2 -> 0 | AJ11: =Est2020DistRev!V11/2 -> 0 | AK11: 15302727.76 | AL11: =Est2020DistRev!X11/2 -> 0 | AM11: =Est2020DistRev!Y11/2 -> 0 | AN11: =Est2020DistRev!Z11/2 -> 0 | AO11: =Est2020DistRev!AA11/2 -> 0 | AP11: =Est2020DistRev!AB11/2 -> 0 | AQ11: =Est2020DistRev!AC11/2 -> 0 | AR11: =Est2020DistRev!AD11/2 -> 0 | AT11: 0 | AU11: 0 | AV11: 0 | AW11: 0 | AX11: 0 | AY11: 248975.3806 | AZ11: 0 | BA11: 0 | BB11: 0 | BC11: 0 | BD11: 0 | BE11: 0 | BF11: 0 | BG11: 248975.3806 | BI11: 0 | BJ11: 0 | BK11: 0 | BL11: 0 | BM11: 0 | BN11: 260146.3719 | BO11: 0 | BP11: 0 | BQ11: 0 | BR11: 0 | BS11: 0 | BT11: 0 | BU11: 0 | BV11: 260146.3719
B12: Small Business - General Purpose | C12: Small Business - General Purpose | D12: 116.705 | E12: 7.639 | F12: 0 | G12: 0 | H12: 0 | I12: 0 | J12: 0 | K12: 0 | L12: 0 | M12: 0 | N12: 0 | O12: 0 | P12: 0 | R12: =Est2020DistRev!D12 -> 101.483 | S12: =Est2020DistRev!E12 -> 9.346 | T12: =Est2020DistRev!F12 -> 0 | U12: =Est2020DistRev!G12 -> 0 | V12: =Est2020DistRev!H12 -> 0 | W12: =Est2020DistRev!I12 -> 0 | X12: =Est2020DistRev!J12 -> 0 | Y12: =Est2020DistRev!K12 -> 0 | Z12: =Est2020DistRev!L12 -> 0 | AA12: =Est2020DistRev!M12 -> 0 | AB12: =Est2020DistRev!N12 -> 0 | AC12: =Est2020DistRev!O12 -> 0 | AD12: =Est2020DistRev!P12 -> 0 | AF12: 9576.272866 | AG12: 101667470 | AH12: =Est2020DistRev!T12/2 -> 0 | AI12: =Est2020DistRev!U12/2 -> 0 | AJ12: =Est2020DistRev!V12/2 -> 0 | AK12: =Est2020DistRev!W12/2 -> 0 | AL12: =Est2020DistRev!X12/2 -> 0 | AM12: =Est2020DistRev!Y12/2 -> 0 | AN12: =Est2020DistRev!Z12/2 -> 0 | AO12: =Est2020DistRev!AA12/2 -> 0 | AP12: =Est2020DistRev!AB12/2 -> 0 | AQ12: =Est2020DistRev!AC12/2 -> 0 | AR12: =Est2020DistRev!AD12/2 -> 0 | AT12: 1117598.925 | AU12: 7766378.035 | AV12: 0 | AW12: 0 | AX12: 0 | AY12: 0 | AZ12: 0 | BA12: 0 | BB12: 0 | BC12: 0 | BD12: 0 | BE12: 0 | BF12: 0 | BG12: 8883976.959 | BI12: 971828.8992 | BJ12: 9501841.748 | BK12: 0 | BL12: 0 | BM12: 0 | BN12: 0 | BO12: 0 | BP12: 0 | BQ12: 0 | BR12: 0 | BS12: 0 | BT12: 0 | BU12: 0 | BV12: 10473670.65
B13: Small Business - General Purpose Demand | C13: Small Business - General Purpose Demand | D13: 116.705 | E13: 6.024 | F13: 0 | G13: 0 | H13: 0 | I13: 0 | J13: 0 | K13: 0 | L13: 0 | M13: 58.183 | N13: 0 | O13: 0 | P13: 0 | R13: =Est2020DistRev!D13 -> 101.483 | S13: =Est2020DistRev!E13 -> 7.371 | T13: =Est2020DistRev!F13 -> 0 | U13: =Est2020DistRev!G13 -> 0 | V13: =Est2020DistRev!H13 -> 0 | W13: =Est2020DistRev!I13 -> 0 | X13: =Est2020DistRev!J13 -> 0 | Y13: =Est2020DistRev!K13 -> 0 | Z13: =Est2020DistRev!L13 -> 0 | AA13: =Est2020DistRev!M13 -> 58.183 | AB13: =Est2020DistRev!N13 -> 0 | AC13: =Est2020DistRev!O13 -> 0 | AD13: =Est2020DistRev!P13 -> 0 | AF13: 0.5059185863 | AH13: =Est2020DistRev!T13/2 -> 0 | AI13: =Est2020DistRev!U13/2 -> 0 | AJ13: =Est2020DistRev!V13/2 -> 0 | AL13: =Est2020DistRev!X13/2 -> 0 | AM13: =Est2020DistRev!Y13/2 -> 0 | AN13: =Est2020DistRev!Z13/2 -> 0 | AP13: =Est2020DistRev!AB13/2 -> 0 | AQ13: =Est2020DistRev!AC13/2 -> 0 | AR13: =Est2020DistRev!AD13/2 -> 0 | AT13: 59.04322862 | AV13: 0 | AW13: 0 | AX13: 0 | AZ13: 0 | BA13: 0 | BB13: 0 | BD13: 0 | BE13: 0 | BF13: 0 | BI13: 51.3421359 | BK13: 0 | BL13: 0 | BM13: 0 | BO13: 0 | BP13: 0 | BQ13: 0 | BS13: 0 | BT13: 0 | BU13: 0
B14: Small Business - TOU Weekdays | C14: Small Business - TOU Weekdays | D14: 179.431 | E14: 9.036 | F14: 0 | G14: 0 | H14: 0 | I14: 1.486 | J14: 0 | K14: 0 | L14: 0 | M14: 0 | N14: 0 | O14: 0 | P14: 0 | R14: =Est2020DistRev!D14 -> 156.027 | S14: =Est2020DistRev!E14 -> 11.056 | T14: =Est2020DistRev!F14 -> 0 | U14: =Est2020DistRev!G14 -> 0 | V14: =Est2020DistRev!H14 -> 0 | W14: =Est2020DistRev!I14 -> 1.818 | X14: =Est2020DistRev!J14 -> 0 | Y14: =Est2020DistRev!K14 -> 0 | Z14: =Est2020DistRev!L14 -> 0 | AA14: =Est2020DistRev!M14 -> 0 | AB14: =Est2020DistRev!N14 -> 0 | AC14: =Est2020DistRev!O14 -> 0 | AD14: =Est2020DistRev!P14 -> 0 | AF14: 3714.353077 | AG14: 76073895.73 | AH14: =Est2020DistRev!T14/2 -> 0 | AI14: =Est2020DistRev!U14/2 -> 0 | AJ14: =Est2020DistRev!V14/2 -> 0 | AK14: 49617354.31 | AL14: =Est2020DistRev!X14/2 -> 0 | AM14: =Est2020DistRev!Y14/2 -> 0 | AN14: =Est2020DistRev!Z14/2 -> 0 | AO14: =Est2020DistRev!AA14/2 -> 0 | AP14: =Est2020DistRev!AB14/2 -> 0 | AQ14: =Est2020DistRev!AC14/2 -> 0 | AR14: =Est2020DistRev!AD14/2 -> 0 | AT14: 666470.087 | AU14: 6874037.218 | AV14: 0 | AW14: 0 | AX14: 0 | AY14: 737313.8851 | AZ14: 0 | BA14: 0 | BB14: 0 | BC14: 0 | BD14: 0 | BE14: 0 | BF14: 0 | BG14: 8277821.19 | BI14: 579539.3676 | BJ14: 8410729.911 | BK14: 0 | BL14: 0 | BM14: 0 | BN14: 902043.5014 | BO14: 0 | BP14: 0 | BQ14: 0 | BR14: 0 | BS14: 0 | BT14: 0 | BU14: 0 | BV14: 9892312.78
B15: Small Business - TOU Weekdays Demand | C15: Small Business - TOU Weekdays Demand | D15: 259.761 | E15: 5.565 | F15: 0 | G15: 0 | H15: 0 | I15: 1.734 | J15: 0 | K15: 0 | L15: 0 | M15: 58.183 | N15: 0 | O15: 0 | P15: 0 | R15: =Est2020DistRev!D15 -> 225.879 | S15: =Est2020DistRev!E15 -> 6.809 | T15: =Est2020DistRev!F15 -> 0 | U15: =Est2020DistRev!G15 -> 0 | V15: =Est2020DistRev!H15 -> 0 | W15: =Est2020DistRev!I15 -> 2.121 | X15: =Est2020DistRev!J15 -> 0 | Y15: =Est2020DistRev!K15 -> 0 | Z15: =Est2020DistRev!L15 -> 0 | AA15: =Est2020DistRev!M15 -> 66.547395 | AB15: =Est2020DistRev!N15 -> 0 | AC15: =Est2020DistRev!O15 -> 0 | AD15: =Est2020DistRev!P15 -> 0 | AF15: 345.7784898 | AG15: 34833063.04 | AH15: =Est2020DistRev!T15/2 -> 0 | AI15: =Est2020DistRev!U15/2 -> 0 | AJ15: =Est2020DistRev!V15/2 -> 0 | AK15: 24232702.15 | AL15: =Est2020DistRev!X15/2 -> 0 | AM15: =Est2020DistRev!Y15/2 -> 0 | AN15: =Est2020DistRev!Z15/2 -> 0 | AO15: 24819.49201 | AP15: =Est2020DistRev!AB15/2 -> 0 | AQ15: =Est2020DistRev!AC15/2 -> 0 | AR15: =Est2020DistRev!AD15/2 -> 0 | AT15: 89819.76629 | AU15: 1938459.958 | AV15: 0 | AW15: 0 | AX15: 0 | AY15: 420195.0554 | AZ15: 0 | BA15: 0 | BB15: 0 | BC15: 1444072.504 | BD15: 0 | BE15: 0 | BF15: 0 | BG15: 3892547.284 | BI15: 78104.0995 | BJ15: 2371783.262 | BK15: 0 | BL15: 0 | BM15: 0 | BN15: 513975.6127 | BO15: 0 | BP15: 0 | BQ15: 0 | BR15: 1651672.539 | BS15: 0 | BT15: 0 | BU15: 0 | BV15: 4615535.513
B16: Small Business - TOU Opt out | C16: Small Business - TOU Opt out | D16: 259.761 | E16: 9.921 | F16: 0 | G16: 0 | H16: 0 | I16: 1.631 | J16: 0 | K16: 0 | L16: 0 | M16: 0 | N16: 0 | O16: 0 | P16: 0 | R16: =Est2020DistRev!D16 -> 225.879 | S16: =Est2020DistRev!E16 -> 11.056 | T16: =Est2020DistRev!F16 -> 0 | U16: =Est2020DistRev!G16 -> 0 | V16: =Est2020DistRev!H16 -> 0 | W16: =Est2020DistRev!I16 -> 1.818 | X16: =Est2020DistRev!J16 -> 0 | Y16: =Est2020DistRev!K16 -> 0 | Z16: =Est2020DistRev!L16 -> 0 | AA16: =Est2020DistRev!M16 -> 0 | AB16: =Est2020DistRev!N16 -> 0 | AC16: =Est2020DistRev!O16 -> 0 | AD16: =Est2020DistRev!P16 -> 0 | AF16: 15.71720408 | AG16: 1276940.757 | AH16: =Est2020DistRev!T16/2 -> 0 | AI16: =Est2020DistRev!U16/2 -> 0 | AJ16: =Est2020DistRev!V16/2 -> 0 | AK16: 390747.4038 | AL16: =Est2020DistRev!X16/2 -> 0 | AM16: =Est2020DistRev!Y16/2 -> 0 | AN16: =Est2020DistRev!Z16/2 -> 0 | AO16: =Est2020DistRev!AA16/2 -> 0 | AP16: =Est2020DistRev!AB16/2 -> 0 | AQ16: =Est2020DistRev!AC16/2 -> 0 | AR16: =Est2020DistRev!AD16/2 -> 0 | AT16: 4082.716649 | AU16: 126685.2925 | AV16: 0 | AW16: 0 | AX16: 0 | AY16: 6373.090156 | AZ16: 0 | BA16: 0 | BB16: 0 | BC16: 0 | BD16: 0 | BE16: 0 | BF16: 0 | BG16: 137141.0993 | BI16: 3550.186341 | BJ16: 141178.5701 | BK16: 0 | BL16: 0 | BM16: 0 | BN16: 7103.787801 | BO16: 0 | BP16: 0 | BQ16: 0 | BR16: 0 | BS16: 0 | BT16: 0 | BU16: 0 | BV16: 151832.5442
B17: Small Business - TOU Extended | C17: Small Business - TOU Extended | D17: 179.431 | E17: 8.787 | F17: 0 | G17: 0 | H17: 0 | I17: 1.768 | J17: 0 | K17: 0 | L17: 0 | M17: 0 | N17: 0 | O17: 0 | P17: 0 | R17: =Est2020DistRev!D17 -> 156.027 | S17: =Est2020DistRev!E17 -> 9.793 | T17: =Est2020DistRev!F17 -> 0 | U17: =Est2020DistRev!G17 -> 0 | V17: =Est2020DistRev!H17 -> 0 | W17: =Est2020DistRev!I17 -> 1.97 | X17: =Est2020DistRev!J17 -> 0 | Y17: =Est2020DistRev!K17 -> 0 | Z17: =Est2020DistRev!L17 -> 0 | AA17: =Est2020DistRev!M17 -> 0 | AB17: =Est2020DistRev!N17 -> 0 | AC17: =Est2020DistRev!O17 -> 0 | AD17: =Est2020DistRev!P17 -> 0 | AF17: 941.073449 | AG17: 18814347.71 | AH17: =Est2020DistRev!T17/2 -> 0 | AI17: =Est2020DistRev!U17/2 -> 0 | AJ17: =Est2020DistRev!V17/2 -> 0 | AK17: 5757242.442 | AL17: =Est2020DistRev!X17/2 -> 0 | AM17: =Est2020DistRev!Y17/2 -> 0 | AN17: =Est2020DistRev!Z17/2 -> 0 | AO17: =Est2020DistRev!AA17/2 -> 0 | AP17: =Est2020DistRev!AB17/2 -> 0 | AQ17: =Est2020DistRev!AC17/2 -> 0 | AR17: =Est2020DistRev!AD17/2 -> 0 | AT17: 168857.75 | AU17: 1653216.733 | AV17: 0 | AW17: 0 | AX17: 0 | AY17: 101788.0464 | AZ17: 0 | BA17: 0 | BB17: 0 | BC17: 0 | BD17: 0 | BE17: 0 | BF17: 0 | BG17: 1923862.529 | BI17: 146832.867 | BJ17: 1842489.071 | BK17: 0 | BL17: 0 | BM17: 0 | BN17: 113417.6761 | BO17: 0 | BP17: 0 | BQ17: 0 | BR17: 0 | BS17: 0 | BT17: 0 | BU17: 0 | BV17: 2102739.614
B18: Small Business - TOU Extended Demand | C18: Small Business - TOU Extended Demand | D18: 259.761 | E18: 4.64 | F18: 0 | G18: 0 | H18: 0 | I18: 2.029 | J18: 0 | K18: 0 | L18: 0 | M18: 58.183 | N18: 0 | O18: 0 | P18: 0 | R18: =Est2020DistRev!D18 -> 225.879 | S18: =Est2020DistRev!E18 -> 5.171 | T18: =Est2020DistRev!F18 -> 0 | U18: =Est2020DistRev!G18 -> 0 | V18: =Est2020DistRev!H18 -> 0 | W18: =Est2020DistRev!I18 -> 2.261 | X18: =Est2020DistRev!J18 -> 0 | Y18: =Est2020DistRev!K18 -> 0 | Z18: =Est2020DistRev!L18 -> 0 | AA18: =Est2020DistRev!M18 -> 66.547395 | AB18: =Est2020DistRev!N18 -> 0 | AC18: =Est2020DistRev!O18 -> 0 | AD18: =Est2020DistRev!P18 -> 0 | AF18: 52.37457958 | AG18: 7861230.03 | AH18: =Est2020DistRev!T18/2 -> 0 | AI18: =Est2020DistRev!U18/2 -> 0 | AJ18: =Est2020DistRev!V18/2 -> 0 | AK18: 2311605.613 | AL18: =Est2020DistRev!X18/2 -> 0 | AM18: =Est2020DistRev!Y18/2 -> 0 | AN18: =Est2020DistRev!Z18/2 -> 0 | AO18: 5262.517165 | AP18: =Est2020DistRev!AB18/2 -> 0 | AQ18: =Est2020DistRev!AC18/2 -> 0 | AR18: =Est2020DistRev!AD18/2 -> 0 | AT18: 13604.87317 | AU18: 364761.0734 | AV18: 0 | AW18: 0 | AX18: 0 | AY18: 46902.47789 | AZ18: 0 | BA18: 0 | BB18: 0 | BC18: 306189.0362 | BD18: 0 | BE18: 0 | BF18: 0 | BG18: 731457.4606 | BI18: 11830.31766 | BJ18: 406504.2048 | BK18: 0 | BL18: 0 | BM18: 0 | BN18: 52265.40292 | BO18: 0 | BP18: 0 | BQ18: 0 | BR18: 350206.8085 | BS18: 0 | BT18: 0 | BU18: 0 | BV18: 820806.7339
B19: Small Business - Unmetered Supply | C19: Small Business - Unmetered Supply | D19: 0 | E19: 8.57 | F19: 0 | G19: 0 | H19: 0 | I19: 1.543 | J19: 0 | K19: 0 | L19: 0 | M19: 0 | N19: 0 | O19: 0 | P19: 0 | R19: =Est2020DistRev!D19 -> 0 | S19: =Est2020DistRev!E19 -> 10.485 | T19: =Est2020DistRev!F19 -> 0 | U19: =Est2020DistRev!G19 -> 0 | V19: =Est2020DistRev!H19 -> 0 | W19: =Est2020DistRev!I19 -> 1.888 | X19: =Est2020DistRev!J19 -> 0 | Y19: =Est2020DistRev!K19 -> 0 | Z19: =Est2020DistRev!L19 -> 0 | AA19: =Est2020DistRev!M19 -> 0 | AB19: =Est2020DistRev!N19 -> 0 | AC19: =Est2020DistRev!O19 -> 0 | AD19: =Est2020DistRev!P19 -> 0 | AF19: 0 | AG19: 6906799.943 | AH19: =Est2020DistRev!T19/2 -> 0 | AI19: =Est2020DistRev!U19/2 -> 0 | AJ19: =Est2020DistRev!V19/2 -> 0 | AK19: 15374842.67 | AL19: =Est2020DistRev!X19/2 -> 0 | AM19: =Est2020DistRev!Y19/2 -> 0 | AN19: =Est2020DistRev!Z19/2 -> 0 | AO19: =Est2020DistRev!AA19/2 -> 0 | AP19: =Est2020DistRev!AB19/2 -> 0 | AQ19: =Est2020DistRev!AC19/2 -> 0 | AR19: =Est2020DistRev!AD19/2 -> 0 | AT19: 0 | AU19: 591912.7551 | AV19: 0 | AW19: 0 | AX19: 0 | AY19: 237233.8224 | AZ19: 0 | BA19: 0 | BB19: 0 | BC19: 0 | BD19: 0 | BE19: 0 | BF19: 0 | BG19: 829146.5775 | BI19: 0 | BJ19: 724177.974 | BK19: 0 | BL19: 0 | BM19: 0 | BN19: 290277.0296 | BO19: 0 | BP19: 0 | BQ19: 0 | BR19: 0 | BS19: 0 | BT19: 0 | BU19: 0 | BV19: 1014455.004
B20: Large Business - LV 0.4 - 0.8 GWh | C20: Large Business - LV 0.4 - 0.8 GWh | D20: 2465.437 | E20: 1.191 | F20: 0 | G20: 0 | H20: 0 | I20: 0.377 | J20: 0 | K20: 0 | L20: 0 | M20: 93.42 | N20: 0 | O20: 0 | P20: 0 | R20: =Est2020DistRev!D20 -> 2465.437 | S20: =Est2020DistRev!E20 -> 2.018 | T20: =Est2020DistRev!F20 -> 0 | U20: =Est2020DistRev!G20 -> 0 | V20: =Est2020DistRev!H20 -> 0 | W20: =Est2020DistRev!I20 -> 0.639 | X20: =Est2020DistRev!J20 -> 0 | Y20: =Est2020DistRev!K20 -> 0 | Z20: =Est2020DistRev!L20 -> 0 | AA20: =Est2020DistRev!M20 -> 100.021 | AB20: =Est2020DistRev!N20 -> 0 | AC20: =Est2020DistRev!O20 -> 0 | AD20: =Est2020DistRev!P20 -> 0 | AF20: 388.5597535 | AG20: 87157927.2 | AH20: =Est2020DistRev!T20/2 -> 0 | AI20: =Est2020DistRev!U20/2 -> 0 | AJ20: =Est2020DistRev!V20/2 -> 0 | AK20: 55986708.41 | AL20: =Est2020DistRev!X20/2 -> 0 | AM20: =Est2020DistRev!Y20/2 -> 0 | AN20: =Est2020DistRev!Z20/2 -> 0 | AO20: 72443.42972 | AP20: =Est2020DistRev!AB20/2 -> 0 | AQ20: =Est2020DistRev!AC20/2 -> 0 | AR20: =Est2020DistRev!AD20/2 -> 0 | AT20: 957969.593 | AU20: 1038050.913 | AV20: 0 | AW20: 0 | AX20: 0 | AY20: 211069.8907 | AZ20: 0 | BA20: 0 | BB20: 0 | BC20: 6767665.204 | BD20: 0 | BE20: 0 | BF20: 0 | BG20: 8974755.601 | BI20: 957969.593 | BJ20: 1758846.971 | BK20: 0 | BL20: 0 | BM20: 0 | BN20: 357755.0667 | BO20: 0 | BP20: 0 | BQ20: 0 | BR20: 7245864.284 | BS20: 0 | BT20: 0 | BU20: 0 | BV20: 10320435.91
B21: Large Business – LVEN Annual Consumption <= 0.8 GWh | C21: Large Business – LVEN Annual Consumption <= 0.8 GWh | D21: 2465.437 | E21: 1.191 | F21: 0 | G21: 0 | H21: 0 | I21: 0.377 | J21: 0 | K21: 0 | L21: 0 | M21: 105.401 | N21: 0 | O21: 0 | P21: 0 | R21: =Est2020DistRev!D21 -> 2465.437 | S21: =Est2020DistRev!E21 -> 2.036 | T21: =Est2020DistRev!F21 -> 0 | U21: =Est2020DistRev!G21 -> 0 | V21: =Est2020DistRev!H21 -> 0 | W21: =Est2020DistRev!I21 -> 0.639 | X21: =Est2020DistRev!J21 -> 0 | Y21: =Est2020DistRev!K21 -> 0 | Z21: =Est2020DistRev!L21 -> 0 | AA21: =Est2020DistRev!M21 -> 112.849 | AB21: =Est2020DistRev!N21 -> 0 | AC21: =Est2020DistRev!O21 -> 0 | AD21: =Est2020DistRev!P21 -> 0 | AF21: 37.27094958 | AG21: 8221991.161 | AH21: =Est2020DistRev!T21/2 -> 0 | AI21: =Est2020DistRev!U21/2 -> 0 | AJ21: =Est2020DistRev!V21/2 -> 0 | AK21: 5679598.85 | AL21: =Est2020DistRev!X21/2 -> 0 | AM21: =Est2020DistRev!Y21/2 -> 0 | AN21: =Est2020DistRev!Z21/2 -> 0 | AO21: 8689.771245 | AP21: =Est2020DistRev!AB21/2 -> 0 | AQ21: =Est2020DistRev!AC21/2 -> 0 | AR21: =Est2020DistRev!AD21/2 -> 0 | AT21: 91889.17812 | AU21: 97923.91473 | AV21: 0 | AW21: 0 | AX21: 0 | AY21: 21412.08766 | AZ21: 0 | BA21: 0 | BB21: 0 | BC21: 915910.579 | BD21: 0 | BE21: 0 | BF21: 0 | BG21: 1127135.759 | BI21: 91889.17812 | BJ21: 167399.74 | BK21: 0 | BL21: 0 | BM21: 0 | BN21: 36292.63665 | BO21: 0 | BP21: 0 | BQ21: 0 | BR21: 980631.9952 | BS21: 0 | BT21: 0 | BU21: 0 | BV21: 1276213.55
B22: Large Business - LV 0.8+ - 2.2 GWh | C22: Large Business - LV 0.8+ - 2.2 GWh | D22: 4315.529 | E22: 0.812 | F22: 0 | G22: 0 | H22: 0 | I22: 0.371 | J22: 0 | K22: 0 | L22: 0 | M22: 86.351 | N22: 0 | O22: 0 | P22: 0 | R22: =Est2020DistRev!D22 -> 4315.529 | S22: =Est2020DistRev!E22 -> 1.377 | T22: =Est2020DistRev!F22 -> 0 | U22: =Est2020DistRev!G22 -> 0 | V22: =Est2020DistRev!H22 -> 0 | W22: =Est2020DistRev!I22 -> 0.628 | X22: =Est2020DistRev!J22 -> 0 | Y22: =Est2020DistRev!K22 -> 0 | Z22: =Est2020DistRev!L22 -> 0 | AA22: =Est2020DistRev!M22 -> 92.453 | AB22: =Est2020DistRev!N22 -> 0 | AC22: =Est2020DistRev!O22 -> 0 | AD22: =Est2020DistRev!P22 -> 0 | AF22: 194.0865809 | AG22: 131452092.7 | AH22: =Est2020DistRev!T22/2 -> 0 | AI22: =Est2020DistRev!U22/2 -> 0 | AJ22: =Est2020DistRev!V22/2 -> 0 | AK22: 90838121.03 | AL22: =Est2020DistRev!X22/2 -> 0 | AM22: =Est2020DistRev!Y22/2 -> 0 | AN22: =Est2020DistRev!Z22/2 -> 0 | AO22: 89510.48129 | AP22: =Est2020DistRev!AB22/2 -> 0 | AQ22: =Est2020DistRev!AC22/2 -> 0 | AR22: =Est2020DistRev!AD22/2 -> 0 | AT22: 837586.2685 | AU22: 1067390.993 | AV22: 0 | AW22: 0 | AX22: 0 | AY22: 337009.429 | AZ22: 0 | BA22: 0 | BB22: 0 | BC22: 7729319.57 | BD22: 0 | BE22: 0 | BF22: 0 | BG22: 9971306.26 | BI22: 837586.2685 | BJ22: 1810095.316 | BK22: 0 | BL22: 0 | BM22: 0 | BN22: 570463.4001 | BO22: 0 | BP22: 0 | BQ22: 0 | BR22: 8275512.527 | BS22: 0 | BT22: 0 | BU22: 0 | BV22: 11493657.51
B23: Large Business - LVEN 0.8+ - 2.2 GWh | C23: Large Business - LVEN 0.8+ - 2.2 GWh | D23: 4315.529 | E23: 0.812 | F23: 0 | G23: 0 | H23: 0 | I23: 0.371 | J23: 0 | K23: 0 | L23: 0 | M23: 94.994 | N23: 0 | O23: 0 | P23: 0 | R23: =Est2020DistRev!D23 -> 4315.529 | S23: =Est2020DistRev!E23 -> 1.376 | T23: =Est2020DistRev!F23 -> 0 | U23: =Est2020DistRev!G23 -> 0 | V23: =Est2020DistRev!H23 -> 0 | W23: =Est2020DistRev!I23 -> 0.628 | X23: =Est2020DistRev!J23 -> 0 | Y23: =Est2020DistRev!K23 -> 0 | Z23: =Est2020DistRev!L23 -> 0 | AA23: =Est2020DistRev!M23 -> 101.707 | AB23: =Est2020DistRev!N23 -> 0 | AC23: =Est2020DistRev!O23 -> 0 | AD23: =Est2020DistRev!P23 -> 0 | AF23: 20.55964687 | AG23: 14920570.35 | AH23: =Est2020DistRev!T23/2 -> 0 | AI23: =Est2020DistRev!U23/2 -> 0 | AJ23: =Est2020DistRev!V23/2 -> 0 | AK23: 9815052.433 | AL23: =Est2020DistRev!X23/2 -> 0 | AM23: =Est2020DistRev!Y23/2 -> 0 | AN23: =Est2020DistRev!Z23/2 -> 0 | AO23: 9299.521264 | AP23: =Est2020DistRev!AB23/2 -> 0 | AQ23: =Est2020DistRev!AC23/2 -> 0 | AR23: =Est2020DistRev!AD23/2 -> 0 | AT23: 88725.75229 | AU23: 121155.0312 | AV23: 0 | AW23: 0 | AX23: 0 | AY23: 36413.84453 | AZ23: 0 | BA23: 0 | BB23: 0 | BC23: 883398.723 | BD23: 0 | BE23: 0 | BF23: 0 | BG23: 1129693.351 | BI23: 88725.75229 | BJ23: 205307.048 | BK23: 0 | BL23: 0 | BM23: 0 | BN23: 61638.52928 | BO23: 0 | BP23: 0 | BQ23: 0 | BR23: 945826.4092 | BS23: 0 | BT23: 0 | BU23: 0 | BV23: 1301497.739
B24: Large Business - LV 2.2+ - 6.0 GWh | C24: Large Business - LV 2.2+ - 6.0 GWh | D24: 6619.21 | E24: 0.743 | F24: 0 | G24: 0 | H24: 0 | I24: 0.301 | J24: 0 | K24: 0 | L24: 0 | M24: 85.419 | N24: 0 | O24: 0 | P24: 0 | R24: =Est2020DistRev!D24 -> 6619.21 | S24: =Est2020DistRev!E24 -> 1.26 | T24: =Est2020DistRev!F24 -> 0 | U24: =Est2020DistRev!G24 -> 0 | V24: =Est2020DistRev!H24 -> 0 | W24: =Est2020DistRev!I24 -> 0.511 | X24: =Est2020DistRev!J24 -> 0 | Y24: =Est2020DistRev!K24 -> 0 | Z24: =Est2020DistRev!L24 -> 0 | AA24: =Est2020DistRev!M24 -> 91.455 | AB24: =Est2020DistRev!N24 -> 0 | AC24: =Est2020DistRev!O24 -> 0 | AD24: =Est2020DistRev!P24 -> 0 | AF24: 37.25337723 | AG24: 60763995.95 | AH24: =Est2020DistRev!T24/2 -> 0 | AI24: =Est2020DistRev!U24/2 -> 0 | AJ24: =Est2020DistRev!V24/2 -> 0 | AK24: 45943073.61 | AL24: =Est2020DistRev!X24/2 -> 0 | AM24: =Est2020DistRev!Y24/2 -> 0 | AN24: =Est2020DistRev!Z24/2 -> 0 | AO24: 35969.74389 | AP24: =Est2020DistRev!AB24/2 -> 0 | AQ24: =Est2020DistRev!AC24/2 -> 0 | AR24: =Est2020DistRev!AD24/2 -> 0 | AT24: 246587.9271 | AU24: 451476.4899 | AV24: 0 | AW24: 0 | AX24: 0 | AY24: 138288.6516 | AZ24: 0 | BA24: 0 | BB24: 0 | BC24: 3072499.554 | BD24: 0 | BE24: 0 | BF24: 0 | BG24: 3908852.622 | BI24: 246587.9271 | BJ24: 765626.349 | BK24: 0 | BL24: 0 | BM24: 0 | BN24: 234769.1061 | BO24: 0 | BP24: 0 | BQ24: 0 | BR24: 3289612.928 | BS24: 0 | BT24: 0 | BU24: 0 | BV24: 4536596.31
B25: Large Business - LVEN 2.2+ GWh | C25: Large Business - LVEN 2.2+ GWh | D25: 6619.21 | E25: 0.743 | F25: 0 | G25: 0 | H25: 0 | I25: 0.301 | J25: 0 | K25: 0 | L25: 0 | M25: 90.209 | N25: 0 | O25: 0 | P25: 0 | R25: =Est2020DistRev!D25 -> 6619.21 | S25: =Est2020DistRev!E25 -> 1.26 | T25: =Est2020DistRev!F25 -> 0 | U25: =Est2020DistRev!G25 -> 0 | V25: =Est2020DistRev!H25 -> 0 | W25: =Est2020DistRev!I25 -> 0.511 | X25: =Est2020DistRev!J25 -> 0 | Y25: =Est2020DistRev!K25 -> 0 | Z25: =Est2020DistRev!L25 -> 0 | AA25: =Est2020DistRev!M25 -> 96.583 | AB25: =Est2020DistRev!N25 -> 0 | AC25: =Est2020DistRev!O25 -> 0 | AD25: =Est2020DistRev!P25 -> 0 | AF25: 8.417154573 | AG25: 10324851.16 | AH25: =Est2020DistRev!T25/2 -> 0 | AI25: =Est2020DistRev!U25/2 -> 0 | AJ25: =Est2020DistRev!V25/2 -> 0 | AK25: 7433408.886 | AL25: =Est2020DistRev!X25/2 -> 0 | AM25: =Est2020DistRev!Y25/2 -> 0 | AN25: =Est2020DistRev!Z25/2 -> 0 | AO25: 7906.606048 | AP25: =Est2020DistRev!AB25/2 -> 0 | AQ25: =Est2020DistRev!AC25/2 -> 0 | AR25: =Est2020DistRev!AD25/2 -> 0 | AT25: 55714.91372 | AU25: 76713.64413 | AV25: 0 | AW25: 0 | AX25: 0 | AY25: 22374.56075 | AZ25: 0 | BA25: 0 | BB25: 0 | BC25: 713247.025 | BD25: 0 | BE25: 0 | BF25: 0 | BG25: 868050.1436 | BI25: 55714.91372 | BJ25: 130093.1246 | BK25: 0 | BL25: 0 | BM25: 0 | BN25: 37984.71941 | BO25: 0 | BP25: 0 | BQ25: 0 | BR25: 763643.732 | BS25: 0 | BT25: 0 | BU25: 0 | BV25: 987436.4897
B26: Large Business - LVMS 2.2+ - 6.0 GWh | C26: Large Business - LVMS 2.2+ - 6.0 GWh | D26: 3901.284 | E26: 0.736 | F26: 0 | G26: 0 | H26: 0 | I26: 0.301 | J26: 0 | K26: 0 | L26: 0 | M26: 57.99 | N26: 0 | O26: 0 | P26: 0 | R26: =Est2020DistRev!D26 -> 3901.284 | S26: =Est2020DistRev!E26 -> 1.247 | T26: =Est2020DistRev!F26 -> 0 | U26: =Est2020DistRev!G26 -> 0 | V26: =Est2020DistRev!H26 -> 0 | W26: =Est2020DistRev!I26 -> 0.511 | X26: =Est2020DistRev!J26 -> 0 | Y26: =Est2020DistRev!K26 -> 0 | Z26: =Est2020DistRev!L26 -> 0 | AA26: =Est2020DistRev!M26 -> 62.088 | AB26: =Est2020DistRev!N26 -> 0 | AC26: =Est2020DistRev!O26 -> 0 | AD26: =Est2020DistRev!P26 -> 0 | AF26: 5.29401655 | AG26: 5811372.069 | AH26: =Est2020DistRev!T26/2 -> 0 | AI26: =Est2020DistRev!U26/2 -> 0 | AJ26: =Est2020DistRev!V26/2 -> 0 | AK26: 4687995.706 | AL26: =Est2020DistRev!X26/2 -> 0 | AM26: =Est2020DistRev!Y26/2 -> 0 | AN26: =Est2020DistRev!Z26/2 -> 0 | AO26: 3940.796569 | AP26: =Est2020DistRev!AB26/2 -> 0 | AQ26: =Est2020DistRev!AC26/2 -> 0 | AR26: =Est2020DistRev!AD26/2 -> 0 | AT26: 20653.46206 | AU26: 42771.69843 | AV26: 0 | AW26: 0 | AX26: 0 | AY26: 14110.86708 | AZ26: 0 | BA26: 0 | BB26: 0 | BC26: 228526.7931 | BD26: 0 | BE26: 0 | BF26: 0 | BG26: 306062.8206 | BI26: 20653.46206 | BJ26: 72467.8097 | BK26: 0 | BL26: 0 | BM26: 0 | BN26: 23955.65806 | BO26: 0 | BP26: 0 | BQ26: 0 | BR26: 244676.1774 | BS26: 0 | BT26: 0 | BU26: 0 | BV26: 361753.1072
B27: Large Business - LV 6.0+ GWh | C27: Large Business - LV 6.0+ GWh | D27: 9072.511 | E27: 0.723 | F27: 0 | G27: 0 | H27: 0 | I27: 0.268 | J27: 0 | K27: 0 | L27: 0 | M27: 82.036 | N27: 0 | O27: 0 | P27: 0 | R27: =Est2020DistRev!D27 -> 9072.511 | S27: =Est2020DistRev!E27 -> 1.225 | T27: =Est2020DistRev!F27 -> 0 | U27: =Est2020DistRev!G27 -> 0 | V27: =Est2020DistRev!H27 -> 0 | W27: =Est2020DistRev!I27 -> 0.455 | X27: =Est2020DistRev!J27 -> 0 | Y27: =Est2020DistRev!K27 -> 0 | Z27: =Est2020DistRev!L27 -> 0 | AA27: =Est2020DistRev!M27 -> 87.833 | AB27: =Est2020DistRev!N27 -> 0 | AC27: =Est2020DistRev!O27 -> 0 | AD27: =Est2020DistRev!P27 -> 0 | AF27: 11.31659195 | AG27: 25847888.3 | AH27: =Est2020DistRev!T27/2 -> 0 | AI27: =Est2020DistRev!U27/2 -> 0 | AJ27: =Est2020DistRev!V27/2 -> 0 | AK27: 21661553.61 | AL27: =Est2020DistRev!X27/2 -> 0 | AM27: =Est2020DistRev!Y27/2 -> 0 | AN27: =Est2020DistRev!Z27/2 -> 0 | AO27: 13828.37315 | AP27: =Est2020DistRev!AB27/2 -> 0 | AQ27: =Est2020DistRev!AC27/2 -> 0 | AR27: =Est2020DistRev!AD27/2 -> 0 | AT27: 102669.905 | AU27: 186880.2324 | AV27: 0 | AW27: 0 | AX27: 0 | AY27: 58052.96366 | AZ27: 0 | BA27: 0 | BB27: 0 | BC27: 1134424.42 | BD27: 0 | BE27: 0 | BF27: 0 | BG27: 1482027.521 | BI27: 102669.905 | BJ27: 316636.6317 | BK27: 0 | BL27: 0 | BM27: 0 | BN27: 98560.0689 | BO27: 0 | BP27: 0 | BQ27: 0 | BR27: 1214587.499 | BS27: 0 | BT27: 0 | BU27: 0 | BV27: 1732454.104
B28: Large Business - LVMS 6.0+ GWh | C28: Large Business - LVMS 6.0+ GWh | D28: 5268.972 | E28: 0.723 | F28: 0 | G28: 0 | H28: 0 | I28: 0.268 | J28: 0 | K28: 0 | L28: 0 | M28: 58.088 | N28: 0 | O28: 0 | P28: 0 | R28: =Est2020DistRev!D28 -> 5268.972 | S28: =Est2020DistRev!E28 -> 1.225 | T28: =Est2020DistRev!F28 -> 0 | U28: =Est2020DistRev!G28 -> 0 | V28: =Est2020DistRev!H28 -> 0 | W28: =Est2020DistRev!I28 -> 0.455 | X28: =Est2020DistRev!J28 -> 0 | Y28: =Est2020DistRev!K28 -> 0 | Z28: =Est2020DistRev!L28 -> 0 | AA28: =Est2020DistRev!M28 -> 62.193 | AB28: =Est2020DistRev!N28 -> 0 | AC28: =Est2020DistRev!O28 -> 0 | AD28: =Est2020DistRev!P28 -> 0 | AF28: 14.43822695 | AG28: 26286303.39 | AH28: =Est2020DistRev!T28/2 -> 0 | AI28: =Est2020DistRev!U28/2 -> 0 | AJ28: =Est2020DistRev!V28/2 -> 0 | AK28: 20462464.55 | AL28: =Est2020DistRev!X28/2 -> 0 | AM28: =Est2020DistRev!Y28/2 -> 0 | AN28: =Est2020DistRev!Z28/2 -> 0 | AO28: 14512.00271 | AP28: =Est2020DistRev!AB28/2 -> 0 | AQ28: =Est2020DistRev!AC28/2 -> 0 | AR28: =Est2020DistRev!AD28/2 -> 0 | AT28: 76074.61355 | AU28: 190049.9735 | AV28: 0 | AW28: 0 | AX28: 0 | AY28: 54839.40498 | AZ28: 0 | BA28: 0 | BB28: 0 | BC28: 842973.2133 | BD28: 0 | BE28: 0 | BF28: 0 | BG28: 1163937.205 | BI28: 76074.61355 | BJ28: 322007.2165 | BK28: 0 | BL28: 0 | BM28: 0 | BN28: 93104.21369 | BO28: 0 | BP28: 0 | BQ28: 0 | BR28: 902544.9844 | BS28: 0 | BT28: 0 | BU28: 0 | BV28: 1393731.028
B29: Large Business - HV | C29: Large Business - HV | D29: 6494.215 | E29: 0.459 | F29: 0 | G29: 0 | H29: 0 | I29: 0.133 | J29: 0 | K29: 0 | L29: 0 | M29: 68.846 | N29: 0 | O29: 0 | P29: 0 | R29: =Est2020DistRev!D29 -> 6494.215 | S29: =Est2020DistRev!E29 -> 0.819 | T29: =Est2020DistRev!F29 -> 0 | U29: =Est2020DistRev!G29 -> 0 | V29: =Est2020DistRev!H29 -> 0 | W29: =Est2020DistRev!I29 -> 0.237 | X29: =Est2020DistRev!J29 -> 0 | Y29: =Est2020DistRev!K29 -> 0 | Z29: =Est2020DistRev!L29 -> 0 | AA29: =Est2020DistRev!M29 -> 73.632 | AB29: =Est2020DistRev!N29 -> 0 | AC29: =Est2020DistRev!O29 -> 0 | AD29: =Est2020DistRev!P29 -> 0 | AF29: 44.37266667 | AG29: 123977469.7 | AH29: =Est2020DistRev!T29/2 -> 0 | AI29: =Est2020DistRev!U29/2 -> 0 | AJ29: =Est2020DistRev!V29/2 -> 0 | AK29: 98362237.17 | AL29: =Est2020DistRev!X29/2 -> 0 | AM29: =Est2020DistRev!Y29/2 -> 0 | AN29: =Est2020DistRev!Z29/2 -> 0 | AO29: 92928.2636 | AP29: =Est2020DistRev!AB29/2 -> 0 | AQ29: =Est2020DistRev!AC29/2 -> 0 | AR29: =Est2020DistRev!AD29/2 -> 0 | AT29: 288165.6375 | AU29: 569056.5861 | AV29: 0 | AW29: 0 | AX29: 0 | AY29: 130821.7754 | AZ29: 0 | BA29: 0 | BB29: 0 | BC29: 6397739.236 | BD29: 0 | BE29: 0 | BF29: 0 | BG29: 7385783.235 | BI29: 288165.6375 | BJ29: 1015375.477 | BK29: 0 | BL29: 0 | BM29: 0 | BN29: 233118.5021 | BO29: 0 | BP29: 0 | BQ29: 0 | BR29: 6842493.906 | BS29: 0 | BT29: 0 | BU29: 0 | BV29: 8379153.522
B30: Large Business – HVEN | C30: Large Business – HVEN | D30: 6494.215 | E30: 0.459 | F30: 0 | G30: 0 | H30: 0 | I30: 0.133 | J30: 0 | K30: 0 | L30: 0 | M30: 70.932 | N30: 0 | O30: 0 | P30: 0 | R30: =Est2020DistRev!D30 -> 6494.215 | S30: =Est2020DistRev!E30 -> 0.822 | T30: =Est2020DistRev!F30 -> 0 | U30: =Est2020DistRev!G30 -> 0 | V30: =Est2020DistRev!H30 -> 0 | W30: =Est2020DistRev!I30 -> 0.237 | X30: =Est2020DistRev!J30 -> 0 | Y30: =Est2020DistRev!K30 -> 0 | Z30: =Est2020DistRev!L30 -> 0 | AA30: =Est2020DistRev!M30 -> 75.863 | AB30: =Est2020DistRev!N30 -> 0 | AC30: =Est2020DistRev!O30 -> 0 | AD30: =Est2020DistRev!P30 -> 0 | AF30: 1 | AH30: =Est2020DistRev!T30/2 -> 0 | AI30: =Est2020DistRev!U30/2 -> 0 | AJ30: =Est2020DistRev!V30/2 -> 0 | AL30: =Est2020DistRev!X30/2 -> 0 | AM30: =Est2020DistRev!Y30/2 -> 0 | AN30: =Est2020DistRev!Z30/2 -> 0 | AP30: =Est2020DistRev!AB30/2 -> 0 | AQ30: =Est2020DistRev!AC30/2 -> 0 | AR30: =Est2020DistRev!AD30/2 -> 0 | AT30: 6494.215 | AV30: 0 | AW30: 0 | AX30: 0 | AZ30: 0 | BA30: 0 | BB30: 0 | BD30: 0 | BE30: 0 | BF30: 0 | BI30: 6494.215 | BK30: 0 | BL30: 0 | BM30: 0 | BO30: 0 | BP30: 0 | BQ30: 0 | BS30: 0 | BT30: 0 | BU30: 0
B31: Large Business - HVRF | C31: Large Business - HVRF | D31: 6494.215 | E31: 0.454 | F31: 0 | G31: 0 | H31: 0 | I31: 0.133 | J31: 0 | K31: 0 | L31: 0 | M31: 63.26 | N31: 0 | O31: 0 | P31: 0 | R31: =Est2020DistRev!D31 -> 6494.215 | S31: =Est2020DistRev!E31 -> 0.811 | T31: =Est2020DistRev!F31 -> 0 | U31: =Est2020DistRev!G31 -> 0 | V31: =Est2020DistRev!H31 -> 0 | W31: =Est2020DistRev!I31 -> 0.237 | X31: =Est2020DistRev!J31 -> 0 | Y31: =Est2020DistRev!K31 -> 0 | Z31: =Est2020DistRev!L31 -> 0 | AA31: =Est2020DistRev!M31 -> 67.658 | AB31: =Est2020DistRev!N31 -> 0 | AC31: =Est2020DistRev!O31 -> 0 | AD31: =Est2020DistRev!P31 -> 0 | AF31: 0.9833333333 | AH31: =Est2020DistRev!T31/2 -> 0 | AI31: =Est2020DistRev!U31/2 -> 0 | AJ31: =Est2020DistRev!V31/2 -> 0 | AL31: =Est2020DistRev!X31/2 -> 0 | AM31: =Est2020DistRev!Y31/2 -> 0 | AN31: =Est2020DistRev!Z31/2 -> 0 | AP31: =Est2020DistRev!AB31/2 -> 0 | AQ31: =Est2020DistRev!AC31/2 -> 0 | AR31: =Est2020DistRev!AD31/2 -> 0 | AT31: 6385.978083 | AV31: 0 | AW31: 0 | AX31: 0 | AZ31: 0 | BA31: 0 | BB31: 0 | BD31: 0 | BE31: 0 | BF31: 0 | BI31: 6385.978083 | BK31: 0 | BL31: 0 | BM31: 0 | BO31: 0 | BP31: 0 | BQ31: 0 | BS31: 0 | BT31: 0 | BU31: 0
B32: Large Business - HV Ann Cons >= 55GWh | C32: Large Business - HV Ann Cons >= 55GWh | D32: 6066.261 | E32: 0.438 | F32: 0 | G32: 0 | H32: 0 | I32: 0.103 | J32: 0 | K32: 0 | L32: 0 | M32: 61.082 | N32: 0 | O32: 0 | P32: 0 | R32: =Est2020DistRev!D32 -> 6066.261 | S32: =Est2020DistRev!E32 -> 0.782 | T32: =Est2020DistRev!F32 -> 0 | U32: =Est2020DistRev!G32 -> 0 | V32: =Est2020DistRev!H32 -> 0 | W32: =Est2020DistRev!I32 -> 0.184 | X32: =Est2020DistRev!J32 -> 0 | Y32: =Est2020DistRev!K32 -> 0 | Z32: =Est2020DistRev!L32 -> 0 | AA32: =Est2020DistRev!M32 -> 65.328 | AB32: =Est2020DistRev!N32 -> 0 | AC32: =Est2020DistRev!O32 -> 0 | AD32: =Est2020DistRev!P32 -> 0 | AF32: 0.5 | AH32: =Est2020DistRev!T32/2 -> 0 | AI32: =Est2020DistRev!U32/2 -> 0 | AJ32: =Est2020DistRev!V32/2 -> 0 | AL32: =Est2020DistRev!X32/2 -> 0 | AM32: =Est2020DistRev!Y32/2 -> 0 | AN32: =Est2020DistRev!Z32/2 -> 0 | AP32: =Est2020DistRev!AB32/2 -> 0 | AQ32: =Est2020DistRev!AC32/2 -> 0 | AR32: =Est2020DistRev!AD32/2 -> 0 | AT32: 3033.1305 | AV32: 0 | AW32: 0 | AX32: 0 | AZ32: 0 | BA32: 0 | BB32: 0 | BD32: 0 | BE32: 0 | BF32: 0 | BI32: 3033.1305 | BK32: 0 | BL32: 0 | BM32: 0 | BO32: 0 | BP32: 0 | BQ32: 0 | BS32: 0 | BT32: 0 | BU32: 0
B33: Large Business - Subtransmission | C33: Large Business - Subtransmission | D33: 40563.08 | E33: 0.076 | F33: 0 | G33: 0 | H33: 0 | I33: 0.022 | J33: 0 | K33: 0 | L33: 0 | M33: 18.593 | N33: 0 | O33: 0 | P33: 0 | R33: =Est2020DistRev!D33 -> 40563.08 | S33: =Est2020DistRev!E33 -> 0.153 | T33: =Est2020DistRev!F33 -> 0 | U33: =Est2020DistRev!G33 -> 0 | V33: =Est2020DistRev!H33 -> 0 | W33: =Est2020DistRev!I33 -> 0.045 | X33: =Est2020DistRev!J33 -> 0 | Y33: =Est2020DistRev!K33 -> 0 | Z33: =Est2020DistRev!L33 -> 0 | AA33: =Est2020DistRev!M33 -> 20.197 | AB33: =Est2020DistRev!N33 -> 0 | AC33: =Est2020DistRev!O33 -> 0 | AD33: =Est2020DistRev!P33 -> 0 | AE33: =Est2020DistRev!Q33 -> 0 | AF33: 1.5 | AH33: =Est2020DistRev!T33/2 -> 0 | AI33: =Est2020DistRev!U33/2 -> 0 | AJ33: =Est2020DistRev!V33/2 -> 0 | AL33: =Est2020DistRev!X33/2 -> 0 | AM33: =Est2020DistRev!Y33/2 -> 0 | AN33: =Est2020DistRev!Z33/2 -> 0 | AP33: =Est2020DistRev!AB33/2 -> 0 | AQ33: =Est2020DistRev!AC33/2 -> 0 | AR33: =Est2020DistRev!AD33/2 -> 0 | AT33: 60844.62 | AV33: 0 | AW33: 0 | AX33: 0 | AZ33: 0 | BA33: 0 | BB33: 0 | BD33: 0 | BE33: 0 | BF33: 0 | BI33: 60844.62 | BK33: 0 | BL33: 0 | BM33: 0 | BO33: 0 | BP33: 0 | BQ33: 0 | BS33: 0 | BT33: 0 | BU33: 0
B34: Large Business - Subtransmission MA | C34: Large Business - Subtransmission MA | D34: 40563.08 | E34: 0.076 | F34: 0 | G34: 0 | H34: 0 | I34: 0.022 | J34: 0 | K34: 0 | L34: 0 | M34: 18.671 | N34: 0 | O34: 0 | P34: 0 | R34: =Est2020DistRev!D34 -> 40563.08 | S34: =Est2020DistRev!E34 -> 0.153 | T34: =Est2020DistRev!F34 -> 0 | U34: =Est2020DistRev!G34 -> 0 | V34: =Est2020DistRev!H34 -> 0 | W34: =Est2020DistRev!I34 -> 0.045 | X34: =Est2020DistRev!J34 -> 0 | Y34: =Est2020DistRev!K34 -> 0 | Z34: =Est2020DistRev!L34 -> 0 | AA34: =Est2020DistRev!M34 -> 20.281 | AB34: =Est2020DistRev!N34 -> 0 | AC34: =Est2020DistRev!O34 -> 0 | AD34: =Est2020DistRev!P34 -> 0 | AE34: =Est2020DistRev!Q34 -> 0 | AF34: 0.5 | AH34: =Est2020DistRev!T34/2 -> 0 | AI34: =Est2020DistRev!U34/2 -> 0 | AJ34: =Est2020DistRev!V34/2 -> 0 | AL34: =Est2020DistRev!X34/2 -> 0 | AM34: =Est2020DistRev!Y34/2 -> 0 | AN34: =Est2020DistRev!Z34/2 -> 0 | AP34: =Est2020DistRev!AB34/2 -> 0 | AQ34: =Est2020DistRev!AC34/2 -> 0 | AR34: =Est2020DistRev!AD34/2 -> 0 | AT34: 20281.54 | AV34: 0 | AW34: 0 | AX34: 0 | AZ34: 0 | BA34: 0 | BB34: 0 | BD34: 0 | BE34: 0 | BF34: 0 | BI34: 20281.54 | BK34: 0 | BL34: 0 | BM34: 0 | BO34: 0 | BP34: 0 | BQ34: 0 | BS34: 0 | BT34: 0 | BU34: 0
B35: Large Business - Subtransmission EG | C35: Large Business - Subtransmission EG | D35: 31516.884 | E35: 0.073 | F35: 0 | G35: 0 | H35: 0 | I35: 0.011 | J35: 0 | K35: 0 | L35: 0 | M35: 3.202 | N35: 0 | O35: 0 | P35: 0 | R35: =Est2020DistRev!D35 -> 31516.884 | S35: =Est2020DistRev!E35 -> 0.146 | T35: =Est2020DistRev!F35 -> 0 | U35: =Est2020DistRev!G35 -> 0 | V35: =Est2020DistRev!H35 -> 0 | W35: =Est2020DistRev!I35 -> 0.023 | X35: =Est2020DistRev!J35 -> 0 | Y35: =Est2020DistRev!K35 -> 0 | Z35: =Est2020DistRev!L35 -> 0 | AA35: =Est2020DistRev!M35 -> 3.478 | AB35: =Est2020DistRev!N35 -> 0 | AC35: =Est2020DistRev!O35 -> 0 | AD35: =Est2020DistRev!P35 -> 0 | AE35: =Est2020DistRev!Q35 -> 0 | AF35: 0.5 | AH35: =Est2020DistRev!T35/2 -> 0 | AI35: =Est2020DistRev!U35/2 -> 0 | AJ35: =Est2020DistRev!V35/2 -> 0 | AL35: =Est2020DistRev!X35/2 -> 0 | AM35: =Est2020DistRev!Y35/2 -> 0 | AN35: =Est2020DistRev!Z35/2 -> 0 | AP35: =Est2020DistRev!AB35/2 -> 0 | AQ35: =Est2020DistRev!AC35/2 -> 0 | AR35: =Est2020DistRev!AD35/2 -> 0 | AT35: 15758.442 | AV35: =F35/100*AH35 -> 0 | AW35: 0 | AX35: 0 | AZ35: 0 | BA35: 0 | BB35: 0 | BD35: =N35*AP35 -> 0 | BE35: =O35*AQ35 -> 0 | BF35: =P35*AR35 -> 0 | BI35: =R35*AF35 -> 15758.442 | BK35: =T35/100*AH35 -> 0 | BL35: =U35/100*AI35 -> 0 | BM35: =V35/100*AJ35 -> 0 | BO35: =X35/100*AL35 -> 0 | BP35: =Y35/100*AM35 -> 0 | BQ35: =Z35/100*AN35 -> 0 | BS35: =AB35*AP35 -> 0 | BT35: =AC35*AQ35 -> 0 | BU35: =AD35*AR35 -> 0
R36: =Est2020DistRev!D36 -> 0 | S36: =Est2020DistRev!E36 -> 0 | T36: =Est2020DistRev!F36 -> 0 | U36: =Est2020DistRev!G36 -> 0 | V36: =Est2020DistRev!H36 -> 0 | W36: =Est2020DistRev!I36 -> 0 | X36: =Est2020DistRev!J36 -> 0 | Y36: =Est2020DistRev!K36 -> 0 | Z36: =Est2020DistRev!L36 -> 0 | AA36: =Est2020DistRev!M36 -> 0 | AB36: =Est2020DistRev!N36 -> 0 | AC36: =Est2020DistRev!O36 -> 0 | AD36: =Est2020DistRev!P36 -> 0 | AF36: =Est2020DistRev!R36/2 -> 0 | AG36: =Est2020DistRev!S36/2 -> 0 | AH36: =Est2020DistRev!T36/2 -> 0 | AI36: =Est2020DistRev!U36/2 -> 0 | AJ36: =Est2020DistRev!V36/2 -> 0 | AK36: =Est2020DistRev!W36/2 -> 0 | AL36: =Est2020DistRev!X36/2 -> 0 | AM36: =Est2020DistRev!Y36/2 -> 0 | AN36: =Est2020DistRev!Z36/2 -> 0 | AO36: =Est2020DistRev!AA36/2 -> 0 | AP36: =Est2020DistRev!AB36/2 -> 0 | AQ36: =Est2020DistRev!AC36/2 -> 0 | AR36: =Est2020DistRev!AD36/2 -> 0 | AT36: 0 | AU36: 0 | AV36: 0 | AW36: 0 | AX36: 0 | AY36: 0 | AZ36: 0 | BA36: 0 | BB36: 0 | BC36: 0 | BD36: 0 | BE36: 0 | BF36: 0 | BG36: 0 | BI36: 0 | BJ36: 0 | BK36: 0 | BL36: 0 | BM36: 0 | BN36: 0 | BO36: 0 | BP36: 0 | BQ36: 0 | BR36: 0 | BS36: 0 | BT36: 0 | BU36: 0 | BV36: 0
R37: =Est2020DistRev!D37 -> 0 | S37: =Est2020DistRev!E37 -> 0 | T37: =Est2020DistRev!F37 -> 0 | U37: =Est2020DistRev!G37 -> 0 | V37: =Est2020DistRev!H37 -> 0 | W37: =Est2020DistRev!I37 -> 0 | X37: =Est2020DistRev!J37 -> 0 | Y37: =Est2020DistRev!K37 -> 0 | Z37: =Est2020DistRev!L37 -> 0 | AA37: =Est2020DistRev!M37 -> 0 | AB37: =Est2020DistRev!N37 -> 0 | AC37: =Est2020DistRev!O37 -> 0 | AD37: =Est2020DistRev!P37 -> 0 | AF37: =Est2020DistRev!R37/2 -> 0 | AG37: =Est2020DistRev!S37/2 -> 0 | AH37: =Est2020DistRev!T37/2 -> 0 | AI37: =Est2020DistRev!U37/2 -> 0 | AJ37: =Est2020DistRev!V37/2 -> 0 | AK37: =Est2020DistRev!W37/2 -> 0 | AL37: =Est2020DistRev!X37/2 -> 0 | AM37: =Est2020DistRev!Y37/2 -> 0 | AN37: =Est2020DistRev!Z37/2 -> 0 | AO37: =Est2020DistRev!AA37/2 -> 0 | AP37: =Est2020DistRev!AB37/2 -> 0 | AQ37: =Est2020DistRev!AC37/2 -> 0 | AR37: =Est2020DistRev!AD37/2 -> 0 | AT37: 0 | AU37: 0 | AV37: 0 | AW37: 0 | AX37: 0 | AY37: 0 | AZ37: 0 | BA37: 0 | BB37: 0 | BC37: 0 | BD37: 0 | BE37: 0 | BF37: 0 | BG37: 0 | BI37: 0 | BJ37: 0 | BK37: 0 | BL37: 0 | BM37: 0 | BN37: 0 | BO37: 0 | BP37: 0 | BQ37: 0 | BR37: 0 | BS37: 0 | BT37: 0 | BU37: 0 | BV37: 0
R38: =Est2020DistRev!D38 -> 0 | S38: =Est2020DistRev!E38 -> 0 | T38: =Est2020DistRev!F38 -> 0 | U38: =Est2020DistRev!G38 -> 0 | V38: =Est2020DistRev!H38 -> 0 | W38: =Est2020DistRev!I38 -> 0 | X38: =Est2020DistRev!J38 -> 0 | Y38: =Est2020DistRev!K38 -> 0 | Z38: =Est2020DistRev!L38 -> 0 | AA38: =Est2020DistRev!M38 -> 0 | AB38: =Est2020DistRev!N38 -> 0 | AC38: =Est2020DistRev!O38 -> 0 | AD38: =Est2020DistRev!P38 -> 0 | AF38: =Est2020DistRev!R38/2 -> 0 | AG38: =Est2020DistRev!S38/2 -> 0 | AH38: =Est2020DistRev!T38/2 -> 0 | AI38: =Est2020DistRev!U38/2 -> 0 | AJ38: =Est2020DistRev!V38/2 -> 0 | AK38: =Est2020DistRev!W38/2 -> 0 | AL38: =Est2020DistRev!X38/2 -> 0 | AM38: =Est2020DistRev!Y38/2 -> 0 | AN38: =Est2020DistRev!Z38/2 -> 0 | AO38: =Est2020DistRev!AA38/2 -> 0 | AP38: =Est2020DistRev!AB38/2 -> 0 | AQ38: =Est2020DistRev!AC38/2 -> 0 | AR38: =Est2020DistRev!AD38/2 -> 0 | AT38: 0 | AU38: 0 | AV38: 0 | AW38: 0 | AX38: 0 | AY38: 0 | AZ38: 0 | BA38: 0 | BB38: =L38/100*AN38 -> 0 | BC38: 0 | BD38: 0 | BE38: 0 | BF38: 0 | BG38: 0 | BI38: 0 | BJ38: 0 | BK38: 0 | BL38: 0 | BM38: 0 | BN38: 0 | BO38: 0 | BP38: 0 | BQ38: 0 | BR38: 0 | BS38: 0 | BT38: 0 | BU38: 0 | BV38: 0
R39: =Est2020DistRev!D39 -> 0 | S39: =Est2020DistRev!E39 -> 0 | T39: =Est2020DistRev!F39 -> 0 | U39: =Est2020DistRev!G39 -> 0 | V39: =Est2020DistRev!H39 -> 0 | W39: =Est2020DistRev!I39 -> 0 | X39: =Est2020DistRev!J39 -> 0 | Y39: =Est2020DistRev!K39 -> 0 | Z39: =Est2020DistRev!L39 -> 0 | AA39: =Est2020DistRev!M39 -> 0 | AB39: =Est2020DistRev!N39 -> 0 | AC39: =Est2020DistRev!O39 -> 0 | AD39: =Est2020DistRev!P39 -> 0 | AF39: =Est2020DistRev!R39/2 -> 0 | AG39: =Est2020DistRev!S39/2 -> 0 | AH39: =Est2020DistRev!T39/2 -> 0 | AI39: =Est2020DistRev!U39/2 -> 0 | AJ39: =Est2020DistRev!V39/2 -> 0 | AK39: =Est2020DistRev!W39/2 -> 0 | AL39: =Est2020DistRev!X39/2 -> 0 | AM39: =Est2020DistRev!Y39/2 -> 0 | AN39: =Est2020DistRev!Z39/2 -> 0 | AO39: =Est2020DistRev!AA39/2 -> 0 | AP39: =Est2020DistRev!AB39/2 -> 0 | AQ39: =Est2020DistRev!AC39/2 -> 0 | AR39: =Est2020DistRev!AD39/2 -> 0 | AT39: 0 | AU39: 0 | AV39: 0 | AW39: 0 | AX39: 0 | AY39: 0 | AZ39: 0 | BA39: 0 | BB39: 0 | BC39: 0 | BD39: 0 | BE39: 0 | BF39: 0 | BG39: 0 | BI39: 0 | BJ39: 0 | BK39: 0 | BL39: 0 | BM39: 0 | BN39: 0 | BO39: 0 | BP39: 0 | BQ39: 0 | BR39: 0 | BS39: 0 | BT39: 0 | BU39: 0 | BV39: 0
R40: =Est2020DistRev!D40 -> 0 | S40: =Est2020DistRev!E40 -> 0 | T40: =Est2020DistRev!F40 -> 0 | U40: =Est2020DistRev!G40 -> 0 | V40: =Est2020DistRev!H40 -> 0 | W40: =Est2020DistRev!I40 -> 0 | X40: =Est2020DistRev!J40 -> 0 | Y40: =Est2020DistRev!K40 -> 0 | Z40: =Est2020DistRev!L40 -> 0 | AA40: =Est2020DistRev!M40 -> 0 | AB40: =Est2020DistRev!N40 -> 0 | AC40: =Est2020DistRev!O40 -> 0 | AD40: =Est2020DistRev!P40 -> 0 | AF40: =Est2020DistRev!R40/2 -> 0 | AG40: =Est2020DistRev!S40/2 -> 0 | AH40: =Est2020DistRev!T40/2 -> 0 | AI40: =Est2020DistRev!U40/2 -> 0 | AJ40: =Est2020DistRev!V40/2 -> 0 | AK40: =Est2020DistRev!W40/2 -> 0 | AL40: =Est2020DistRev!X40/2 -> 0 | AM40: =Est2020DistRev!Y40/2 -> 0 | AN40: =Est2020DistRev!Z40/2 -> 0 | AO40: =Est2020DistRev!AA40/2 -> 0 | AP40: =Est2020DistRev!AB40/2 -> 0 | AQ40: =Est2020DistRev!AC40/2 -> 0 | AR40: =Est2020DistRev!AD40/2 -> 0 | AT40: 0 | AU40: 0 | AV40: 0 | AW40: 0 | AX40: 0 | AY40: 0 | AZ40: 0 | BA40: 0 | BB40: 0 | BC40: 0 | BD40: 0 | BE40: 0 | BF40: 0 | BG40: 0 | BI40: 0 | BJ40: 0 | BK40: 0 | BL40: 0 | BM40: 0 | BN40: 0 | BO40: 0 | BP40: 0 | BQ40: 0 | BR40: 0 | BS40: 0 | BT40: 0 | BU40: 0 | BV40: 0
R41: =Est2020DistRev!D41 -> 0 | S41: =Est2020DistRev!E41 -> 0 | T41: =Est2020DistRev!F41 -> 0 | U41: =Est2020DistRev!G41 -> 0 | V41: =Est2020DistRev!H41 -> 0 | W41: =Est2020DistRev!I41 -> 0 | X41: =Est2020DistRev!J41 -> 0 | Y41: =Est2020DistRev!K41 -> 0 | Z41: =Est2020DistRev!L41 -> 0 | AA41: =Est2020DistRev!M41 -> 0 | AB41: =Est2020DistRev!N41 -> 0 | AC41: =Est2020DistRev!O41 -> 0 | AD41: =Est2020DistRev!P41 -> 0 | AF41: =Est2020DistRev!R41/2 -> 0 | AG41: =Est2020DistRev!S41/2 -> 0 | AH41: =Est2020DistRev!T41/2 -> 0 | AI41: =Est2020DistRev!U41/2 -> 0 | AJ41: =Est2020DistRev!V41/2 -> 0 | AK41: =Est2020DistRev!W41/2 -> 0 | AL41: =Est2020DistRev!X41/2 -> 0 | AM41: =Est2020DistRev!Y41/2 -> 0 | AN41: =Est2020DistRev!Z41/2 -> 0 | AO41: =Est2020DistRev!AA41/2 -> 0 | AP41: =Est2020DistRev!AB41/2 -> 0 | AQ41: =Est2020DistRev!AC41/2 -> 0 | AR41: =Est2020DistRev!AD41/2 -> 0 | AT41: 0 | AU41: 0 | AV41: 0 | AW41: 0 | AX41: 0 | AY41: 0 | AZ41: 0 | BA41: 0 | BB41: 0 | BC41: 0 | BD41: 0 | BE41: 0 | BF41: 0 | BG41: 0 | BI41: 0 | BJ41: 0 | BK41: 0 | BL41: 0 | BM41: 0 | BN41: 0 | BO41: 0 | BP41: 0 | BQ41: 0 | BR41: 0 | BS41: 0 | BT41: 0 | BU41: 0 | BV41: 0
R42: =Est2020DistRev!D42 -> 0 | S42: =Est2020DistRev!E42 -> 0 | T42: =Est2020DistRev!F42 -> 0 | U42: =Est2020DistRev!G42 -> 0 | V42: =Est2020DistRev!H42 -> 0 | W42: =Est2020DistRev!I42 -> 0 | X42: =Est2020DistRev!J42 -> 0 | Y42: =Est2020DistRev!K42 -> 0 | Z42: =Est2020DistRev!L42 -> 0 | AA42: =Est2020DistRev!M42 -> 0 | AB42: =Est2020DistRev!N42 -> 0 | AC42: =Est2020DistRev!O42 -> 0 | AD42: =Est2020DistRev!P42 -> 0 | AF42: =Est2020DistRev!R42/2 -> 0 | AG42: =Est2020DistRev!S42/2 -> 0 | AH42: =Est2020DistRev!T42/2 -> 0 | AI42: =Est2020DistRev!U42/2 -> 0 | AJ42: =Est2020DistRev!V42/2 -> 0 | AK42: =Est2020DistRev!W42/2 -> 0 | AL42: =Est2020DistRev!X42/2 -> 0 | AM42: =Est2020DistRev!Y42/2 -> 0 | AN42: =Est2020DistRev!Z42/2 -> 0 | AO42: =Est2020DistRev!AA42/2 -> 0 | AP42: =Est2020DistRev!AB42/2 -> 0 | AQ42: =Est2020DistRev!AC42/2 -> 0 | AR42: =Est2020DistRev!AD42/2 -> 0 | AT42: 0 | AU42: 0 | AV42: 0 | AW42: 0 | AX42: 0 | AY42: 0 | AZ42: 0 | BA42: 0 | BB42: 0 | BC42: 0 | BD42: 0 | BE42: 0 | BF42: 0 | BG42: 0 | BI42: 0 | BJ42: 0 | BK42: 0 | BL42: 0 | BM42: 0 | BN42: 0 | BO42: 0 | BP42: 0 | BQ42: 0 | BR42: 0 | BS42: 0 | BT42: 0 | BU42: 0 | BV42: 0
R43: =Est2020DistRev!D43 -> 0 | S43: =Est2020DistRev!E43 -> 0 | T43: =Est2020DistRev!F43 -> 0 | U43: =Est2020DistRev!G43 -> 0 | V43: =Est2020DistRev!H43 -> 0 | W43: =Est2020DistRev!I43 -> 0 | X43: =Est2020DistRev!J43 -> 0 | Y43: =Est2020DistRev!K43 -> 0 | Z43: =Est2020DistRev!L43 -> 0 | AA43: =Est2020DistRev!M43 -> 0 | AB43: =Est2020DistRev!N43 -> 0 | AC43: =Est2020DistRev!O43 -> 0 | AD43: =Est2020DistRev!P43 -> 0 | AF43: =Est2020DistRev!R43/2 -> 0 | AG43: =Est2020DistRev!S43/2 -> 0 | AH43: =Est2020DistRev!T43/2 -> 0 | AI43: =Est2020DistRev!U43/2 -> 0 | AJ43: =Est2020DistRev!V43/2 -> 0 | AK43: =Est2020DistRev!W43/2 -> 0 | AL43: =Est2020DistRev!X43/2 -> 0 | AM43: =Est2020DistRev!Y43/2 -> 0 | AN43: =Est2020DistRev!Z43/2 -> 0 | AO43: =Est2020DistRev!AA43/2 -> 0 | AP43: =Est2020DistRev!AB43/2 -> 0 | AQ43: =Est2020DistRev!AC43/2 -> 0 | AR43: =Est2020DistRev!AD43/2 -> 0 | AT43: 0 | AU43: 0 | AV43: 0 | AW43: 0 | AX43: 0 | AY43: 0 | AZ43: 0 | BA43: 0 | BB43: 0 | BC43: 0 | BD43: 0 | BE43: 0 | BF43: 0 | BG43: 0 | BI43: 0 | BJ43: 0 | BK43: 0 | BL43: 0 | BM43: 0 | BN43: 0 | BO43: 0 | BP43: 0 | BQ43: 0 | BR43: 0 | BS43: 0 | BT43: 0 | BU43: 0 | BV43: 0
R44: =Est2020DistRev!D44 -> 0 | S44: =Est2020DistRev!E44 -> 0 | T44: =Est2020DistRev!F44 -> 0 | U44: =Est2020DistRev!G44 -> 0 | V44: =Est2020DistRev!H44 -> 0 | W44: =Est2020DistRev!I44 -> 0 | X44: =Est2020DistRev!J44 -> 0 | Y44: =Est2020DistRev!K44 -> 0 | Z44: =Est2020DistRev!L44 -> 0 | AA44: =Est2020DistRev!M44 -> 0 | AB44: =Est2020DistRev!N44 -> 0 | AC44: =Est2020DistRev!O44 -> 0 | AD44: =Est2020DistRev!P44 -> 0 | AF44: =Est2020DistRev!R44/2 -> 0 | AG44: =Est2020DistRev!S44/2 -> 0 | AH44: =Est2020DistRev!T44/2 -> 0 | AI44: =Est2020DistRev!U44/2 -> 0 | AJ44: =Est2020DistRev!V44/2 -> 0 | AK44: =Est2020DistRev!W44/2 -> 0 | AL44: =Est2020DistRev!X44/2 -> 0 | AM44: =Est2020DistRev!Y44/2 -> 0 | AN44: =Est2020DistRev!Z44/2 -> 0 | AO44: =Est2020DistRev!AA44/2 -> 0 | AP44: =Est2020DistRev!AB44/2 -> 0 | AQ44: =Est2020DistRev!AC44/2 -> 0 | AR44: =Est2020DistRev!AD44/2 -> 0 | AT44: 0 | AU44: 0 | AV44: 0 | AW44: 0 | AX44: 0 | AY44: 0 | AZ44: 0 | BA44: 0 | BB44: 0 | BC44: 0 | BD44: 0 | BE44: 0 | BF44: 0 | BG44: 0 | BI44: 0 | BJ44: 0 | BK44: 0 | BL44: 0 | BM44: 0 | BN44: 0 | BO44: 0 | BP44: 0 | BQ44: 0 | BR44: 0 | BS44: 0 | BT44: 0 | BU44: 0 | BV44: 0
R45: =Est2020DistRev!D45 -> 0 | S45: =Est2020DistRev!E45 -> 0 | T45: =Est2020DistRev!F45 -> 0 | U45: =Est2020DistRev!G45 -> 0 | V45: =Est2020DistRev!H45 -> 0 | W45: =Est2020DistRev!I45 -> 0 | X45: =Est2020DistRev!J45 -> 0 | Y45: =Est2020DistRev!K45 -> 0 | Z45: =Est2020DistRev!L45 -> 0 | AA45: =Est2020DistRev!M45 -> 0 | AB45: =Est2020DistRev!N45 -> 0 | AC45: =Est2020DistRev!O45 -> 0 | AD45: =Est2020DistRev!P45 -> 0 | AF45: =Est2020DistRev!R45/2 -> 0 | AG45: =Est2020DistRev!S45/2 -> 0 | AH45: =Est2020DistRev!T45/2 -> 0 | AI45: =Est2020DistRev!U45/2 -> 0 | AJ45: =Est2020DistRev!V45/2 -> 0 | AK45: =Est2020DistRev!W45/2 -> 0 | AL45: =Est2020DistRev!X45/2 -> 0 | AM45: =Est2020DistRev!Y45/2 -> 0 | AN45: =Est2020DistRev!Z45/2 -> 0 | AO45: =Est2020DistRev!AA45/2 -> 0 | AP45: =Est2020DistRev!AB45/2 -> 0 | AQ45: =Est2020DistRev!AC45/2 -> 0 | AR45: =Est2020DistRev!AD45/2 -> 0 | AT45: 0 | AU45: 0 | AV45: 0 | AW45: 0 | AX45: 0 | AY45: 0 | AZ45: 0 | BA45: 0 | BB45: 0 | BC45: 0 | BD45: 0 | BE45: 0 | BF45: 0 | BG45: 0 | BI45: 0 | BJ45: 0 | BK45: 0 | BL45: 0 | BM45: 0 | BN45: 0 | BO45: 0 | BP45: 0 | BQ45: 0 | BR45: 0 | BS45: 0 | BT45: 0 | BU45: 0 | BV45: 0
R46: =Est2020DistRev!D46 -> 0 | S46: =Est2020DistRev!E46 -> 0 | T46: =Est2020DistRev!F46 -> 0 | U46: =Est2020DistRev!G46 -> 0 | V46: =Est2020DistRev!H46 -> 0 | W46: =Est2020DistRev!I46 -> 0 | X46: =Est2020DistRev!J46 -> 0 | Y46: =Est2020DistRev!K46 -> 0 | Z46: =Est2020DistRev!L46 -> 0 | AA46: =Est2020DistRev!M46 -> 0 | AB46: =Est2020DistRev!N46 -> 0 | AC46: =Est2020DistRev!O46 -> 0 | AD46: =Est2020DistRev!P46 -> 0 | AF46: =Est2020DistRev!R46/2 -> 0 | AG46: =Est2020DistRev!S46/2 -> 0 | AH46: =Est2020DistRev!T46/2 -> 0 | AI46: =Est2020DistRev!U46/2 -> 0 | AJ46: =Est2020DistRev!V46/2 -> 0 | AK46: =Est2020DistRev!W46/2 -> 0 | AL46: =Est2020DistRev!X46/2 -> 0 | AM46: =Est2020DistRev!Y46/2 -> 0 | AN46: =Est2020DistRev!Z46/2 -> 0 | AO46: =Est2020DistRev!AA46/2 -> 0 | AP46: =Est2020DistRev!AB46/2 -> 0 | AQ46: =Est2020DistRev!AC46/2 -> 0 | AR46: =Est2020DistRev!AD46/2 -> 0 | AT46: 0 | AU46: 0 | AV46: 0 | AW46: 0 | AX46: 0 | AY46: 0 | AZ46: 0 | BA46: 0 | BB46: 0 | BC46: 0 | BD46: 0 | BE46: 0 | BF46: 0 | BG46: 0 | BI46: 0 | BJ46: 0 | BK46: 0 | BL46: 0 | BM46: 0 | BN46: 0 | BO46: 0 | BP46: 0 | BQ46: 0 | BR46: 0 | BS46: 0 | BT46: 0 | BU46: 0 | BV46: 0
R47: =Est2020DistRev!D47 -> 0 | S47: =Est2020DistRev!E47 -> 0 | T47: =Est2020DistRev!F47 -> 0 | U47: =Est2020DistRev!G47 -> 0 | V47: =Est2020DistRev!H47 -> 0 | W47: =Est2020DistRev!I47 -> 0 | X47: =Est2020DistRev!J47 -> 0 | Y47: =Est2020DistRev!K47 -> 0 | Z47: =Est2020DistRev!L47 -> 0 | AA47: =Est2020DistRev!M47 -> 0 | AB47: =Est2020DistRev!N47 -> 0 | AC47: =Est2020DistRev!O47 -> 0 | AD47: =Est2020DistRev!P47 -> 0 | AF47: =Est2020DistRev!R47/2 -> 0 | AG47: =Est2020DistRev!S47/2 -> 0 | AH47: =Est2020DistRev!T47/2 -> 0 | AI47: =Est2020DistRev!U47/2 -> 0 | AJ47: =Est2020DistRev!V47/2 -> 0 | AK47: =Est2020DistRev!W47/2 -> 0 | AL47: =Est2020DistRev!X47/2 -> 0 | AM47: =Est2020DistRev!Y47/2 -> 0 | AN47: =Est2020DistRev!Z47/2 -> 0 | AO47: =Est2020DistRev!AA47/2 -> 0 | AP47: =Est2020DistRev!AB47/2 -> 0 | AQ47: =Est2020DistRev!AC47/2 -> 0 | AR47: =Est2020DistRev!AD47/2 -> 0 | AT47: 0 | AU47: 0 | AV47: 0 | AW47: 0 | AX47: 0 | AY47: 0 | AZ47: 0 | BA47: 0 | BB47: 0 | BC47: 0 | BD47: 0 | BE47: 0 | BF47: 0 | BG47: 0 | BI47: 0 | BJ47: 0 | BK47: 0 | BL47: 0 | BM47: 0 | BN47: 0 | BO47: 0 | BP47: 0 | BQ47: 0 | BR47: 0 | BS47: 0 | BT47: 0 | BU47: 0 | BV47: 0
R48: =Est2020DistRev!D48 -> 0 | S48: =Est2020DistRev!E48 -> 0 | T48: =Est2020DistRev!F48 -> 0 | U48: =Est2020DistRev!G48 -> 0 | V48: =Est2020DistRev!H48 -> 0 | W48: =Est2020DistRev!I48 -> 0 | X48: =Est2020DistRev!J48 -> 0 | Y48: =Est2020DistRev!K48 -> 0 | Z48: =Est2020DistRev!L48 -> 0 | AA48: =Est2020DistRev!M48 -> 0 | AB48: =Est2020DistRev!N48 -> 0 | AC48: =Est2020DistRev!O48 -> 0 | AD48: =Est2020DistRev!P48 -> 0 | AF48: =Est2020DistRev!R48/2 -> 0 | AG48: =Est2020DistRev!S48/2 -> 0 | AH48: =Est2020DistRev!T48/2 -> 0 | AI48: =Est2020DistRev!U48/2 -> 0 | AJ48: =Est2020DistRev!V48/2 -> 0 | AK48: =Est2020DistRev!W48/2 -> 0 | AL48: =Est2020DistRev!X48/2 -> 0 | AM48: =Est2020DistRev!Y48/2 -> 0 | AN48: =Est2020DistRev!Z48/2 -> 0 | AO48: =Est2020DistRev!AA48/2 -> 0 | AP48: =Est2020DistRev!AB48/2 -> 0 | AQ48: =Est2020DistRev!AC48/2 -> 0 | AR48: =Est2020DistRev!AD48/2 -> 0 | AT48: 0 | AU48: 0 | AV48: 0 | AW48: 0 | AX48: 0 | AY48: 0 | AZ48: 0 | BA48: 0 | BB48: 0 | BC48: 0 | BD48: 0 | BE48: 0 | BF48: 0 | BG48: 0 | BI48: 0 | BJ48: 0 | BK48: 0 | BL48: 0 | BM48: 0 | BN48: 0 | BO48: 0 | BP48: 0 | BQ48: 0 | BR48: 0 | BS48: 0 | BT48: 0 | BU48: 0 | BV48: 0
R49: =Est2020DistRev!D49 -> 0 | S49: =Est2020DistRev!E49 -> 0 | T49: =Est2020DistRev!F49 -> 0 | U49: =Est2020DistRev!G49 -> 0 | V49: =Est2020DistRev!H49 -> 0 | W49: =Est2020DistRev!I49 -> 0 | X49: =Est2020DistRev!J49 -> 0 | Y49: =Est2020DistRev!K49 -> 0 | Z49: =Est2020DistRev!L49 -> 0 | AA49: =Est2020DistRev!M49 -> 0 | AB49: =Est2020DistRev!N49 -> 0 | AC49: =Est2020DistRev!O49 -> 0 | AD49: =Est2020DistRev!P49 -> 0 | AF49: =Est2020DistRev!R49/2 -> 0 | AG49: =Est2020DistRev!S49/2 -> 0 | AH49: =Est2020DistRev!T49/2 -> 0 | AI49: =Est2020DistRev!U49/2 -> 0 | AJ49: =Est2020DistRev!V49/2 -> 0 | AK49: =Est2020DistRev!W49/2 -> 0 | AL49: =Est2020DistRev!X49/2 -> 0 | AM49: =Est2020DistRev!Y49/2 -> 0 | AN49: =Est2020DistRev!Z49/2 -> 0 | AO49: =Est2020DistRev!AA49/2 -> 0 | AP49: =Est2020DistRev!AB49/2 -> 0 | AQ49: =Est2020DistRev!AC49/2 -> 0 | AR49: =Est2020DistRev!AD49/2 -> 0 | AT49: 0 | AU49: 0 | AV49: 0 | AW49: 0 | AX49: 0 | AY49: 0 | AZ49: 0 | BA49: 0 | BB49: 0 | BC49: 0 | BD49: 0 | BE49: 0 | BF49: 0 | BG49: 0 | BI49: 0 | BJ49: 0 | BK49: 0 | BL49: 0 | BM49: 0 | BN49: 0 | BO49: 0 | BP49: 0 | BQ49: 0 | BR49: 0 | BS49: 0 | BT49: 0 | BU49: 0 | BV49: 0
R50: =Est2020DistRev!D50 -> 0 | S50: =Est2020DistRev!E50 -> 0 | T50: =Est2020DistRev!F50 -> 0 | U50: =Est2020DistRev!G50 -> 0 | V50: =Est2020DistRev!H50 -> 0 | W50: =Est2020DistRev!I50 -> 0 | X50: =Est2020DistRev!J50 -> 0 | Y50: =Est2020DistRev!K50 -> 0 | Z50: =Est2020DistRev!L50 -> 0 | AA50: =Est2020DistRev!M50 -> 0 | AB50: =Est2020DistRev!N50 -> 0 | AC50: =Est2020DistRev!O50 -> 0 | AD50: =Est2020DistRev!P50 -> 0 | AF50: =Est2020DistRev!R50/2 -> 0 | AG50: =Est2020DistRev!S50/2 -> 0 | AH50: =Est2020DistRev!T50/2 -> 0 | AI50: =Est2020DistRev!U50/2 -> 0 | AJ50: =Est2020DistRev!V50/2 -> 0 | AK50: =Est2020DistRev!W50/2 -> 0 | AL50: =Est2020DistRev!X50/2 -> 0 | AM50: =Est2020DistRev!Y50/2 -> 0 | AN50: =Est2020DistRev!Z50/2 -> 0 | AO50: =Est2020DistRev!AA50/2 -> 0 | AP50: =Est2020DistRev!AB50/2 -> 0 | AQ50: =Est2020DistRev!AC50/2 -> 0 | AR50: =Est2020DistRev!AD50/2 -> 0 | AT50: 0 | AU50: 0 | AV50: 0 | AW50: 0 | AX50: 0 | AY50: 0 | AZ50: 0 | BA50: 0 | BB50: 0 | BC50: 0 | BD50: 0 | BE50: 0 | BF50: 0 | BG50: 0 | BI50: 0 | BJ50: 0 | BK50: 0 | BL50: 0 | BM50: 0 | BN50: 0 | BO50: 0 | BP50: 0 | BQ50: 0 | BR50: 0 | BS50: 0 | BT50: 0 | BU50: 0 | BV50: 0
R51: =Est2020DistRev!D51 -> 0 | S51: =Est2020DistRev!E51 -> 0 | T51: =Est2020DistRev!F51 -> 0 | U51: =Est2020DistRev!G51 -> 0 | V51: =Est2020DistRev!H51 -> 0 | W51: =Est2020DistRev!I51 -> 0 | X51: =Est2020DistRev!J51 -> 0 | Y51: =Est2020DistRev!K51 -> 0 | Z51: =Est2020DistRev!L51 -> 0 | AA51: =Est2020DistRev!M51 -> 0 | AB51: =Est2020DistRev!N51 -> 0 | AC51: =Est2020DistRev!O51 -> 0 | AD51: =Est2020DistRev!P51 -> 0 | AF51: =Est2020DistRev!R51/2 -> 0 | AG51: =Est2020DistRev!S51/2 -> 0 | AH51: =Est2020DistRev!T51/2 -> 0 | AI51: =Est2020DistRev!U51/2 -> 0 | AJ51: =Est2020DistRev!V51/2 -> 0 | AK51: =Est2020DistRev!W51/2 -> 0 | AL51: =Est2020DistRev!X51/2 -> 0 | AM51: =Est2020DistRev!Y51/2 -> 0 | AN51: =Est2020DistRev!Z51/2 -> 0 | AO51: =Est2020DistRev!AA51/2 -> 0 | AP51: =Est2020DistRev!AB51/2 -> 0 | AQ51: =Est2020DistRev!AC51/2 -> 0 | AR51: =Est2020DistRev!AD51/2 -> 0 | AT51: 0 | AU51: 0 | AV51: 0 | AW51: 0 | AX51: 0 | AY51: 0 | AZ51: 0 | BA51: 0 | BB51: 0 | BC51: 0 | BD51: 0 | BE51: 0 | BF51: 0 | BG51: 0 | BI51: 0 | BJ51: 0 | BK51: 0 | BL51: 0 | BM51: 0 | BN51: 0 | BO51: 0 | BP51: 0 | BQ51: 0 | BR51: 0 | BS51: 0 | BT51: 0 | BU51: 0 | BV51: 0
R52: =Est2020DistRev!D52 -> 0 | S52: =Est2020DistRev!E52 -> 0 | T52: =Est2020DistRev!F52 -> 0 | U52: =Est2020DistRev!G52 -> 0 | V52: =Est2020DistRev!H52 -> 0 | W52: =Est2020DistRev!I52 -> 0 | X52: =Est2020DistRev!J52 -> 0 | Y52: =Est2020DistRev!K52 -> 0 | Z52: =Est2020DistRev!L52 -> 0 | AA52: =Est2020DistRev!M52 -> 0 | AB52: =Est2020DistRev!N52 -> 0 | AC52: =Est2020DistRev!O52 -> 0 | AD52: =Est2020DistRev!P52 -> 0 | AF52: =Est2020DistRev!R52/2 -> 0 | AG52: =Est2020DistRev!S52/2 -> 0 | AH52: =Est2020DistRev!T52/2 -> 0 | AI52: =Est2020DistRev!U52/2 -> 0 | AJ52: =Est2020DistRev!V52/2 -> 0 | AK52: =Est2020DistRev!W52/2 -> 0 | AL52: =Est2020DistRev!X52/2 -> 0 | AM52: =Est2020DistRev!Y52/2 -> 0 | AN52: =Est2020DistRev!Z52/2 -> 0 | AO52: =Est2020DistRev!AA52/2 -> 0 | AP52: =Est2020DistRev!AB52/2 -> 0 | AQ52: =Est2020DistRev!AC52/2 -> 0 | AR52: =Est2020DistRev!AD52/2 -> 0 | AT52: 0 | AU52: 0 | AV52: 0 | AW52: 0 | AX52: 0 | AY52: 0 | AZ52: 0 | BA52: 0 | BB52: 0 | BC52: 0 | BD52: 0 | BE52: 0 | BF52: 0 | BG52: 0 | BI52: 0 | BJ52: 0 | BK52: 0 | BL52: 0 | BM52: 0 | BN52: 0 | BO52: 0 | BP52: 0 | BQ52: 0 | BR52: 0 | BS52: 0 | BT52: 0 | BU52: 0 | BV52: 0
R53: =Est2020DistRev!D53 -> 0 | S53: =Est2020DistRev!E53 -> 0 | T53: =Est2020DistRev!F53 -> 0 | U53: =Est2020DistRev!G53 -> 0 | V53: =Est2020DistRev!H53 -> 0 | W53: =Est2020DistRev!I53 -> 0 | X53: =Est2020DistRev!J53 -> 0 | Y53: =Est2020DistRev!K53 -> 0 | Z53: =Est2020DistRev!L53 -> 0 | AA53: =Est2020DistRev!M53 -> 0 | AB53: =Est2020DistRev!N53 -> 0 | AC53: =Est2020DistRev!O53 -> 0 | AD53: =Est2020DistRev!P53 -> 0 | AF53: =Est2020DistRev!R53/2 -> 0 | AG53: =Est2020DistRev!S53/2 -> 0 | AH53: =Est2020DistRev!T53/2 -> 0 | AI53: =Est2020DistRev!U53/2 -> 0 | AJ53: =Est2020DistRev!V53/2 -> 0 | AK53: =Est2020DistRev!W53/2 -> 0 | AL53: =Est2020DistRev!X53/2 -> 0 | AM53: =Est2020DistRev!Y53/2 -> 0 | AN53: =Est2020DistRev!Z53/2 -> 0 | AO53: =Est2020DistRev!AA53/2 -> 0 | AP53: =Est2020DistRev!AB53/2 -> 0 | AQ53: =Est2020DistRev!AC53/2 -> 0 | AR53: =Est2020DistRev!AD53/2 -> 0 | AT53: 0 | AU53: 0 | AV53: 0 | AW53: 0 | AX53: 0 | AY53: 0 | AZ53: 0 | BA53: 0 | BB53: 0 | BC53: 0 | BD53: 0 | BE53: 0 | BF53: 0 | BG53: 0 | BI53: 0 | BJ53: 0 | BK53: 0 | BL53: 0 | BM53: 0 | BN53: 0 | BO53: 0 | BP53: 0 | BQ53: 0 | BR53: 0 | BS53: 0 | BT53: 0 | BU53: 0 | BV53: 0
R54: =Est2020DistRev!D54 -> 0 | S54: =Est2020DistRev!E54 -> 0 | T54: =Est2020DistRev!F54 -> 0 | U54: =Est2020DistRev!G54 -> 0 | V54: =Est2020DistRev!H54 -> 0 | W54: =Est2020DistRev!I54 -> 0 | X54: =Est2020DistRev!J54 -> 0 | Y54: =Est2020DistRev!K54 -> 0 | Z54: =Est2020DistRev!L54 -> 0 | AA54: =Est2020DistRev!M54 -> 0 | AB54: =Est2020DistRev!N54 -> 0 | AC54: =Est2020DistRev!O54 -> 0 | AD54: =Est2020DistRev!P54 -> 0 | AF54: =Est2020DistRev!R54/2 -> 0 | AG54: =Est2020DistRev!S54/2 -> 0 | AH54: =Est2020DistRev!T54/2 -> 0 | AI54: =Est2020DistRev!U54/2 -> 0 | AJ54: =Est2020DistRev!V54/2 -> 0 | AK54: =Est2020DistRev!W54/2 -> 0 | AL54: =Est2020DistRev!X54/2 -> 0 | AM54: =Est2020DistRev!Y54/2 -> 0 | AN54: =Est2020DistRev!Z54/2 -> 0 | AO54: =Est2020DistRev!AA54/2 -> 0 | AP54: =Est2020DistRev!AB54/2 -> 0 | AQ54: =Est2020DistRev!AC54/2 -> 0 | AR54: =Est2020DistRev!AD54/2 -> 0 | AT54: 0 | AU54: 0 | AV54: 0 | AW54: 0 | AX54: 0 | AY54: 0 | AZ54: 0 | BA54: 0 | BB54: 0 | BC54: 0 | BD54: 0 | BE54: 0 | BF54: 0 | BG54: 0 | BI54: 0 | BJ54: 0 | BK54: 0 | BL54: 0 | BM54: 0 | BN54: 0 | BO54: 0 | BP54: 0 | BQ54: 0 | BR54: 0 | BS54: 0 | BT54: 0 | BU54: 0 | BV54: 0
AT55: 0 | AU55: 0 | AV55: 0 | AW55: 0 | AX55: 0 | AY55: 0 | AZ55: 0 | BA55: 0 | BB55: 0 | BC55: 0 | BD55: 0 | BE55: 0 | BF55: 0 | BG55: 0 | BI55: 0 | BJ55: 0 | BK55: 0 | BL55: 0 | BM55: 0 | BN55: 0 | BO55: 0 | BP55: 0 | BQ55: 0 | BR55: 0 | BS55: 0 | BT55: 0 | BU55: 0 | BV55: 0
AT56: 0 | AU56: 0 | AV56: 0 | AW56: 0 | AX56: 0 | AY56: 0 | AZ56: 0 | BA56: 0 | BB56: 0 | BC56: 0 | BD56: 0 | BE56: 0 | BF56: 0 | BG56: 0 | BI56: 0 | BJ56: 0 | BK56: 0 | BL56: 0 | BM56: 0 | BN56: 0 | BO56: 0 | BP56: 0 | BQ56: 0 | BR56: 0 | BS56: 0 | BT56: 0 | BU56: 0 | BV56: 0
AT57: 0 | AU57: 0 | AV57: 0 | AW57: 0 | AX57: 0 | AY57: 0 | AZ57: 0 | BA57: 0 | BB57: 0 | BC57: 0 | BD57: 0 | BE57: 0 | BF57: 0 | BG57: 0 | BI57: 0 | BJ57: 0 | BK57: 0 | BL57: 0 | BM57: 0 | BN57: 0 | BO57: 0 | BP57: 0 | BQ57: 0 | BR57: 0 | BS57: 0 | BT57: 0 | BU57: 0 | BV57: 0
AT58: 0 | AU58: 0 | AV58: 0 | AW58: 0 | AX58: 0 | AY58: 0 | AZ58: 0 | BA58: 0 | BB58: 0 | BC58: 0 | BD58: 0 | BE58: 0 | BF58: 0 | BG58: 0 | BI58: 0 | BJ58: 0 | BK58: 0 | BL58: 0 | BM58: 0 | BN58: 0 | BO58: 0 | BP58: 0 | BQ58: 0 | BR58: 0 | BS58: 0 | BT58: 0 | BU58: 0 | BV58: 0
AT59: 0 | AU59: 0 | AV59: 0 | AW59: 0 | AX59: 0 | AY59: 0 | AZ59: 0 | BA59: 0 | BB59: 0 | BC59: 0 | BD59: 0 | BE59: 0 | BF59: 0 | BG59: 0 | BI59: 0 | BJ59: 0 | BK59: 0 | BL59: 0 | BM59: 0 | BN59: 0 | BO59: 0 | BP59: 0 | BQ59: 0 | BR59: 0 | BS59: 0 | BT59: 0 | BU59: 0 | BV59: 0
AT60: 0 | AU60: 0 | AV60: 0 | AW60: 0 | AX60: 0 | AY60: 0 | AZ60: 0 | BA60: 0 | BB60: 0 | BC60: 0 | BD60: 0 | BE60: 0 | BF60: 0 | BG60: 0 | BI60: 0 | BJ60: 0 | BK60: 0 | BL60: 0 | BM60: 0 | BN60: 0 | BO60: 0 | BP60: 0 | BQ60: 0 | BR60: 0 | BS60: 0 | BT60: 0 | BU60: 0 | BV60: 0
AT61: 0 | AU61: 0 | AV61: 0 | AW61: 0 | AX61: 0 | AY61: 0 | AZ61: 0 | BA61: 0 | BB61: 0 | BC61: 0 | BD61: 0 | BE61: 0 | BF61: 0 | BG61: 0 | BI61: 0 | BJ61: 0 | BK61: 0 | BL61: 0 | BM61: 0 | BN61: 0 | BO61: 0 | BP61: 0 | BQ61: 0 | BR61: 0 | BS61: 0 | BT61: 0 | BU61: 0 | BV61: 0
AT62: 0 | AU62: 0 | AV62: 0 | AW62: 0 | AX62: 0 | AY62: 0 | AZ62: 0 | BA62: 0 | BB62: 0 | BC62: 0 | BD62: 0 | BE62: 0 | BF62: 0 | BG62: 0 | BI62: 0 | BJ62: 0 | BK62: 0 | BL62: 0 | BM62: 0 | BN62: 0 | BO62: 0 | BP62: 0 | BQ62: 0 | BR62: 0 | BS62: 0 | BT62: 0 | BU62: 0 | BV62: 0
AT63: 0 | AU63: 0 | AV63: 0 | AW63: 0 | AX63: 0 | AY63: 0 | AZ63: 0 | BA63: 0 | BB63: 0 | BC63: 0 | BD63: 0 | BE63: 0 | BF63: 0 | BG63: 0 | BI63: 0 | BJ63: 0 | BK63: 0 | BL63: 0 | BM63: 0 | BN63: 0 | BO63: 0 | BP63: 0 | BQ63: 0 | BR63: 0 | BS63: 0 | BT63: 0 | BU63: 0 | BV63: 0
AT64: 0 | AU64: 0 | AV64: 0 | AW64: 0 | AX64: 0 | AY64: 0 | AZ64: 0 | BA64: 0 | BB64: 0 | BC64: 0 | BD64: 0 | BE64: 0 | BF64: 0 | BG64: 0 | BI64: 0 | BJ64: 0 | BK64: 0 | BL64: 0 | BM64: 0 | BN64: 0 | BO64: 0 | BP64: 0 | BQ64: 0 | BR64: 0 | BS64: 0 | BT64: 0 | BU64: 0 | BV64: 0
AT65: 0 | AU65: 0 | AV65: 0 | AW65: 0 | AX65: 0 | AY65: 0 | AZ65: 0 | BA65: 0 | BB65: 0 | BC65: 0 | BD65: 0 | BE65: 0 | BF65: 0 | BG65: 0 | BI65: 0 | BJ65: 0 | BK65: 0 | BL65: 0 | BM65: 0 | BN65: 0 | BO65: 0 | BP65: 0 | BQ65: 0 | BR65: 0 | BS65: 0 | BT65: 0 | BU65: 0 | BV65: 0
AF66: =SUM(AF6:AF65) -> 182831.4449 | AG66: 1517656395 | AH66: 580688.3796 | AI66: 407370.3282 | AJ66: 757351.4178 | AK66: 609112587.4 | AL66: 495167.1411 | AM66: 0 | AN66: 0 | AO66: 443886.2866 | AP66: 0 | AQ66: 0 | AR66: 0 | AT66: =SUM(AT6:AT65) -> 16254539.17 | AU66: 66130603.07 | AV66: 43476.13898 | AW66: 49141.0827 | AX66: 56702.90065 | AY66: 3268730.24 | AZ66: 18024.08394 | BA66: 0 | BB66: 0 | BC66: 31825035.91 | BD66: 0 | BE66: 0 | BF66: 0 | BG66: 117646252.6 | BI66: =SUM(BI6:BI65) -> 14518631.78 | BJ66: 82872750.31 | BK66: 45415.63817 | BL66: 51332.73506 | BM66: 59232.45439 | BN66: 4401258.246 | BO66: 18826.25471 | BP66: 0 | BQ66: 0 | BR66: 34206407.08 | BS66: 0 | BT66: 0 | BU66: 0 | BV66: 136173854.5

Sheet 2021DistRevCapForm
B2: ="Tariff Approval - "&'Model update'!$C$3 -> Tariff Approval - Jemena | C2: ='Model update'!$C$5&"DistRevCapForm" -> 2021DistRevCapForm
B4: DUoS
B6: Year (t) | C6: ='Model update'!C5 -> 2021
B8: Table 1- Compliance with AER Final Determination Total Annual Revenue
B9: Revenue from DUoS charges for year t | C9: =Prop2021DistTar!BG66 -> 117646252.6
B10: Total Annual Revenue for year t | C10: 117654758.4
C11: =IF(C9="","",IF(C10>=C9,"DUoS REVENUE CAP FORMULA COMPLIANT","DUoS REVENUE CAP FORMULA BREACHED")) -> DUoS REVENUE CAP FORMULA COMPLIANT

Sheet 2021DistTarRebalCont
B1: ="Tariff Approval - "&'Model update'!C3 -> Tariff Approval - Jemena | C1: ='Model update'!$C$5&"DistTarRebalCont" -> 2021DistTarRebalCont
B3: ='Model update'!C5&" DISTRIBUTION TARIFF REBALANCING CONTROL" -> 2021 DISTRIBUTION TARIFF REBALANCING CONTROL
B6: Distribution tariff rebalancing control
B8: ="CPI "&'Model update'!$C$5 -> CPI 2021 | C8: ='Model update'!C30 -> -0.003484320557
C16: =(1+C8)*(1-C9)*(1+0.02)*(1+C10)+SUM(C11:C13) -> 1.016445993
B20: Rebalancing control summary | C20: ="Pt-1*(Qt " &'Model update'!$C$5&")" -> Pt-1*(Qt 2021) | D20: ="Pt*(Qt " &'Model update'!$C$5&")" -> Pt*(Qt 2021)
B21: Tariff Class (Input Class Name) | C21: Existing ($) | D21: Proposed ($) | E21: Movement
B22: Residential | C22: =IF(B22="","",SUMIF($B$44:$B$103,$B22,$I$44:$I$103)) -> 63126581.94 | D22: =IF(B22="","",SUMIF($B$44:$B$103,$B22,$F$44:$F$103)) -> 54834498.8 | E22: =IF(B22="","",D22/C22) -> 0.8686435589 | F22: =IF(B22="","",IF(E22<$C$16,"COMPLIANT","BREACHED")) -> COMPLIANT
B23: Small Business | C23: 29074134.05 | D23: 24678468.8 | E23: 0.8488118258 | F23: COMPLIANT
B24: Large Business - LV | C24: =IF(B24="","",SUMIF($B$44:$B$103,$B24,$I$44:$I$103)) -> 33403775.75 | D24: =IF(B24="","",SUMIF($B$44:$B$103,$B24,$F$44:$F$103)) -> 28931821.28 | E24: 0.8661242818 | F24: COMPLIANT
B25: Large Business - HV | C25: 9445476.785 | D25: 8220247.904 | E25: 0.870284062 | F25: COMPLIANT
B26: Large Business - Subtransmission | C26: 1123885.975 | D26: 981215.8151 | E26: 0.8730563749 | F26: COMPLIANT
C27: =IF(B27="","",SUMIF($B$44:$B$103,$B27,$I$44:$I$103)) ->  | D27: =IF(B27="","",SUMIF($B$44:$B$103,$B27,$F$44:$F$103)) ->  | E27: =IF(B27="","",D27/C27) ->  | F27: =IF(B27="","",IF(E27<$C$16,"COMPLIANT","BREACHED")) -> 
C32: =IF(B32="","",SUMIF($B$44:$B$103,$B32,$I$44:$I$103)) ->  | D32: =IF(B32="","",SUMIF($B$44:$B$103,$B32,$F$44:$F$103)) -> 
B39: Check Total | C39: =IF(ABS(SUM(C22:C38)-I104)<0.01,"Ok","Error") -> Ok | D39: =IF(ABS(SUM(D22:D38)-F104)<0.01,"Ok","Error") -> Ok
C40: =IF(ABS(SUM(C22:C38)-Prop2021DistTar!BV66)<0.01,"Ok","Error") -> Ok | D40: =IF(ABS(SUM(D22:D38)-Prop2021DistTar!BG66)<0.01,"Ok","Error") -> Ok
F42: ="Revenue (Pt "&'Model update'!$C$5&")*(Qt " &'Model update'!$C$5&")" -> Revenue (Pt 2021)*(Qt 2021) | I42: ="Revenue (Pt-1 "&'Model update'!$C$8&")*(Qt " &'Model update'!$C$5&")" -> Revenue (Pt-1 2020)*(Qt 2021)
A43: New Tariff Test | B43: Destination tariff class | C43: Source tariff class | D43: Proposed tariff | E43: Existing tariff | F43: PropRev Total | I43: ExistRev Total
A44: =OR(EXACT(D44,Prop2021DistTar!C$6:C$65)) -> TRUE | B44: Residential | C44: Residential | D44: =IF(Prop2021DistTar!B6="","",Prop2021DistTar!B6) -> Residential - General Purpose | E44: =IF(Prop2021DistTar!C6="","",Prop2021DistTar!C6) -> Residential - General Purpose | F44: =Prop2021DistTar!BG6 -> 51073384.64 | I44: =Prop2021DistTar!BV6 -> 59307363.49
A45: =OR(EXACT(D45,Prop2021DistTar!C$6:C$65)) -> TRUE | B45: Residential | C45: Residential | D45: =IF(Prop2021DistTar!B7="","",Prop2021DistTar!B7) -> Residential - General Purpose Demand | E45: =IF(Prop2021DistTar!C7="","",Prop2021DistTar!C7) -> Residential - General Purpose Demand | F45: =Prop2021DistTar!BG7 -> 1048.217616 | I45: =Prop2021DistTar!BV7 -> 1525.473609
A46: =OR(EXACT(D46,Prop2021DistTar!C$6:C$65)) -> TRUE | B46: Residential | C46: Residential | D46: =IF(Prop2021DistTar!B8="","",Prop2021DistTar!B8) -> Residential - Flexible | E46: =IF(Prop2021DistTar!C8="","",Prop2021DistTar!C8) -> Residential - Flexible | F46: =Prop2021DistTar!BG8 -> 255066.8103 | I46: =Prop2021DistTar!BV8 -> 261539.9872
A47: =OR(EXACT(D47,Prop2021DistTar!C$6:C$65)) -> TRUE | B47: Residential | C47: Residential | D47: =IF(Prop2021DistTar!B9="","",Prop2021DistTar!B9) -> Residential - Time of Use Interval Meter | E47: =IF(Prop2021DistTar!C9="","",Prop2021DistTar!C9) -> Residential - Time of Use Interval Meter | F47: =Prop2021DistTar!BG9 -> 2866085.094 | I47: =Prop2021DistTar!BV9 -> 2906067.954
A48: =OR(EXACT(D48,Prop2021DistTar!C$6:C$65)) -> TRUE | B48: Residential | C48: Residential | D48: =IF(Prop2021DistTar!B10="","",Prop2021DistTar!B10) -> Residential - TOU | E48: =IF(Prop2021DistTar!C10="","",Prop2021DistTar!C10) -> Residential - TOU | F48: =Prop2021DistTar!BG10 -> 389938.6577 | I48: =Prop2021DistTar!BV10 -> 389938.6577
A49: =OR(EXACT(D49,Prop2021DistTar!C$6:C$65)) -> TRUE | B49: Residential | C49: Residential | D49: =IF(Prop2021DistTar!B11="","",Prop2021DistTar!B11) -> Residential - Off Peak Only | E49: =IF(Prop2021DistTar!C11="","",Prop2021DistTar!C11) -> Residential - Off Peak Only | F49: =Prop2021DistTar!BG11 -> 248975.3806 | I49: =Prop2021DistTar!BV11 -> 260146.3719
A50: =OR(EXACT(D50,Prop2021DistTar!C$6:C$65)) -> TRUE | B50: Small Business | C50: Small Business | D50: =IF(Prop2021DistTar!B12="","",Prop2021DistTar!B12) -> Small Business - General Purpose | E50: =IF(Prop2021DistTar!C12="","",Prop2021DistTar!C12) -> Small Business - General Purpose | F50: =Prop2021DistTar!BG12 -> 8883976.959 | I50: =Prop2021DistTar!BV12 -> 10473670.65
A51: =OR(EXACT(D51,Prop2021DistTar!C$6:C$65)) -> TRUE | B51: Small Business | C51: Small Business | D51: =IF(Prop2021DistTar!B13="","",Prop2021DistTar!B13) -> Small Business - General Purpose Demand | E51: =IF(Prop2021DistTar!C13="","",Prop2021DistTar!C13) -> Small Business - General Purpose Demand
A52: =OR(EXACT(D52,Prop2021DistTar!C$6:C$65)) -> TRUE | B52: Small Business | C52: Small Business | D52: =IF(Prop2021DistTar!B14="","",Prop2021DistTar!B14) -> Small Business - TOU Weekdays | E52: =IF(Prop2021DistTar!C14="","",Prop2021DistTar!C14) -> Small Business - TOU Weekdays | F52: =Prop2021DistTar!BG14 -> 8277821.19 | I52: =Prop2021DistTar!BV14 -> 9892312.78
A53: =OR(EXACT(D53,Prop2021DistTar!C$6:C$65)) -> TRUE | B53: Small Business | C53: Small Business | D53: =IF(Prop2021DistTar!B15="","",Prop2021DistTar!B15) -> Small Business - TOU Weekdays Demand | E53: =IF(Prop2021DistTar!C15="","",Prop2021DistTar!C15) -> Small Business - TOU Weekdays Demand | F53: =Prop2021DistTar!BG15 -> 3892547.284 | I53: =Prop2021DistTar!BV15 -> 4615535.513
A54: =OR(EXACT(D54,Prop2021DistTar!C$6:C$65)) -> TRUE | B54: Small Business | C54: Small Business | D54: =IF(Prop2021DistTar!B16="","",Prop2021DistTar!B16) -> Small Business - TOU Opt out | E54: =IF(Prop2021DistTar!C16="","",Prop2021DistTar!C16) -> Small Business - TOU Opt out | F54: =Prop2021DistTar!BG16 -> 137141.0993 | I54: =Prop2021DistTar!BV16 -> 151832.5442
A55: =OR(EXACT(D55,Prop2021DistTar!C$6:C$65)) -> TRUE | B55: Small Business | C55: Small Business | D55: =IF(Prop2021DistTar!B17="","",Prop2021DistTar!B17) -> Small Business - TOU Extended | E55: =IF(Prop2021DistTar!C17="","",Prop2021DistTar!C17) -> Small Business - TOU Extended | F55: =Prop2021DistTar!BG17 -> 1923862.529 | I55: =Prop2021DistTar!BV17 -> 2102739.614
A56: =OR(EXACT(D56,Prop2021DistTar!C$6:C$65)) -> TRUE | B56: Small Business | C56: Small Business | D56: =IF(Prop2021DistTar!B18="","",Prop2021DistTar!B18) -> Small Business - TOU Extended Demand | E56: =IF(Prop2021DistTar!C18="","",Prop2021DistTar!C18) -> Small Business - TOU Extended Demand | F56: =Prop2021DistTar!BG18 -> 731457.4606 | I56: =Prop2021DistTar!BV18 -> 820806.7339
A57: =OR(EXACT(D57,Prop2021DistTar!C$6:C$65)) -> TRUE | B57: Small Business | C57: Small Business | D57: =IF(Prop2021DistTar!B19="","",Prop2021DistTar!B19) -> Small Business - Unmetered Supply | E57: =IF(Prop2021DistTar!C19="","",Prop2021DistTar!C19) -> Small Business - Unmetered Supply | F57: =Prop2021DistTar!BG19 -> 829146.5775 | I57: =Prop2021DistTar!BV19 -> 1014455.004
A58: =OR(EXACT(D58,Prop2021DistTar!C$6:C$65)) -> TRUE | B58: Large Business - LV | C58: Large Business - LV | D58: =IF(Prop2021DistTar!B20="","",Prop2021DistTar!B20) -> Large Business - LV 0.4 - 0.8 GWh | E58: =IF(Prop2021DistTar!C20="","",Prop2021DistTar!C20) -> Large Business - LV 0.4 - 0.8 GWh | F58: =Prop2021DistTar!BG20 -> 8974755.601 | I58: =Prop2021DistTar!BV20 -> 10320435.91
A59: =OR(EXACT(D59,Prop2021DistTar!C$6:C$65)) -> TRUE | B59: Large Business - LV | C59: Large Business - LV | D59: =IF(Prop2021DistTar!B21="","",Prop2021DistTar!B21) -> Large Business – LVEN Annual Consumption <= 0.8 GWh | E59: =IF(Prop2021DistTar!C21="","",Prop2021DistTar!C21) -> Large Business – LVEN Annual Consumption <= 0.8 GWh | F59: =Prop2021DistTar!BG21 -> 1127135.759 | I59: =Prop2021DistTar!BV21 -> 1276213.55
A60: =OR(EXACT(D60,Prop2021DistTar!C$6:C$65)) -> TRUE | B60: Large Business - LV | C60: Large Business - LV | D60: =IF(Prop2021DistTar!B22="","",Prop2021DistTar!B22) -> Large Business - LV 0.8+ - 2.2 GWh | E60: =IF(Prop2021DistTar!C22="","",Prop2021DistTar!C22) -> Large Business - LV 0.8+ - 2.2 GWh | F60: =Prop2021DistTar!BG22 -> 9971306.26 | I60: =Prop2021DistTar!BV22 -> 11493657.51
A61: =OR(EXACT(D61,Prop2021DistTar!C$6:C$65)) -> TRUE | B61: Large Business - LV | C61: Large Business - LV | D61: =IF(Prop2021DistTar!B23="","",Prop2021DistTar!B23) -> Large Business - LVEN 0.8+ - 2.2 GWh | E61: =IF(Prop2021DistTar!C23="","",Prop2021DistTar!C23) -> Large Business - LVEN 0.8+ - 2.2 GWh | F61: =Prop2021DistTar!BG23 -> 1129693.351 | I61: =Prop2021DistTar!BV23 -> 1301497.739
A62: =OR(EXACT(D62,Prop2021DistTar!C$6:C$65)) -> TRUE | B62: Large Business - LV | C62: Large Business - LV | D62: =IF(Prop2021DistTar!B24="","",Prop2021DistTar!B24) -> Large Business - LV 2.2+ - 6.0 GWh | E62: =IF(Prop2021DistTar!C24="","",Prop2021DistTar!C24) -> Large Business - LV 2.2+ - 6.0 GWh | F62: =Prop2021DistTar!BG24 -> 3908852.622 | I62: =Prop2021DistTar!BV24 -> 4536596.31
A63: =OR(EXACT(D63,Prop2021DistTar!C$6:C$65)) -> TRUE | B63: Large Business - LV | C63: Large Business - LV | D63: =IF(Prop2021DistTar!B25="","",Prop2021DistTar!B25) -> Large Business - LVEN 2.2+ GWh | E63: =IF(Prop2021DistTar!C25="","",Prop2021DistTar!C25) -> Large Business - LVEN 2.2+ GWh | F63: =Prop2021DistTar!BG25 -> 868050.1436 | I63: =Prop2021DistTar!BV25 -> 987436.4897
A64: =OR(EXACT(D64,Prop2021DistTar!C$6:C$65)) -> TRUE | B64: Large Business - LV | C64: Large Business - LV | D64: =IF(Prop2021DistTar!B26="","",Prop2021DistTar!B26) -> Large Business - LVMS 2.2+ - 6.0 GWh | E64: =IF(Prop2021DistTar!C26="","",Prop2021DistTar!C26) -> Large Business - LVMS 2.2+ - 6.0 GWh | F64: =Prop2021DistTar!BG26 -> 306062.8206 | I64: =Prop2021DistTar!BV26 -> 361753.1072
A65: =OR(EXACT(D65,Prop2021DistTar!C$6:C$65)) -> TRUE | B65: Large Business - LV | C65: Large Business - LV | D65: =IF(Prop2021DistTar!B27="","",Prop2021DistTar!B27) -> Large Business - LV 6.0+ GWh | E65: =IF(Prop2021DistTar!C27="","",Prop2021DistTar!C27) -> Large Business - LV 6.0+ GWh | F65: =Prop2021DistTar!BG27 -> 1482027.521 | I65: =Prop2021DistTar!BV27 -> 1732454.104
A66: =OR(EXACT(D66,Prop2021DistTar!C$6:C$65)) -> TRUE | B66: Large Business - LV | C66: Large Business - LV | D66: =IF(Prop2021DistTar!B28="","",Prop2021DistTar!B28) -> Large Business - LVMS 6.0+ GWh | E66: =IF(Prop2021DistTar!C28="","",Prop2021DistTar!C28) -> Large Business - LVMS 6.0+ GWh | F66: =Prop2021DistTar!BG28 -> 1163937.205 | I66: =Prop2021DistTar!BV28 -> 1393731.028
A67: =OR(EXACT(D67,Prop2021DistTar!C$6:C$65)) -> TRUE | B67: Large Business - HV | C67: Large Business - HV | D67: =IF(Prop2021DistTar!B29="","",Prop2021DistTar!B29) -> Large Business - HV | E67: =IF(Prop2021DistTar!C29="","",Prop2021DistTar!C29) -> Large Business - HV | F67: =Prop2021DistTar!BG29 -> 7385783.235 | I67: =Prop2021DistTar!BV29 -> 8379153.522
A68: =OR(EXACT(D68,Prop2021DistTar!C$6:C$65)) -> TRUE | B68: Large Business - HV | C68: Large Business - HV | D68: =IF(Prop2021DistTar!B30="","",Prop2021DistTar!B30) -> Large Business – HVEN | E68: =IF(Prop2021DistTar!C30="","",Prop2021DistTar!C30) -> Large Business – HVEN
A69: =OR(EXACT(D69,Prop2021DistTar!C$6:C$65)) -> TRUE | B69: Large Business - HV | C69: Large Business - HV | D69: =IF(Prop2021DistTar!B31="","",Prop2021DistTar!B31) -> Large Business - HVRF | E69: =IF(Prop2021DistTar!C31="","",Prop2021DistTar!C31) -> Large Business - HVRF
A70: =OR(EXACT(D70,Prop2021DistTar!C$6:C$65)) -> TRUE | B70: Large Business - HV | C70: Large Business - HV | D70: =IF(Prop2021DistTar!B32="","",Prop2021DistTar!B32) -> Large Business - HV Ann Cons >= 55GWh | E70: =IF(Prop2021DistTar!C32="","",Prop2021DistTar!C32) -> Large Business - HV Ann Cons >= 55GWh
A71: =OR(EXACT(D71,Prop2021DistTar!C$6:C$65)) -> TRUE | B71: Large Business - Subtransmission | C71: Large Business - Subtransmission | D71: =IF(Prop2021DistTar!B33="","",Prop2021DistTar!B33) -> Large Business - Subtransmission | E71: =IF(Prop2021DistTar!C33="","",Prop2021DistTar!C33) -> Large Business - Subtransmission
A72: =OR(EXACT(D72,Prop2021DistTar!C$6:C$65)) -> TRUE | B72: Large Business - Subtransmission | C72: Large Business - Subtransmission | D72: =IF(Prop2021DistTar!B34="","",Prop2021DistTar!B34) -> Large Business - Subtransmission MA | E72: =IF(Prop2021DistTar!C34="","",Prop2021DistTar!C34) -> Large Business - Subtransmission MA
A73: =OR(EXACT(D73,Prop2021DistTar!C$6:C$65)) -> TRUE | B73: Large Business - Subtransmission | C73: Large Business - Subtransmission | D73: =IF(Prop2021DistTar!B35="","",Prop2021DistTar!B35) -> Large Business - Subtransmission EG | E73: =IF(Prop2021DistTar!C35="","",Prop2021DistTar!C35) -> Large Business - Subtransmission EG
A74: =OR(EXACT(D74,Prop2021DistTar!C$6:C$65)) -> TRUE | D74: =IF(Prop2021DistTar!B36="","",Prop2021DistTar!B36) ->  | E74: =IF(Prop2021DistTar!C36="","",Prop2021DistTar!C36) ->  | F74: =Prop2021DistTar!BG36 -> 0 | I74: =Prop2021DistTar!BV36 -> 0
A75: =OR(EXACT(D75,Prop2021DistTar!C$6:C$65)) -> TRUE | D75: =IF(Prop2021DistTar!B37="","",Prop2021DistTar!B37) ->  | E75: =IF(Prop2021DistTar!C37="","",Prop2021DistTar!C37) ->  | F75: =Prop2021DistTar!BG37 -> 0 | I75: =Prop2021DistTar!BV37 -> 0
A76: =OR(EXACT(D76,Prop2021DistTar!C$6:C$65)) -> TRUE | D76: =IF(Prop2021DistTar!B38="","",Prop2021DistTar!B38) ->  | E76: =IF(Prop2021DistTar!C38="","",Prop2021DistTar!C38) ->  | F76: =Prop2021DistTar!BG38 -> 0 | I76: =Prop2021DistTar!BV38 -> 0
A77: =OR(EXACT(D77,Prop2021DistTar!C$6:C$65)) -> TRUE | D77: =IF(Prop2021DistTar!B39="","",Prop2021DistTar!B39) ->  | E77: =IF(Prop2021DistTar!C39="","",Prop2021DistTar!C39) ->  | F77: =Prop2021DistTar!BG39 -> 0 | I77: =Prop2021DistTar!BV39 -> 0
A78: =OR(EXACT(D78,Prop2021DistTar!C$6:C$65)) -> TRUE | D78: =IF(Prop2021DistTar!B40="","",Prop2021DistTar!B40) ->  | E78: =IF(Prop2021DistTar!C40="","",Prop2021DistTar!C40) ->  | F78: =Prop2021DistTar!BG40 -> 0 | I78: =Prop2021DistTar!BV40 -> 0
A79: =OR(EXACT(D79,Prop2021DistTar!C$6:C$65)) -> TRUE | D79: =IF(Prop2021DistTar!B41="","",Prop2021DistTar!B41) ->  | E79: =IF(Prop2021DistTar!C41="","",Prop2021DistTar!C41) ->  | F79: =Prop2021DistTar!BG41 -> 0 | I79: =Prop2021DistTar!BV41 -> 0
A80: =OR(EXACT(D80,Prop2021DistTar!C$6:C$65)) -> TRUE | D80: =IF(Prop2021DistTar!B42="","",Prop2021DistTar!B42) ->  | E80: =IF(Prop2021DistTar!C42="","",Prop2021DistTar!C42) ->  | F80: =Prop2021DistTar!BG42 -> 0 | I80: =Prop2021DistTar!BV42 -> 0
A81: =OR(EXACT(D81,Prop2021DistTar!C$6:C$65)) -> TRUE | D81: =IF(Prop2021DistTar!B43="","",Prop2021DistTar!B43) ->  | E81: =IF(Prop2021DistTar!C43="","",Prop2021DistTar!C43) ->  | F81: =Prop2021DistTar!BG43 -> 0 | I81: =Prop2021DistTar!BV43 -> 0
A82: =OR(EXACT(D82,Prop2021DistTar!C$6:C$65)) -> TRUE | D82: =IF(Prop2021DistTar!B44="","",Prop2021DistTar!B44) ->  | E82: =IF(Prop2021DistTar!C44="","",Prop2021DistTar!C44) ->  | F82: =Prop2021DistTar!BG44 -> 0 | I82: =Prop2021DistTar!BV44 -> 0
A83: =OR(EXACT(D83,Prop2021DistTar!C$6:C$65)) -> TRUE | D83: =IF(Prop2021DistTar!B45="","",Prop2021DistTar!B45) ->  | E83: =IF(Prop2021DistTar!C45="","",Prop2021DistTar!C45) ->  | F83: =Prop2021DistTar!BG45 -> 0 | I83: =Prop2021DistTar!BV45 -> 0
A84: =OR(EXACT(D84,Prop2021DistTar!C$6:C$65)) -> TRUE | D84: =IF(Prop2021DistTar!B46="","",Prop2021DistTar!B46) ->  | E84: =IF(Prop2021DistTar!C46="","",Prop2021DistTar!C46) ->  | F84: =Prop2021DistTar!BG46 -> 0 | I84: =Prop2021DistTar!BV46 -> 0
A85: =OR(EXACT(D85,Prop2021DistTar!C$6:C$65)) -> TRUE | D85: =IF(Prop2021DistTar!B47="","",Prop2021DistTar!B47) ->  | E85: =IF(Prop2021DistTar!C47="","",Prop2021DistTar!C47) ->  | F85: =Prop2021DistTar!BG47 -> 0 | I85: =Prop2021DistTar!BV47 -> 0
A86: =OR(EXACT(D86,Prop2021DistTar!C$6:C$65)) -> TRUE | D86: =IF(Prop2021DistTar!B48="","",Prop2021DistTar!B48) ->  | E86: =IF(Prop2021DistTar!C48="","",Prop2021DistTar!C48) ->  | F86: =Prop2021DistTar!BG48 -> 0 | I86: =Prop2021DistTar!BV48 -> 0
A87: =OR(EXACT(D87,Prop2021DistTar!C$6:C$65)) -> TRUE | D87: =IF(Prop2021DistTar!B49="","",Prop2021DistTar!B49) ->  | E87: =IF(Prop2021DistTar!C49="","",Prop2021DistTar!C49) ->  | F87: =Prop2021DistTar!BG49 -> 0 | I87: =Prop2021DistTar!BV49 -> 0
A88: =OR(EXACT(D88,Prop2021DistTar!C$6:C$65)) -> TRUE | D88: =IF(Prop2021DistTar!B50="","",Prop2021DistTar!B50) ->  | E88: =IF(Prop2021DistTar!C50="","",Prop2021DistTar!C50) ->  | F88: =Prop2021DistTar!BG50 -> 0 | I88: =Prop2021DistTar!BV50 -> 0
A89: =OR(EXACT(D89,Prop2021DistTar!C$6:C$65)) -> TRUE | D89: =IF(Prop2021DistTar!B51="","",Prop2021DistTar!B51) ->  | E89: =IF(Prop2021DistTar!C51="","",Prop2021DistTar!C51) ->  | F89: =Prop2021DistTar!BG51 -> 0 | I89: =Prop2021DistTar!BV51 -> 0
A90: =OR(EXACT(D90,Prop2021DistTar!C$6:C$65)) -> TRUE | D90: =IF(Prop2021DistTar!B52="","",Prop2021DistTar!B52) ->  | E90: =IF(Prop2021DistTar!C52="","",Prop2021DistTar!C52) ->  | F90: =Prop2021DistTar!BG52 -> 0 | I90: =Prop2021DistTar!BV52 -> 0
A91: =OR(EXACT(D91,Prop2021DistTar!C$6:C$65)) -> TRUE | D91: =IF(Prop2021DistTar!B53="","",Prop2021DistTar!B53) ->  | E91: =IF(Prop2021DistTar!C53="","",Prop2021DistTar!C53) ->  | F91: =Prop2021DistTar!BG53 -> 0 | I91: =Prop2021DistTar!BV53 -> 0
A92: =OR(EXACT(D92,Prop2021DistTar!C$6:C$65)) -> TRUE | D92: =IF(Prop2021DistTar!B54="","",Prop2021DistTar!B54) ->  | E92: =IF(Prop2021DistTar!C54="","",Prop2021DistTar!C54) ->  | F92: =Prop2021DistTar!BG54 -> 0 | I92: =Prop2021DistTar!BV54 -> 0
A93: =OR(EXACT(D93,Prop2021DistTar!C$6:C$65)) -> TRUE | D93: =IF(Prop2021DistTar!B55="","",Prop2021DistTar!B55) ->  | E93: =IF(Prop2021DistTar!C55="","",Prop2021DistTar!C55) ->  | F93: =Prop2021DistTar!BG55 -> 0 | I93: =Prop2021DistTar!BV55 -> 0
A94: =OR(EXACT(D94,Prop2021DistTar!C$6:C$65)) -> TRUE | D94: =IF(Prop2021DistTar!B56="","",Prop2021DistTar!B56) ->  | E94: =IF(Prop2021DistTar!C56="","",Prop2021DistTar!C56) ->  | F94: =Prop2021DistTar!BG56 -> 0 | I94: =Prop2021DistTar!BV56 -> 0
A95: =OR(EXACT(D95,Prop2021DistTar!C$6:C$65)) -> TRUE | D95: =IF(Prop2021DistTar!B57="","",Prop2021DistTar!B57) ->  | E95: =IF(Prop2021DistTar!C57="","",Prop2021DistTar!C57) ->  | F95: =Prop2021DistTar!BG57 -> 0 | I95: =Prop2021DistTar!BV57 -> 0
A96: =OR(EXACT(D96,Prop2021DistTar!C$6:C$65)) -> TRUE | D96: =IF(Prop2021DistTar!B58="","",Prop2021DistTar!B58) ->  | E96: =IF(Prop2021DistTar!C58="","",Prop2021DistTar!C58) ->  | F96: =Prop2021DistTar!BG58 -> 0 | I96: =Prop2021DistTar!BV58 -> 0
A97: =OR(EXACT(D97,Prop2021DistTar!C$6:C$65)) -> TRUE | D97: =IF(Prop2021DistTar!B59="","",Prop2021DistTar!B59) ->  | E97: =IF(Prop2021DistTar!C59="","",Prop2021DistTar!C59) ->  | F97: =Prop2021DistTar!BG59 -> 0 | I97: =Prop2021DistTar!BV59 -> 0
A98: =OR(EXACT(D98,Prop2021DistTar!C$6:C$65)) -> TRUE | D98: =IF(Prop2021DistTar!B60="","",Prop2021DistTar!B60) ->  | E98: =IF(Prop2021DistTar!C60="","",Prop2021DistTar!C60) ->  | F98: =Prop2021DistTar!BG60 -> 0 | I98: =Prop2021DistTar!BV60 -> 0
A99: =OR(EXACT(D99,Prop2021DistTar!C$6:C$65)) -> TRUE | D99: =IF(Prop2021DistTar!B61="","",Prop2021DistTar!B61) ->  | E99: =IF(Prop2021DistTar!C61="","",Prop2021DistTar!C61) ->  | F99: =Prop2021DistTar!BG61 -> 0 | I99: =Prop2021DistTar!BV61 -> 0
A100: =OR(EXACT(D100,Prop2021DistTar!C$6:C$65)) -> TRUE | D100: =IF(Prop2021DistTar!B62="","",Prop2021DistTar!B62) ->  | E100: =IF(Prop2021DistTar!C62="","",Prop2021DistTar!C62) ->  | F100: =Prop2021DistTar!BG62 -> 0 | I100: =Prop2021DistTar!BV62 -> 0
A101: =OR(EXACT(D101,Prop2021DistTar!C$6:C$65)) -> TRUE | D101: =IF(Prop2021DistTar!B63="","",Prop2021DistTar!B63) ->  | E101: =IF(Prop2021DistTar!C63="","",Prop2021DistTar!C63) ->  | F101: =Prop2021DistTar!BG63 -> 0 | I101: =Prop2021DistTar!BV63 -> 0
A102: =OR(EXACT(D102,Prop2021DistTar!C$6:C$65)) -> TRUE | D102: =IF(Prop2021DistTar!B64="","",Prop2021DistTar!B64) ->  | E102: =IF(Prop2021DistTar!C64="","",Prop2021DistTar!C64) ->  | F102: =Prop2021DistTar!BG64 -> 0 | I102: =Prop2021DistTar!BV64 -> 0
A103: =OR(EXACT(D103,Prop2021DistTar!C$6:C$65)) -> TRUE | D103: =IF(Prop2021DistTar!B65="","",Prop2021DistTar!B65) ->  | E103: =IF(Prop2021DistTar!C65="","",Prop2021DistTar!C65) ->  | F103: =Prop2021DistTar!BG65 -> 0 | I103: =Prop2021DistTar!BV65 -> 0
F104: 117646252.6 | I104: 136173854.5 | BJ104: =SUM(BJ44:BJ103) -> 0

Sheet Est2020DistRev
B1: ="Tariff Approval - "&'Model update'!C3 -> Tariff Approval - Jemena | D1: ="Est"&'Model update'!$C$5-1&"DistRev" -> Est2020DistRev
B3: ="ESTIMATED "&'Model update'!$C$8&" Distribution Revenue" -> ESTIMATED 2020 Distribution Revenue
D4: ="Current Distribution Tariffs (Pt-1) for "&'Model update'!$C$8 -> Current Distribution Tariffs (Pt-1) for 2020 | R4: =" Estimated Distribution Quantities for "&'Model update'!$C$8&" (Qt-1)" -> Estimated Distribution Quantities for 2020 (Qt-1) | AF4: ="Estimated Revenue (Pt-1 "&'Model update'!$C$8&")*(Qt-1 " &'Model update'!$C$8&")" -> Estimated Revenue (Pt-1 2020)*(Qt-1 2020)
B5: ="Tariffs "&'[2]Model update'!C8 -> Tariffs 2019 | D5: CurrentTar Fixed | E5: CurrentTar PkBlk1 | F5: CurrentTar Shoulder summer | G5: CurrentTar peak non-summer | H5: CurrentTar Shoulder non-summer | I5: CurrentTar OPkBlk1 | J5: CurrentTar off peak non-summer | K5: CurrentTar OPkBlk3 | L5: CurrentTar OPkBlk4 | M5: CurrentTar DemBlk1 | N5: CurrentTar DemBlk2 | O5: CurrentTar DemBlk3 | P5: CurrentTar DemBlk4 | R5: EstVol Fixed | S5: EstVol PkBlk1 | T5: EstVol Shoulder summer | U5: EstVol peak non-summer | V5: EstVol Shoulder non-summer | W5: EstVol OPkBlk1 | X5: EstVol off peak non-summer | Y5: EstVol OPkBlk3 | Z5: EstVol OPkBlk4 | AA5: EstVol DemBlk1 | AB5: EstVol DemBlk2 | AC5: EstVol DemBlk3 | AD5: EstVol DemBlk4 | AF5: EstRev Fixed | AG5: EstRev PkBlk1 | AH5: EstRev Shoulder summer | AI5: EstRev peak non-summer | AJ5: EstRev Shoulder non-summer | AK5: EstRev OPkBlk1 | AL5: EstRev off peak non-summer | AM5: EstRev OPkBlk3 | AN5: EstRev OPkBlk4 | AO5: EstRev DemBlk1 | AP5: EstRev DemBlk2 | AQ5: EstRev DemBlk3 | AR5: EstRev DemBlk4 | AS5: EstRev Total
B6: =Prop2021DistTar!C6 -> Residential - General Purpose | D6: 58.659 | E6: 7.821 | F6: 0 | G6: 0 | H6: 0 | I6: 0 | J6: 0 | K6: 0 | L6: 0 | M6: 0 | N6: 0 | O6: 0 | P6: 0 | R6: 306575.3081 | S6: 1266807387 | T6: 0 | U6: 0 | V6: 0 | W6: 0 | X6: 0 | Y6: 0 | Z6: 0 | AA6: 0 | AB6: 0 | AC6: 0 | AD6: 0 | AF6: =D6*R6 -> 17983401 | AG6: =E6/100*S6 -> 99077005.74 | AH6: 0 | AI6: 0 | AJ6: 0 | AK6: 0 | AL6: 0 | AM6: 0 | AN6: 0 | AO6: =M6*AA6 -> 0 | AP6: 0 | AQ6: 0 | AR6: 0 | AS6: =SUM(AF6:AR6) -> 117060406.7
B7: =Prop2021DistTar!C7 -> Residential - General Purpose Demand | D7: 58.659 | E7: 3.443 | F7: 0 | G7: 0 | H7: 0 | I7: 0 | J7: 0 | K7: 0 | L7: 0 | M7: 60.031 | N7: 0 | O7: 0 | P7: 0 | R7: 5.134764017 | S7: 21217.48495 | T7: 0 | U7: 0 | V7: 0 | W7: 0 | X7: 0 | Y7: 0 | Z7: 0 | AA7: 18.72011342 | AB7: 0 | AC7: 0 | AD7: 0 | AF7: =D7*R7 -> 301.2001224 | AG7: =E7/100*S7 -> 730.518007 | AH7: 0 | AI7: 0 | AJ7: 0 | AK7: 0 | AL7: 0 | AM7: 0 | AN7: 0 | AO7: =M7*AA7 -> 1123.787129 | AP7: =N7*AB7 -> 0 | AQ7: =O7*AC7 -> 0 | AR7: =P7*AD7 -> 0 | AS7: =SUM(AF7:AR7) -> 2155.505258
B8: =Prop2021DistTar!C8 -> Residential - Flexible | D8: 58.659 | E8: 12.601 | F8: 7.821 | G8: 12.601 | H8: 7.821 | I8: 3.80212356 | J8: 3.802 | K8: 0 | L8: 0 | M8: 0 | N8: 0 | O8: 0 | P8: 0 | R8: 1066.249258 | S8: 513894.5572 | T8: 963834.6369 | U8: 676158.9282 | V8: 1257062.401 | W8: 1020330.267 | X8: 821885.2976 | Y8: 0 | Z8: 0 | AA8: 0 | AB8: 0 | AC8: 0 | AD8: 0 | AF8: 62545.11525 | AG8: 64755.85316 | AH8: 75381.50695 | AI8: 85202.78655 | AJ8: 98314.85039 | AK8: 38794.21745 | AL8: 31248.07901 | AM8: 0 | AN8: 0 | AO8: 0 | AP8: 0 | AQ8: 0 | AR8: 0 | AS8: 456242.4088
B9: =Prop2021DistTar!C9 -> Residential - Time of Use Interval Meter | D9: 58.659 | E9: 12.67 | F9: 0 | G9: 0 | H9: 0 | I9: 1.844 | J9: 0 | K9: 0 | L9: 0 | M9: 0 | N9: 0 | O9: 0 | P9: 0 | R9: 14984.05089 | S9: 31652210.5 | T9: 0 | U9: 0 | V9: 0 | W9: 32760180.55 | X9: 0 | Y9: 0 | Z9: 0 | AA9: 0 | AB9: 0 | AC9: 0 | AD9: 0 | AF9: 878949.4414 | AG9: 4010335.07 | AH9: 0 | AI9: 0 | AJ9: 0 | AK9: 604097.7294 | AL9: 0 | AM9: 0 | AN9: 0 | AO9: 0 | AP9: 0 | AQ9: 0 | AR9: 0 | AS9: 5493382.241
B10: =Prop2021DistTar!C10 -> Residential - TOU | D10: 99.122 | E10: 8.739 | F10: 0 | G10: 0 | H10: 0 | I10: 1.475 | J10: 0 | K10: 0 | L10: 0 | M10: 0 | N10: 0 | O10: 0 | P10: 0 | R10: 1371.286329 | S10: 5320045.464 | T10: 0 | U10: 0 | V10: 0 | W10: 5826260.514 | X10: 0 | Y10: 0 | Z10: 0 | AA10: 0 | AB10: 0 | AC10: 0 | AD10: 0 | AF10: 135924.6435 | AG10: 464918.7731 | AH10: 0 | AI10: 0 | AJ10: 0 | AK10: 85937.34258 | AL10: 0 | AM10: 0 | AN10: 0 | AO10: 0 | AP10: 0 | AQ10: 0 | AR10: 0 | AS10: 686780.7592
B11: =Prop2021DistTar!C11 -> Residential - Off Peak Only | D11: 0 | E11: 0 | F11: 0 | G11: 0 | H11: 0 | I11: 1.7 | J11: 0 | K11: 0 | L11: 0 | M11: 0 | N11: 0 | O11: 0 | P11: 0 | R11: 0 | S11: 0 | T11: 0 | U11: 0 | V11: 0 | W11: 35918450.4 | X11: 0 | Y11: 0 | Z11: 0 | AA11: 0 | AB11: 0 | AC11: 0 | AD11: 0 | AF11: 0 | AG11: 0 | AH11: 0 | AI11: 0 | AJ11: 0 | AK11: 610613.6568 | AL11: 0 | AM11: 0 | AN11: 0 | AO11: 0 | AP11: 0 | AQ11: 0 | AR11: 0 | AS11: 610613.6568
B12: =Prop2021DistTar!C12 -> Small Business - General Purpose | D12: 101.483 | E12: 9.346 | F12: 0 | G12: 0 | H12: 0 | I12: 0 | J12: 0 | K12: 0 | L12: 0 | M12: 0 | N12: 0 | O12: 0 | P12: 0 | R12: 16418.55905 | S12: 206322791.9 | T12: 0 | U12: 0 | V12: 0 | W12: 0 | X12: 0 | Y12: 0 | Z12: 0 | AA12: 0 | AB12: 0 | AC12: 0 | AD12: 0 | AF12: 1666204.628 | AG12: 19282928.13 | AH12: 0 | AI12: 0 | AJ12: 0 | AK12: 0 | AL12: 0 | AM12: 0 | AN12: 0 | AO12: 0 | AP12: 0 | AQ12: 0 | AR12: 0 | AS12: 20949132.76
B13: =Prop2021DistTar!C13 -> Small Business - General Purpose Demand | D13: 101.483 | E13: 7.371 | F13: 0 | G13: 0 | H13: 0 | I13: 0 | J13: 0 | K13: 0 | L13: 0 | M13: 58.183 | N13: 0 | O13: 0 | P13: 0 | R13: 1.344102883 | T13: 0 | U13: 0 | V13: 0 | X13: 0 | Y13: 0 | Z13: 0 | AB13: 0 | AC13: 0 | AD13: 0 | AF13: 136.4035929 | AH13: 0 | AI13: 0 | AJ13: 0 | AL13: 0 | AM13: 0 | AN13: 0 | AP13: 0 | AQ13: 0 | AR13: 0
B14: =Prop2021DistTar!C14 -> Small Business - TOU Weekdays | D14: 156.027 | E14: 11.056 | F14: 0 | G14: 0 | H14: 0 | I14: 1.818 | J14: 0 | K14: 0 | L14: 0 | M14: 0 | N14: 0 | O14: 0 | P14: 0 | R14: 7696.463709 | S14: 170924694.6 | T14: 0 | U14: 0 | V14: 0 | W14: 111481488.5 | X14: 0 | Y14: 0 | Z14: 0 | AA14: 0 | AB14: 0 | AC14: 0 | AD14: 0 | AF14: 1200856.143 | AG14: 18897434.24 | AH14: 0 | AI14: 0 | AJ14: 0 | AK14: 2026733.462 | AL14: 0 | AM14: 0 | AN14: 0 | AO14: 0 | AP14: 0 | AQ14: 0 | AR14: 0 | AS14: 22125023.84
B15: =Prop2021DistTar!C15 -> Small Business - TOU Weekdays Demand | D15: 225.879 | E15: 6.809 | F15: 0 | G15: 0 | H15: 0 | I15: 2.121 | J15: 0 | K15: 0 | L15: 0 | M15: 66.547395 | N15: 0 | O15: 0 | P15: 0 | R15: 667.2837814 | S15: 69784438.34 | T15: 0 | U15: 0 | V15: 0 | W15: 48547711.91 | X15: 0 | Y15: 0 | Z15: 0 | AA15: 52693.96892 | AB15: 0 | AC15: 0 | AD15: 0 | AF15: 150725.3932 | AG15: 4751622.407 | AH15: 0 | AI15: 0 | AJ15: 0 | AK15: 1029696.97 | AL15: 0 | AM15: 0 | AN15: 0 | AO15: 3506646.364 | AP15: 0 | AQ15: 0 | AR15: 0 | AS15: 9438691.133
B16: =Prop2021DistTar!C16 -> Small Business - TOU Opt out | D16: 225.879 | E16: 11.056 | F16: 0 | G16: 0 | H16: 0 | I16: 1.818 | J16: 0 | K16: 0 | L16: 0 | M16: 0 | N16: 0 | O16: 0 | P16: 0 | R16: 51 | S16: 5349072.517 | T16: 0 | U16: 0 | V16: 0 | W16: 0 | X16: 0 | Y16: 0 | Z16: 0 | AA16: 0 | AB16: 0 | AC16: 0 | AD16: 0 | AF16: 11519.829 | AG16: 591393.4575 | AH16: 0 | AI16: 0 | AJ16: 0 | AK16: 0 | AL16: 0 | AM16: 0 | AN16: 0 | AO16: 0 | AP16: 0 | AQ16: 0 | AR16: 0 | AS16: 602913.2865
B17: =Prop2021DistTar!C17 -> Small Business - TOU Extended | D17: 156.027 | E17: 9.793 | F17: 0 | G17: 0 | H17: 0 | I17: 1.97 | J17: 0 | K17: 0 | L17: 0 | M17: 0 | N17: 0 | O17: 0 | P17: 0 | R17: 2331.830229 | S17: 41771214.93 | T17: 0 | U17: 0 | V17: 0 | W17: 12782107.32 | X17: 0 | Y17: 0 | Z17: 0 | AA17: 0 | AB17: 0 | AC17: 0 | AD17: 0 | AF17: 363828.4752 | AG17: 4090655.079 | AH17: 0 | AI17: 0 | AJ17: 0 | AK17: 251807.5141 | AL17: 0 | AM17: 0 | AN17: 0 | AO17: 0 | AP17: 0 | AQ17: 0 | AR17: 0 | AS17: 4706291.068
B18: =Prop2021DistTar!C18 -> Small Business - TOU Extended Demand | D18: 225.879 | E18: 5.171 | F18: 0 | G18: 0 | H18: 0 | I18: 2.261 | J18: 0 | K18: 0 | L18: 0 | M18: 66.547395 | N18: 0 | O18: 0 | P18: 0 | R18: 115.4249261 | S18: 18810985.69 | T18: 0 | U18: 0 | V18: 0 | W18: 5531396.48 | X18: 0 | Y18: 0 | Z18: 0 | AA18: 11957.52292 | AB18: 0 | AC18: 0 | AD18: 0 | AF18: 26072.06688 | AG18: 972716.0701 | AH18: 0 | AI18: 0 | AJ18: 0 | AK18: 125064.8744 | AL18: 0 | AM18: 0 | AN18: 0 | AO18: 795742.0007 | AP18: 0 | AQ18: 0 | AR18: 0 | AS18: 1919595.012
B19: =Prop2021DistTar!C19 -> Small Business - Unmetered Supply | D19: 0 | E19: 10.485 | F19: 0 | G19: 0 | H19: 0 | I19: 1.888 | J19: 0 | K19: 0 | L19: 0 | M19: 0 | N19: 0 | O19: 0 | P19: 0 | R19: 0 | S19: 11872124.14 | T19: 0 | U19: 0 | V19: 0 | W19: 26427874.32 | X19: 0 | Y19: 0 | Z19: 0 | AA19: 0 | AB19: 0 | AC19: 0 | AD19: 0 | AF19: 0 | AG19: 1244792.216 | AH19: 0 | AI19: 0 | AJ19: 0 | AK19: 498958.2671 | AL19: 0 | AM19: 0 | AN19: 0 | AO19: 0 | AP19: 0 | AQ19: 0 | AR19: 0 | AS19: 1743750.483
B20: =Prop2021DistTar!C20 -> Large Business - LV 0.4 - 0.8 GWh | D20: 2465.437 | E20: 2.018 | F20: 0 | G20: 0 | H20: 0 | I20: 0.639 | J20: 0 | K20: 0 | L20: 0 | M20: 100.021 | N20: 0 | O20: 0 | P20: 0 | R20: 749.2560244 | S20: 175307653.6 | T20: 0 | U20: 0 | V20: 0 | W20: 112610508.3 | X20: 0 | Y20: 0 | Z20: 0 | AA20: 158812.0352 | AB20: 0 | AC20: 0 | AD20: 0 | AF20: 1847243.525 | AG20: 3537708.45 | AH20: 0 | AI20: 0 | AJ20: 0 | AK20: 719581.1481 | AL20: 0 | AM20: 0 | AN20: 0 | AO20: 15884538.58 | AP20: 0 | AQ20: 0 | AR20: 0 | AS20: 21989071.7
B21: =Prop2021DistTar!C21 -> Large Business – LVEN Annual Consumption <= 0.8 GWh | D21: 2465.437 | E21: 2.036 | F21: 0 | G21: 0 | H21: 0 | I21: 0.639 | J21: 0 | K21: 0 | L21: 0 | M21: 112.849 | N21: 0 | O21: 0 | P21: 0 | R21: 70.7 | S21: 20519791.04 | T21: 0 | U21: 0 | V21: 0 | W21: 14174690.69 | X21: 0 | Y21: 0 | Z21: 0 | AA21: 17202.08125 | AB21: 0 | AC21: 0 | AD21: 0 | AF21: 174306.3959 | AG21: 417782.9456 | AH21: 0 | AI21: 0 | AJ21: 0 | AK21: 90576.27353 | AL21: 0 | AM21: 0 | AN21: 0 | AO21: 1941237.667 | AP21: 0 | AQ21: 0 | AR21: 0 | AS21: 2623903.282
B22: =Prop2021DistTar!C22 -> Large Business - LV 0.8+ - 2.2 GWh | D22: 4315.529 | E22: 1.377 | F22: 0 | G22: 0 | H22: 0 | I22: 0.628 | J22: 0 | K22: 0 | L22: 0 | M22: 92.453 | N22: 0 | O22: 0 | P22: 0 | R22: 374.988246 | S22: 269437471.1 | T22: 0 | U22: 0 | V22: 0 | W22: 186190977.4 | X22: 0 | Y22: 0 | Z22: 0 | AA22: 177693.8618 | AB22: 0 | AC22: 0 | AD22: 0 | AF22: 1618272.65 | AG22: 3710153.977 | AH22: 0 | AI22: 0 | AJ22: 0 | AK22: 1169279.338 | AL22: 0 | AM22: 0 | AN22: 0 | AO22: 16428330.6 | AP22: 0 | AQ22: 0 | AR22: 0 | AS22: 22926036.57
B23: =Prop2021DistTar!C23 -> Large Business - LVEN 0.8+ - 2.2 GWh | D23: 4315.529 | E23: 1.376 | F23: 0 | G23: 0 | H23: 0 | I23: 0.628 | J23: 0 | K23: 0 | L23: 0 | M23: 101.707 | N23: 0 | O23: 0 | P23: 0 | R23: 44 | S23: 28725458.95 | T23: 0 | U23: 0 | V23: 0 | W23: 18896186.89 | X23: 0 | Y23: 0 | Z23: 0 | AA23: 19831.31559 | AB23: 0 | AC23: 0 | AD23: 0 | AF23: 189883.276 | AG23: 395262.3152 | AH23: 0 | AI23: 0 | AJ23: 0 | AK23: 118668.0537 | AL23: 0 | AM23: 0 | AN23: 0 | AO23: 2016983.615 | AP23: 0 | AQ23: 0 | AR23: 0 | AS23: 2720797.26
B24: =Prop2021DistTar!C24 -> Large Business - LV 2.2+ - 6.0 GWh | D24: 6619.21 | E24: 1.26 | F24: 0 | G24: 0 | H24: 0 | I24: 0.511 | J24: 0 | K24: 0 | L24: 0 | M24: 91.455 | N24: 0 | O24: 0 | P24: 0 | R24: 72.65840564 | S24: 123632421.4 | T24: 0 | U24: 0 | V24: 0 | W24: 93477286.13 | X24: 0 | Y24: 0 | Z24: 0 | AA24: 71075.88411 | AB24: 0 | AC24: 0 | AD24: 0 | AF24: 480941.2452 | AG24: 1557768.509 | AH24: 0 | AI24: 0 | AJ24: 0 | AK24: 477668.9321 | AL24: 0 | AM24: 0 | AN24: 0 | AO24: 6500244.981 | AP24: 0 | AQ24: 0 | AR24: 0 | AS24: 9016623.668
B25: =Prop2021DistTar!C25 -> Large Business - LVEN 2.2+ GWh | D25: 6619.21 | E25: 1.26 | F25: 0 | G25: 0 | H25: 0 | I25: 0.511 | J25: 0 | K25: 0 | L25: 0 | M25: 96.583 | N25: 0 | O25: 0 | P25: 0 | R25: 17.35673809 | S25: 31188816.3 | T25: 0 | U25: 0 | V25: 0 | W25: 22454485.84 | X25: 0 | Y25: 0 | Z25: 0 | AA25: 16630.35649 | AB25: 0 | AC25: 0 | AD25: 0 | AF25: 114887.8943 | AG25: 392979.0854 | AH25: 0 | AI25: 0 | AJ25: 0 | AK25: 114742.4227 | AL25: 0 | AM25: 0 | AN25: 0 | AO25: 1606209.721 | AP25: 0 | AQ25: 0 | AR25: 0 | AS25: 2228819.123
B26: =Prop2021DistTar!C26 -> Large Business - LVMS 2.2+ - 6.0 GWh | D26: 3901.284 | E26: 1.247 | F26: 0 | G26: 0 | H26: 0 | I26: 0.511 | J26: 0 | K26: 0 | L26: 0 | M26: 62.088 | N26: 0 | O26: 0 | P26: 0 | R26: 11 | S26: 10947685.65 | T26: 0 | U26: 0 | V26: 0 | W26: 8831426.158 | X26: 0 | Y26: 0 | Z26: 0 | AA26: 7857.658684 | AB26: 0 | AC26: 0 | AD26: 0 | AF26: 42914.124 | AG26: 136517.64 | AH26: 0 | AI26: 0 | AJ26: 0 | AK26: 45128.58767 | AL26: 0 | AM26: 0 | AN26: 0 | AO26: 487866.3124 | AP26: 0 | AQ26: 0 | AR26: 0 | AS26: 712426.6641
B27: =Prop2021DistTar!C27 -> Large Business - LV 6.0+ GWh | D27: 9072.511 | E27: 1.225 | F27: 0 | G27: 0 | H27: 0 | I27: 0.455 | J27: 0 | K27: 0 | L27: 0 | M27: 87.833 | N27: 0 | O27: 0 | P27: 0 | R27: 19 | S27: 54016087.34 | T27: 0 | U27: 0 | V27: 0 | W27: 45267619.45 | X27: 0 | Y27: 0 | Z27: 0 | AA27: 24539.6823 | AB27: 0 | AC27: 0 | AD27: 0 | AF27: 172377.709 | AG27: 661697.0699 | AH27: 0 | AI27: 0 | AJ27: 0 | AK27: 205967.6685 | AL27: 0 | AM27: 0 | AN27: 0 | AO27: 2155393.915 | AP27: 0 | AQ27: 0 | AR27: 0 | AS27: 3195436.363
B28: =Prop2021DistTar!C28 -> Large Business - LVMS 6.0+ GWh | D28: 5268.972 | E28: 1.225 | F28: 0 | G28: 0 | H28: 0 | I28: 0.455 | J28: 0 | K28: 0 | L28: 0 | M28: 62.193 | N28: 0 | O28: 0 | P28: 0 | R28: 31 | S28: 51574099.3 | T28: 0 | U28: 0 | V28: 0 | W28: 40147645.06 | X28: 0 | Y28: 0 | Z28: 0 | AA28: 29061.41144 | AB28: 0 | AC28: 0 | AD28: 0 | AF28: 163338.132 | AG28: 631782.7164 | AH28: 0 | AI28: 0 | AJ28: 0 | AK28: 182671.785 | AL28: 0 | AM28: 0 | AN28: 0 | AO28: 1807416.362 | AP28: 0 | AQ28: 0 | AR28: 0 | AS28: 2785208.995
B29: =Prop2021DistTar!C29 -> Large Business - HV | D29: 6494.215 | E29: 0.819 | F29: 0 | G29: 0 | H29: 0 | I29: 0.237 | J29: 0 | K29: 0 | L29: 0 | M29: 73.632 | N29: 0 | O29: 0 | P29: 0 | R29: 79.96666667 | S29: 261382203.5 | T29: 0 | U29: 0 | V29: 0 | W29: 207377504.5 | X29: 0 | Y29: 0 | Z29: 0 | AA29: 179403.3486 | AB29: 0 | AC29: 0 | AD29: 0 | AF29: 519320.7262 | AG29: 2140720.246 | AH29: 0 | AI29: 0 | AJ29: 0 | AK29: 491484.6857 | AL29: 0 | AM29: 0 | AN29: 0 | AO29: 13209827.36 | AP29: 0 | AQ29: 0 | AR29: 0 | AS29: 16361353.02
B30: =Prop2021DistTar!C30 -> Large Business – HVEN | D30: 6494.215 | E30: 0.822 | F30: 0 | G30: 0 | H30: 0 | I30: 0.237 | J30: 0 | K30: 0 | L30: 0 | M30: 75.863 | N30: 0 | O30: 0 | P30: 0 | R30: 2 | T30: 0 | U30: 0 | V30: 0 | X30: 0 | Y30: 0 | Z30: 0 | AB30: 0 | AC30: 0 | AD30: 0 | AF30: 12988.43 | AH30: 0 | AI30: 0 | AJ30: 0 | AL30: 0 | AM30: 0 | AN30: 0 | AP30: 0 | AQ30: 0 | AR30: 0
B31: =Prop2021DistTar!C31 -> Large Business - HVRF | D31: 6494.215 | E31: 0.811 | F31: 0 | G31: 0 | H31: 0 | I31: 0.237 | J31: 0 | K31: 0 | L31: 0 | M31: 67.658 | N31: 0 | O31: 0 | P31: 0 | R31: 1.966666667 | T31: 0 | U31: 0 | V31: 0 | X31: 0 | Y31: 0 | Z31: 0 | AB31: 0 | AC31: 0 | AD31: 0 | AF31: 12771.95617 | AH31: 0 | AI31: 0 | AJ31: 0 | AL31: 0 | AM31: 0 | AN31: 0 | AP31: 0 | AQ31: 0 | AR31: 0
B32: =Prop2021DistTar!C32 -> Large Business - HV Ann Cons >= 55GWh | D32: 6066.261 | E32: 0.782 | F32: 0 | G32: 0 | H32: 0 | I32: 0.184 | J32: 0 | K32: 0 | L32: 0 | M32: 65.328 | N32: 0 | O32: 0 | P32: 0 | R32: 1 | T32: 0 | U32: 0 | V32: 0 | X32: 0 | Y32: 0 | Z32: 0 | AB32: 0 | AC32: 0 | AD32: 0 | AF32: 6066.261 | AH32: 0 | AI32: 0 | AJ32: 0 | AL32: 0 | AM32: 0 | AN32: 0 | AP32: 0 | AQ32: 0 | AR32: 0
B33: =Prop2021DistTar!C33 -> Large Business - Subtransmission | D33: 40563.08 | E33: 0.153 | F33: 0 | G33: 0 | H33: 0 | I33: 0.045 | J33: 0 | K33: 0 | L33: 0 | M33: 20.197 | N33: 0 | O33: 0 | P33: 0 | R33: 3 | T33: 0 | U33: 0 | V33: 0 | X33: 0 | Y33: 0 | Z33: 0 | AB33: 0 | AC33: 0 | AD33: 0 | AF33: 121689.24 | AH33: 0 | AI33: 0 | AJ33: 0 | AL33: 0 | AM33: 0 | AN33: 0 | AP33: 0 | AQ33: 0 | AR33: 0
B34: =Prop2021DistTar!C34 -> Large Business - Subtransmission MA | D34: 40563.08 | E34: 0.153 | F34: 0 | G34: 0 | H34: 0 | I34: 0.045 | J34: 0 | K34: 0 | L34: 0 | M34: 20.281 | N34: 0 | O34: 0 | P34: 0 | R34: 1 | T34: 0 | U34: 0 | V34: 0 | X34: 0 | Y34: 0 | Z34: 0 | AB34: 0 | AC34: 0 | AD34: 0 | AF34: 40563.08 | AH34: 0 | AI34: 0 | AJ34: 0 | AL34: 0 | AM34: 0 | AN34: 0 | AP34: 0 | AQ34: 0 | AR34: 0
B35: =Prop2021DistTar!C35 -> Large Business - Subtransmission EG | D35: 31516.884 | E35: 0.146 | F35: 0 | G35: 0 | H35: 0 | I35: 0.023 | J35: 0 | K35: 0 | L35: 0 | M35: 3.478 | N35: 0 | O35: 0 | P35: 0 | R35: 1 | T35: 0 | U35: 0 | V35: 0 | X35: 0 | Y35: 0 | Z35: 0 | AB35: 0 | AC35: 0 | AD35: 0 | AF35: 31516.884 | AH35: 0 | AI35: 0 | AJ35: 0 | AL35: 0 | AM35: 0 | AN35: 0 | AP35: 0 | AQ35: 0 | AR35: 0
AF36: 0 | AG36: 0 | AH36: 0 | AI36: 0 | AJ36: 0 | AK36: 0 | AL36: 0 | AM36: 0 | AN36: 0 | AO36: 0 | AP36: 0 | AQ36: 0 | AR36: 0 | AS36: 0
AF37: 0 | AG37: 0 | AH37: 0 | AI37: 0 | AJ37: 0 | AK37: 0 | AL37: 0 | AM37: 0 | AN37: 0 | AO37: 0 | AP37: 0 | AQ37: 0 | AR37: 0 | AS37: 0
AF38: 0 | AG38: 0 | AH38: 0 | AI38: 0 | AJ38: 0 | AK38: 0 | AL38: 0 | AM38: 0 | AN38: =L38/100*Z38 -> 0 | AO38: 0 | AP38: 0 | AQ38: 0 | AR38: 0 | AS38: 0
AF39: 0 | AG39: 0 | AH39: 0 | AI39: 0 | AJ39: 0 | AK39: 0 | AL39: 0 | AM39: 0 | AN39: 0 | AO39: 0 | AP39: 0 | AQ39: 0 | AR39: 0 | AS39: 0
AF40: 0 | AG40: 0 | AH40: 0 | AI40: 0 | AJ40: 0 | AK40: 0 | AL40: 0 | AM40: 0 | AN40: 0 | AO40: 0 | AP40: 0 | AQ40: 0 | AR40: 0 | AS40: 0
AF41: 0 | AG41: 0 | AH41: 0 | AI41: 0 | AJ41: 0 | AK41: 0 | AL41: 0 | AM41: 0 | AN41: 0 | AO41: 0 | AP41: 0 | AQ41: 0 | AR41: 0 | AS41: 0
AF42: 0 | AG42: 0 | AH42: 0 | AI42: 0 | AJ42: 0 | AK42: 0 | AL42: 0 | AM42: 0 | AN42: 0 | AO42: 0 | AP42: 0 | AQ42: 0 | AR42: 0 | AS42: 0
AF43: 0 | AG43: 0 | AH43: 0 | AI43: 0 | AJ43: 0 | AK43: 0 | AL43: 0 | AM43: 0 | AN43: 0 | AO43: 0 | AP43: 0 | AQ43: 0 | AR43: 0 | AS43: 0
AF44: 0 | AG44: 0 | AH44: 0 | AI44: 0 | AJ44: 0 | AK44: 0 | AL44: 0 | AM44: 0 | AN44: 0 | AO44: 0 | AP44: 0 | AQ44: 0 | AR44: 0 | AS44: 0
AF45: 0 | AG45: 0 | AH45: 0 | AI45: 0 | AJ45: 0 | AK45: 0 | AL45: 0 | AM45: 0 | AN45: 0 | AO45: 0 | AP45: 0 | AQ45: 0 | AR45: 0 | AS45: 0
AF46: 0 | AG46: 0 | AH46: 0 | AI46: 0 | AJ46: 0 | AK46: 0 | AL46: 0 | AM46: 0 | AN46: 0 | AO46: 0 | AP46: 0 | AQ46: 0 | AR46: 0 | AS46: 0
AF47: 0 | AG47: 0 | AH47: 0 | AI47: 0 | AJ47: 0 | AK47: 0 | AL47: 0 | AM47: 0 | AN47: 0 | AO47: 0 | AP47: 0 | AQ47: 0 | AR47: 0 | AS47: 0
AF48: 0 | AG48: 0 | AH48: 0 | AI48: 0 | AJ48: 0 | AK48: 0 | AL48: 0 | AM48: 0 | AN48: 0 | AO48: 0 | AP48: 0 | AQ48: 0 | AR48: 0 | AS48: 0
AF49: 0 | AG49: 0 | AH49: 0 | AI49: 0 | AJ49: 0 | AK49: 0 | AL49: 0 | AM49: 0 | AN49: 0 | AO49: 0 | AP49: 0 | AQ49: 0 | AR49: 0 | AS49: 0
AF50: 0 | AG50: 0 | AH50: 0 | AI50: 0 | AJ50: 0 | AK50: 0 | AL50: 0 | AM50: 0 | AN50: 0 | AO50: 0 | AP50: 0 | AQ50: 0 | AR50: 0 | AS50: 0
AF51: 0 | AG51: 0 | AH51: 0 | AI51: 0 | AJ51: 0 | AK51: 0 | AL51: 0 | AM51: 0 | AN51: 0 | AO51: 0 | AP51: 0 | AQ51: 0 | AR51: 0 | AS51: 0
AF52: 0 | AG52: 0 | AH52: 0 | AI52: 0 | AJ52: 0 | AK52: 0 | AL52: 0 | AM52: 0 | AN52: 0 | AO52: 0 | AP52: 0 | AQ52: 0 | AR52: 0 | AS52: 0
AF53: 0 | AG53: 0 | AH53: 0 | AI53: 0 | AJ53: 0 | AK53: 0 | AL53: 0 | AM53: 0 | AN53: 0 | AO53: 0 | AP53: 0 | AQ53: 0 | AR53: 0 | AS53: 0
AF54: 0 | AG54: 0 | AH54: 0 | AI54: 0 | AJ54: 0 | AK54: 0 | AL54: 0 | AM54: 0 | AN54: 0 | AO54: 0 | AP54: 0 | AQ54: 0 | AR54: 0 | AS54: 0
AF55: 0 | AG55: 0 | AH55: 0 | AI55: 0 | AJ55: 0 | AK55: 0 | AL55: 0 | AM55: 0 | AN55: 0 | AO55: 0 | AP55: 0 | AQ55: 0 | AR55: 0 | AS55: 0
AF56: 0 | AG56: 0 | AH56: 0 | AI56: 0 | AJ56: 0 | AK56: 0 | AL56: 0 | AM56: 0 | AN56: 0 | AO56: 0 | AP56: 0 | AQ56: 0 | AR56: 0 | AS56: 0
AF57: 0 | AG57: 0 | AH57: 0 | AI57: 0 | AJ57: 0 | AK57: 0 | AL57: 0 | AM57: 0 | AN57: 0 | AO57: 0 | AP57: 0 | AQ57: 0 | AR57: 0 | AS57: 0
AF58: 0 | AG58: 0 | AH58: 0 | AI58: 0 | AJ58: 0 | AK58: 0 | AL58: 0 | AM58: 0 | AN58: 0 | AO58: 0 | AP58: 0 | AQ58: 0 | AR58: 0 | AS58: 0
AF59: 0 | AG59: 0 | AH59: 0 | AI59: 0 | AJ59: 0 | AK59: 0 | AL59: 0 | AM59: 0 | AN59: 0 | AO59: 0 | AP59: 0 | AQ59: 0 | AR59: 0 | AS59: 0
AF60: 0 | AG60: 0 | AH60: 0 | AI60: 0 | AJ60: 0 | AK60: 0 | AL60: 0 | AM60: 0 | AN60: 0 | AO60: 0 | AP60: 0 | AQ60: 0 | AR60: 0 | AS60: 0
AF61: 0 | AG61: 0 | AH61: 0 | AI61: 0 | AJ61: 0 | AK61: 0 | AL61: 0 | AM61: 0 | AN61: 0 | AO61: 0 | AP61: 0 | AQ61: 0 | AR61: 0 | AS61: 0
AF62: 0 | AG62: 0 | AH62: 0 | AI62: 0 | AJ62: 0 | AK62: 0 | AL62: 0 | AM62: 0 | AN62: 0 | AO62: 0 | AP62: 0 | AQ62: 0 | AR62: 0 | AS62: 0
AF63: 0 | AG63: 0 | AH63: 0 | AI63: 0 | AJ63: 0 | AK63: 0 | AL63: 0 | AM63: 0 | AN63: 0 | AO63: 0 | AP63: 0 | AQ63: 0 | AR63: 0 | AS63: 0
AF64: 0 | AG64: 0 | AH64: 0 | AI64: 0 | AJ64: 0 | AK64: 0 | AL64: 0 | AM64: 0 | AN64: 0 | AO64: 0 | AP64: 0 | AQ64: 0 | AR64: 0 | AS64: 0
AF65: 0 | AG65: 0 | AH65: 0 | AI65: 0 | AJ65: 0 | AK65: 0 | AL65: 0 | AM65: 0 | AN65: 0 | AO65: 0 | AP65: 0 | AQ65: 0 | AR65: 0 | AS65: 0
R66: =SUM(R6:R65) -> 352763.8279 | S66: 3118566391 | T66: 963834.6369 | U66: 676158.9282 | V66: 1257062.401 | W66: 1294294326 | X66: 821885.2976 | Y66: 0 | Z66: 0 | AA66: 930066.1467 | AB66: =SUM(AB6:AB65) -> 0 | AC66: 0 | AD66: 0 | AF66: 28029545.86 | AG66: 167830515.8 | AH66: 75381.50695 | AI66: 85202.78655 | AJ66: 98314.85039 | AK66: 9093656.142 | AL66: 31248.07901 | AM66: =SUM(AM6:AM65) -> 0 | AN66: 0 | AO66: 70330873.25 | AP66: 0 | AQ66: 0 | AR66: 0 | AS66: 275574738.2

Sheet Prop2021TransTar
B1: ="Tariff Approval - "&'Model update'!C3 -> Tariff Approval - Jemena | D1: ="Prop"&'Model update'!$C$5&"TransTar" -> Prop2021TransTar
B3: ="PROPOSED "&'Model update'!$C$5&" TRANSMISSION TARIFFS" -> PROPOSED 2021 TRANSMISSION TARIFFS
D4: ="Proposed Transmission Tariffs (Pt) for "&'Model update'!$C$5 -> Proposed Transmission Tariffs (Pt) for 2021 | R4: ="Forecast Quantities (Qt) for "&'Model update'!$C$5 -> Forecast Quantities (Qt) for 2021 | AF4: ="Forecast Revenue (Pt "&'Model update'!$C$5&")*(Qt " &'Model update'!$C$5&")" -> Forecast Revenue (Pt 2021)*(Qt 2021)
B5: Proposed tariff | D5: =[2]Prop2020DistTar!D5 -> PropTar Fixed | E5: =[2]Prop2020DistTar!E5 -> PropTar PkBlk1 | F5: =[2]Prop2020DistTar!F5 -> PropTar Shoulder summer | G5: =[2]Prop2020DistTar!G5 -> PropTar peak non-summer | H5: =[2]Prop2020DistTar!H5 -> PropTar Shoulder non-summer | I5: =[2]Prop2020DistTar!I5 -> PropTar OPkBlk1 | J5: =[2]Prop2020DistTar!J5 -> PropTar off peak non-summer | K5: =[2]Prop2020DistTar!K5 -> PropTar OPkBlk3 | L5: =[2]Prop2020DistTar!L5 -> PropTar OPkBlk4 | M5: =[2]Prop2020DistTar!M5 -> PropTar DemBlk1 | N5: =[2]Prop2020DistTar!N5 -> PropTar DemBlk2 | O5: =[2]Prop2020DistTar!O5 -> PropTar DemBlk3 | P5: =[2]Prop2020DistTar!P5 -> PropTar DemBlk4 | R5: =[2]Prop2020DistTar!AF5 -> FcastVol Fixed | S5: =[2]Prop2020DistTar!AG5 -> FcastVol PkBlk1 | T5: =[2]Prop2020DistTar!AH5 -> FcastVol Shoulder summer | U5: =[2]Prop2020DistTar!AI5 -> FcastVol peak non-summer | V5: =[2]Prop2020DistTar!AJ5 -> FcastVol Shoulder non-summer | W5: =[2]Prop2020DistTar!AK5 -> FcastVol OPkBlk1 | X5: =[2]Prop2020DistTar!AL5 -> FcastVol off peak non-summer | Y5: =[2]Prop2020DistTar!AM5 -> FcastVol OPkBlk3 | Z5: =[2]Prop2020DistTar!AN5 -> FcastVol OPkBlk4 | AA5: =[2]Prop2020DistTar!AO5 -> FcastVol DemBlk1 | AB5: =[2]Prop2020DistTar!AP5 -> FcastVol DemBlk2 | AC5: =[2]Prop2020DistTar!AQ5 -> FcastVol DemBlk3 | AD5: =[2]Prop2020DistTar!AR5 -> FcastVol DemBlk4 | AF5: PropRev Fixed | AG5: PropRev PkBlk1 | AH5: PropRev PkBlk2 | AI5: PropRev PkBlk3 | AJ5: PropRev PkBlk4 | AK5: PropRev OPkBlk1 | AL5: PropRev OPkBlk2 | AM5: PropRev OPkBlk3 | AN5: PropRev OPkBlk4 | AO5: PropRev DemBlk1 | AP5: PropRev DemBlk2 | AQ5: PropRev DemBlk3 | AR5: PropRev DemBlk4 | AS5: PropRev Total
B6: =Prop2021DistTar!B6 -> Residential - General Purpose | D6: 1.572 | E6: 0.949 | F6: 0 | G6: 0 | H6: 0 | I6: 0 | J6: 0 | K6: 0 | L6: 0 | M6: 0 | N6: 0 | O6: 0 | P6: 0 | R6: =Prop2021DistTar!AF6 -> 158878.4444 | S6: =Prop2021DistTar!AG6 -> 639147331.9 | T6: =Prop2021DistTar!AH6 -> 0 | U6: =Prop2021DistTar!AI6 -> 0 | V6: =Prop2021DistTar!AJ6 -> 0 | W6: =Prop2021DistTar!AK6 -> 0 | X6: =Prop2021DistTar!AL6 -> 0 | Y6: =Prop2021DistTar!AM6 -> 0 | Z6: =Prop2021DistTar!AN6 -> 0 | AA6: =Prop2021DistTar!AO6 -> 0 | AB6: =Prop2021DistTar!AP6 -> 0 | AC6: =Prop2021DistTar!AQ6 -> 0 | AD6: =Prop2021DistTar!AR6 -> 0 | AF6: =D6*R6 -> 249756.9146 | AG6: =E6/100*S6 -> 6065508.179 | AH6: 0 | AI6: 0 | AJ6: 0 | AK6: 0 | AL6: 0 | AM6: 0 | AN6: 0 | AO6: =M6*AA6 -> 0 | AP6: 0 | AQ6: 0 | AR6: 0 | AS6: =SUM(AF6:AR6) -> 6315265.094
B7: =Prop2021DistTar!B7 -> Residential - General Purpose Demand | D7: 1.572 | E7: 0.949 | F7: 0 | G7: 0 | H7: 0 | I7: 0 | J7: 0 | K7: 0 | L7: 0 | M7: 0 | N7: 0 | O7: 0 | P7: 0 | R7: =Prop2021DistTar!AF7 -> 2.710534965 | S7: =Prop2021DistTar!AG7 -> 30970.704 | T7: =Prop2021DistTar!AH7 -> 0 | U7: =Prop2021DistTar!AI7 -> 0 | V7: =Prop2021DistTar!AJ7 -> 0 | W7: =Prop2021DistTar!AK7 -> 0 | X7: =Prop2021DistTar!AL7 -> 0 | Y7: =Prop2021DistTar!AM7 -> 0 | Z7: =Prop2021DistTar!AN7 -> 0 | AA7: =Prop2021DistTar!AO7 -> 5 | AB7: =Prop2021DistTar!AP7 -> 0 | AC7: =Prop2021DistTar!AQ7 -> 0 | AD7: =Prop2021DistTar!AR7 -> 0 | AF7: =D7*R7 -> 4.260960966 | AG7: =E7/100*S7 -> 293.911981 | AH7: 0 | AI7: 0 | AJ7: 0 | AK7: 0 | AL7: 0 | AM7: 0 | AN7: 0 | AO7: =M7*AA7 -> 0 | AP7: =N7*AB7 -> 0 | AQ7: =O7*AC7 -> 0 | AR7: =P7*AD7 -> 0 | AS7: =SUM(AF7:AR7) -> 298.1729419
B8: =Prop2021DistTar!B8 -> Residential - Flexible | D8: 1.572 | E8: 0.428 | F8: 0.949 | G8: 0.428 | H8: 0.949 | I8: 0.051 | J8: 0.051 | K8: 0 | L8: 0 | M8: 0 | N8: 0 | O8: 0 | P8: 0 | R8: =Prop2021DistTar!AF8 -> 415.048838 | S8: =Prop2021DistTar!AG8 -> 309609.7466 | T8: =Prop2021DistTar!AH8 -> 580688.3796 | U8: =Prop2021DistTar!AI8 -> 407370.3282 | V8: =Prop2021DistTar!AJ8 -> 757351.4178 | W8: =Prop2021DistTar!AK8 -> 614725.7076 | X8: =Prop2021DistTar!AL8 -> 495167.1411 | Y8: =Prop2021DistTar!AM8 -> 0 | Z8: =Prop2021DistTar!AN8 -> 0 | AA8: =Prop2021DistTar!AO8 -> 0 | AB8: =Prop2021DistTar!AP8 -> 0 | AC8: =Prop2021DistTar!AQ8 -> 0 | AD8: =Prop2021DistTar!AR8 -> 0 | AF8: 652.4567733 | AG8: 1325.129716 | AH8: 5510.732723 | AI8: 1743.545005 | AJ8: 7187.264955 | AK8: 313.5101109 | AL8: 252.535242 | AM8: 0 | AN8: 0 | AO8: 0 | AP8: 0 | AQ8: 0 | AR8: 0 | AS8: 16985.17452
B9: =Prop2021DistTar!B9 -> Residential - Time of Use Interval Meter | D9: 1.572 | E9: 0.428 | F9: 0 | G9: 0 | H9: 0 | I9: 0.586 | J9: 0 | K9: 0 | L9: 0 | M9: 0 | N9: 0 | O9: 0 | P9: 0 | R9: =Prop2021DistTar!AF9 -> 7444.484259 | S9: =Prop2021DistTar!AG9 -> 16938462.59 | T9: =Prop2021DistTar!AH9 -> 0 | U9: =Prop2021DistTar!AI9 -> 0 | V9: =Prop2021DistTar!AJ9 -> 0 | W9: =Prop2021DistTar!AK9 -> 17531385.14 | X9: =Prop2021DistTar!AL9 -> 0 | Y9: =Prop2021DistTar!AM9 -> 0 | Z9: =Prop2021DistTar!AN9 -> 0 | AA9: =Prop2021DistTar!AO9 -> 0 | AB9: =Prop2021DistTar!AP9 -> 0 | AC9: =Prop2021DistTar!AQ9 -> 0 | AD9: =Prop2021DistTar!AR9 -> 0 | AF9: 11702.72926 | AG9: 72496.61989 | AH9: 0 | AI9: 0 | AJ9: 0 | AK9: 102733.9169 | AL9: 0 | AM9: 0 | AN9: 0 | AO9: 0 | AP9: 0 | AQ9: 0 | AR9: 0 | AS9: 186933.2661
B10: =Prop2021DistTar!B10 -> Residential - TOU | D10: 0.521 | E10: 3.122 | F10: 0 | G10: 0 | H10: 0 | I10: 1.013 | J10: 0 | K10: 0 | L10: 0 | M10: 0 | N10: 0 | O10: 0 | P10: 0 | R10: =Prop2021DistTar!AF10 -> 678.1290096 | S10: =Prop2021DistTar!AG10 -> 3116768.903 | T10: =Prop2021DistTar!AH10 -> 0 | U10: =Prop2021DistTar!AI10 -> 0 | V10: =Prop2021DistTar!AJ10 -> 0 | W10: =Prop2021DistTar!AK10 -> 3413336.918 | X10: =Prop2021DistTar!AL10 -> 0 | Y10: =Prop2021DistTar!AM10 -> 0 | Z10: =Prop2021DistTar!AN10 -> 0 | AA10: =Prop2021DistTar!AO10 -> 0 | AB10: =Prop2021DistTar!AP10 -> 0 | AC10: =Prop2021DistTar!AQ10 -> 0 | AD10: =Prop2021DistTar!AR10 -> 0 | AF10: 353.305214 | AG10: 97305.52515 | AH10: 0 | AI10: 0 | AJ10: 0 | AK10: 34577.10298 | AL10: 0 | AM10: 0 | AN10: 0 | AO10: 0 | AP10: 0 | AQ10: 0 | AR10: 0 | AS10: 132235.9334
B11: =Prop2021DistTar!B11 -> Residential - Off Peak Only | D11: 0 | E11: 0 | F11: 0 | G11: 0 | H11: 0 | I11: 1.177 | J11: 0 | K11: 0 | L11: 0 | M11: 0 | N11: 0 | O11: 0 | P11: 0 | R11: =Prop2021DistTar!AF11 -> 0 | S11: =Prop2021DistTar!AG11 -> 0 | T11: =Prop2021DistTar!AH11 -> 0 | U11: =Prop2021DistTar!AI11 -> 0 | V11: =Prop2021DistTar!AJ11 -> 0 | W11: =Prop2021DistTar!AK11 -> 15302727.76 | X11: =Prop2021DistTar!AL11 -> 0 | Y11: =Prop2021DistTar!AM11 -> 0 | Z11: =Prop2021DistTar!AN11 -> 0 | AA11: =Prop2021DistTar!AO11 -> 0 | AB11: =Prop2021DistTar!AP11 -> 0 | AC11: =Prop2021DistTar!AQ11 -> 0 | AD11: =Prop2021DistTar!AR11 -> 0 | AF11: 0 | AG11: 0 | AH11: 0 | AI11: 0 | AJ11: 0 | AK11: 180113.1057 | AL11: 0 | AM11: 0 | AN11: 0 | AO11: 0 | AP11: 0 | AQ11: 0 | AR11: 0 | AS11: 180113.1057
B12: =Prop2021DistTar!B12 -> Small Business - General Purpose | D12: 2.036 | E12: 1.521 | F12: 0 | G12: 0 | H12: 0 | I12: 0 | J12: 0 | K12: 0 | L12: 0 | M12: 0 | N12: 0 | O12: 0 | P12: 0 | R12: =Prop2021DistTar!AF12 -> 9576.272866 | S12: =Prop2021DistTar!AG12 -> 101667470 | T12: =Prop2021DistTar!AH12 -> 0 | U12: =Prop2021DistTar!AI12 -> 0 | V12: =Prop2021DistTar!AJ12 -> 0 | W12: =Prop2021DistTar!AK12 -> 0 | X12: =Prop2021DistTar!AL12 -> 0 | Y12: =Prop2021DistTar!AM12 -> 0 | Z12: =Prop2021DistTar!AN12 -> 0 | AA12: =Prop2021DistTar!AO12 -> 0 | AB12: =Prop2021DistTar!AP12 -> 0 | AC12: =Prop2021DistTar!AQ12 -> 0 | AD12: =Prop2021DistTar!AR12 -> 0 | AF12: 19497.29155 | AG12: 1546362.219 | AH12: 0 | AI12: 0 | AJ12: 0 | AK12: 0 | AL12: 0 | AM12: 0 | AN12: 0 | AO12: 0 | AP12: 0 | AQ12: 0 | AR12: 0 | AS12: 1565859.51
B13: =Prop2021DistTar!B13 -> Small Business - General Purpose Demand | D13: 2.036 | E13: 1.521 | F13: 0 | G13: 0 | H13: 0 | I13: 0 | J13: 0 | K13: 0 | L13: 0 | M13: 0 | N13: 0 | O13: 0 | P13: 0 | R13: =Prop2021DistTar!AF13 -> 0.5059185863 | T13: =Prop2021DistTar!AH13 -> 0 | U13: =Prop2021DistTar!AI13 -> 0 | V13: =Prop2021DistTar!AJ13 -> 0 | X13: =Prop2021DistTar!AL13 -> 0 | Y13: =Prop2021DistTar!AM13 -> 0 | Z13: =Prop2021DistTar!AN13 -> 0 | AB13: =Prop2021DistTar!AP13 -> 0 | AC13: =Prop2021DistTar!AQ13 -> 0 | AD13: =Prop2021DistTar!AR13 -> 0 | AF13: 1.030050242 | AH13: 0 | AI13: 0 | AJ13: 0 | AL13: 0 | AM13: 0 | AN13: 0 | AP13: 0 | AQ13: 0 | AR13: 0
B14: =Prop2021DistTar!B14 -> Small Business - TOU Weekdays | D14: 29.25 | E14: 2.784 | F14: 0 | G14: 0 | H14: 0 | I14: 0.87 | J14: 0 | K14: 0 | L14: 0 | M14: 0 | N14: 0 | O14: 0 | P14: 0 | R14: =Prop2021DistTar!AF14 -> 3714.353077 | S14: =Prop2021DistTar!AG14 -> 76073895.73 | T14: =Prop2021DistTar!AH14 -> 0 | U14: =Prop2021DistTar!AI14 -> 0 | V14: =Prop2021DistTar!AJ14 -> 0 | W14: =Prop2021DistTar!AK14 -> 49617354.31 | X14: =Prop2021DistTar!AL14 -> 0 | Y14: =Prop2021DistTar!AM14 -> 0 | Z14: =Prop2021DistTar!AN14 -> 0 | AA14: =Prop2021DistTar!AO14 -> 0 | AB14: =Prop2021DistTar!AP14 -> 0 | AC14: =Prop2021DistTar!AQ14 -> 0 | AD14: =Prop2021DistTar!AR14 -> 0 | AF14: 108644.8275 | AG14: 2117897.257 | AH14: 0 | AI14: 0 | AJ14: 0 | AK14: 431670.9825 | AL14: 0 | AM14: 0 | AN14: 0 | AO14: 0 | AP14: 0 | AQ14: 0 | AR14: 0 | AS14: 2658213.067
B15: =Prop2021DistTar!B15 -> Small Business - TOU Weekdays Demand | D15: 257.172 | E15: 1.352 | F15: 0 | G15: 0 | H15: 0 | I15: 0.602 | J15: 0 | K15: 0 | L15: 0 | M15: 0.751 | N15: 0 | O15: 0 | P15: 0 | R15: =Prop2021DistTar!AF15 -> 345.7784898 | S15: =Prop2021DistTar!AG15 -> 34833063.04 | T15: =Prop2021DistTar!AH15 -> 0 | U15: =Prop2021DistTar!AI15 -> 0 | V15: =Prop2021DistTar!AJ15 -> 0 | W15: =Prop2021DistTar!AK15 -> 24232702.15 | X15: =Prop2021DistTar!AL15 -> 0 | Y15: =Prop2021DistTar!AM15 -> 0 | Z15: =Prop2021DistTar!AN15 -> 0 | AA15: =Prop2021DistTar!AO15 -> 24819.49201 | AB15: =Prop2021DistTar!AP15 -> 0 | AC15: =Prop2021DistTar!AQ15 -> 0 | AD15: =Prop2021DistTar!AR15 -> 0 | AF15: 88924.54578 | AG15: 470943.0123 | AH15: 0 | AI15: 0 | AJ15: 0 | AK15: 145880.867 | AL15: 0 | AM15: 0 | AN15: 0 | AO15: 18639.4385 | AP15: 0 | AQ15: 0 | AR15: 0 | AS15: 724387.8635
B16: =Prop2021DistTar!B16 -> Small Business - TOU Opt out | D16: 128.586 | E16: 2.784 | F16: 0 | G16: 0 | H16: 0 | I16: 0.87 | J16: 0 | K16: 0 | L16: 0 | M16: 0 | N16: 0 | O16: 0 | P16: 0 | R16: =Prop2021DistTar!AF16 -> 15.71720408 | S16: =Prop2021DistTar!AG16 -> 1276940.757 | T16: =Prop2021DistTar!AH16 -> 0 | U16: =Prop2021DistTar!AI16 -> 0 | V16: =Prop2021DistTar!AJ16 -> 0 | W16: =Prop2021DistTar!AK16 -> 390747.4038 | X16: =Prop2021DistTar!AL16 -> 0 | Y16: =Prop2021DistTar!AM16 -> 0 | Z16: =Prop2021DistTar!AN16 -> 0 | AA16: =Prop2021DistTar!AO16 -> 0 | AB16: =Prop2021DistTar!AP16 -> 0 | AC16: =Prop2021DistTar!AQ16 -> 0 | AD16: =Prop2021DistTar!AR16 -> 0 | AF16: 2021.012404 | AG16: 35550.03067 | AH16: 0 | AI16: 0 | AJ16: 0 | AK16: 3399.502413 | AL16: 0 | AM16: 0 | AN16: 0 | AO16: 0 | AP16: 0 | AQ16: 0 | AR16: 0 | AS16: 40970.54549
B17: =Prop2021DistTar!B17 -> Small Business - TOU Extended | D17: 29.25 | E17: 2.494 | F17: 0 | G17: 0 | H17: 0 | I17: 0.909 | J17: 0 | K17: 0 | L17: 0 | M17: 0 | N17: 0 | O17: 0 | P17: 0 | R17: =Prop2021DistTar!AF17 -> 941.073449 | S17: =Prop2021DistTar!AG17 -> 18814347.71 | T17: =Prop2021DistTar!AH17 -> 0 | U17: =Prop2021DistTar!AI17 -> 0 | V17: =Prop2021DistTar!AJ17 -> 0 | W17: =Prop2021DistTar!AK17 -> 5757242.442 | X17: =Prop2021DistTar!AL17 -> 0 | Y17: =Prop2021DistTar!AM17 -> 0 | Z17: =Prop2021DistTar!AN17 -> 0 | AA17: =Prop2021DistTar!AO17 -> 0 | AB17: =Prop2021DistTar!AP17 -> 0 | AC17: =Prop2021DistTar!AQ17 -> 0 | AD17: =Prop2021DistTar!AR17 -> 0 | AF17: 27526.39838 | AG17: 469229.8318 | AH17: 0 | AI17: 0 | AJ17: 0 | AK17: 52333.33379 | AL17: 0 | AM17: 0 | AN17: 0 | AO17: 0 | AP17: 0 | AQ17: 0 | AR17: 0 | AS17: 549089.564
B18: =Prop2021DistTar!B18 -> Small Business - TOU Extended Demand | D18: 257.172 | E18: 2.231 | F18: 0 | G18: 0 | H18: 0 | I18: 0.586 | J18: 0 | K18: 0 | L18: 0 | M18: 0.749 | N18: 0 | O18: 0 | P18: 0 | R18: =Prop2021DistTar!AF18 -> 52.37457958 | S18: =Prop2021DistTar!AG18 -> 7861230.03 | T18: =Prop2021DistTar!AH18 -> 0 | U18: =Prop2021DistTar!AI18 -> 0 | V18: =Prop2021DistTar!AJ18 -> 0 | W18: =Prop2021DistTar!AK18 -> 2311605.613 | X18: =Prop2021DistTar!AL18 -> 0 | Y18: =Prop2021DistTar!AM18 -> 0 | Z18: =Prop2021DistTar!AN18 -> 0 | AA18: =Prop2021DistTar!AO18 -> 5262.517165 | AB18: =Prop2021DistTar!AP18 -> 0 | AC18: =Prop2021DistTar!AQ18 -> 0 | AD18: =Prop2021DistTar!AR18 -> 0 | AF18: 13469.27538 | AG18: 175384.042 | AH18: 0 | AI18: 0 | AJ18: 0 | AK18: 13546.00889 | AL18: 0 | AM18: 0 | AN18: 0 | AO18: 3941.625356 | AP18: 0 | AQ18: 0 | AR18: 0 | AS18: 206340.9516
B19: =Prop2021DistTar!B19 -> Small Business - Unmetered Supply | D19: 0 | E19: 1.689 | F19: 0 | G19: 0 | H19: 0 | I19: 1.038 | J19: 0 | K19: 0 | L19: 0 | M19: 0 | N19: 0 | O19: 0 | P19: 0 | R19: =Prop2021DistTar!AF19 -> 0 | S19: =Prop2021DistTar!AG19 -> 6906799.943 | T19: =Prop2021DistTar!AH19 -> 0 | U19: =Prop2021DistTar!AI19 -> 0 | V19: =Prop2021DistTar!AJ19 -> 0 | W19: =Prop2021DistTar!AK19 -> 15374842.67 | X19: =Prop2021DistTar!AL19 -> 0 | Y19: =Prop2021DistTar!AM19 -> 0 | Z19: =Prop2021DistTar!AN19 -> 0 | AA19: =Prop2021DistTar!AO19 -> 0 | AB19: =Prop2021DistTar!AP19 -> 0 | AC19: =Prop2021DistTar!AQ19 -> 0 | AD19: =Prop2021DistTar!AR19 -> 0 | AF19: 0 | AG19: 116655.851 | AH19: 0 | AI19: 0 | AJ19: 0 | AK19: 159590.8669 | AL19: 0 | AM19: 0 | AN19: 0 | AO19: 0 | AP19: 0 | AQ19: 0 | AR19: 0 | AS19: 276246.7179
B20: =Prop2021DistTar!B20 -> Large Business - LV 0.4 - 0.8 GWh | D20: 95.064 | E20: 2.937 | F20: 0 | G20: 0 | H20: 0 | I20: 1.021 | J20: 0 | K20: 0 | L20: 0 | M20: 1.412 | N20: 0 | O20: 0 | P20: 0 | R20: =Prop2021DistTar!AF20 -> 388.5597535 | S20: =Prop2021DistTar!AG20 -> 87157927.2 | T20: =Prop2021DistTar!AH20 -> 0 | U20: =Prop2021DistTar!AI20 -> 0 | V20: =Prop2021DistTar!AJ20 -> 0 | W20: =Prop2021DistTar!AK20 -> 55986708.41 | X20: =Prop2021DistTar!AL20 -> 0 | Y20: =Prop2021DistTar!AM20 -> 0 | Z20: =Prop2021DistTar!AN20 -> 0 | AA20: =Prop2021DistTar!AO20 -> 72443.42972 | AB20: =Prop2021DistTar!AP20 -> 0 | AC20: =Prop2021DistTar!AQ20 -> 0 | AD20: =Prop2021DistTar!AR20 -> 0 | AF20: 36938.04441 | AG20: 2559828.322 | AH20: 0 | AI20: 0 | AJ20: 0 | AK20: 571624.2929 | AL20: 0 | AM20: 0 | AN20: 0 | AO20: 102290.1228 | AP20: 0 | AQ20: 0 | AR20: 0 | AS20: 3270680.782
B21: =Prop2021DistTar!B21 -> Large Business – LVEN Annual Consumption <= 0.8 GWh | D21: 95.064 | E21: 2.937 | F21: 0 | G21: 0 | H21: 0 | I21: 1.021 | J21: 0 | K21: 0 | L21: 0 | M21: 1.912 | N21: 0 | O21: 0 | P21: 0 | R21: =Prop2021DistTar!AF21 -> 37.27094958 | S21: =Prop2021DistTar!AG21 -> 8221991.161 | T21: =Prop2021DistTar!AH21 -> 0 | U21: =Prop2021DistTar!AI21 -> 0 | V21: =Prop2021DistTar!AJ21 -> 0 | W21: =Prop2021DistTar!AK21 -> 5679598.85 | X21: =Prop2021DistTar!AL21 -> 0 | Y21: =Prop2021DistTar!AM21 -> 0 | Z21: =Prop2021DistTar!AN21 -> 0 | AA21: =Prop2021DistTar!AO21 -> 8689.771245 | AB21: =Prop2021DistTar!AP21 -> 0 | AC21: =Prop2021DistTar!AQ21 -> 0 | AD21: =Prop2021DistTar!AR21 -> 0 | AF21: 3543.125551 | AG21: 241479.8804 | AH21: 0 | AI21: 0 | AJ21: 0 | AK21: 57988.70426 | AL21: 0 | AM21: 0 | AN21: 0 | AO21: 16614.84262 | AP21: 0 | AQ21: 0 | AR21: 0 | AS21: 319626.5528
B22: =Prop2021DistTar!B22 -> Large Business - LV 0.8+ - 2.2 GWh | D22: 201.263 | E22: 3.013 | F22: 0 | G22: 0 | H22: 0 | I22: 1.027 | J22: 0 | K22: 0 | L22: 0 | M22: 2.449 | N22: 0 | O22: 0 | P22: 0 | R22: =Prop2021DistTar!AF22 -> 194.0865809 | S22: =Prop2021DistTar!AG22 -> 131452092.7 | T22: =Prop2021DistTar!AH22 -> 0 | U22: =Prop2021DistTar!AI22 -> 0 | V22: =Prop2021DistTar!AJ22 -> 0 | W22: =Prop2021DistTar!AK22 -> 90838121.03 | X22: =Prop2021DistTar!AL22 -> 0 | Y22: =Prop2021DistTar!AM22 -> 0 | Z22: =Prop2021DistTar!AN22 -> 0 | AA22: =Prop2021DistTar!AO22 -> 89510.48129 | AB22: =Prop2021DistTar!AP22 -> 0 | AC22: =Prop2021DistTar!AQ22 -> 0 | AD22: =Prop2021DistTar!AR22 -> 0 | AF22: 39062.44754 | AG22: 3960651.552 | AH22: 0 | AI22: 0 | AJ22: 0 | AK22: 932907.503 | AL22: 0 | AM22: 0 | AN22: 0 | AO22: 219211.1687 | AP22: 0 | AQ22: 0 | AR22: 0 | AS22: 5151832.672
B23: =Prop2021DistTar!B23 -> Large Business - LVEN 0.8+ - 2.2 GWh | D23: 201.263 | E23: 3.013 | F23: 0 | G23: 0 | H23: 0 | I23: 1.027 | J23: 0 | K23: 0 | L23: 0 | M23: 3.167 | N23: 0 | O23: 0 | P23: 0 | R23: =Prop2021DistTar!AF23 -> 20.55964687 | S23: =Prop2021DistTar!AG23 -> 14920570.35 | T23: =Prop2021DistTar!AH23 -> 0 | U23: =Prop2021DistTar!AI23 -> 0 | V23: =Prop2021DistTar!AJ23 -> 0 | W23: =Prop2021DistTar!AK23 -> 9815052.433 | X23: =Prop2021DistTar!AL23 -> 0 | Y23: =Prop2021DistTar!AM23 -> 0 | Z23: =Prop2021DistTar!AN23 -> 0 | AA23: =Prop2021DistTar!AO23 -> 9299.521264 | AB23: =Prop2021DistTar!AP23 -> 0 | AC23: =Prop2021DistTar!AQ23 -> 0 | AD23: =Prop2021DistTar!AR23 -> 0 | AF23: 4137.896208 | AG23: 449556.7846 | AH23: 0 | AI23: 0 | AJ23: 0 | AK23: 100800.5885 | AL23: 0 | AM23: 0 | AN23: 0 | AO23: 29451.58384 | AP23: 0 | AQ23: 0 | AR23: 0 | AS23: 583946.8531
B24: =Prop2021DistTar!B24 -> Large Business - LV 2.2+ - 6.0 GWh | D24: 1337.763 | E24: 3.081 | F24: 0 | G24: 0 | H24: 0 | I24: 1.026 | J24: 0 | K24: 0 | L24: 0 | M24: 2.525 | N24: 0 | O24: 0 | P24: 0 | R24: =Prop2021DistTar!AF24 -> 37.25337723 | S24: =Prop2021DistTar!AG24 -> 60763995.95 | T24: =Prop2021DistTar!AH24 -> 0 | U24: =Prop2021DistTar!AI24 -> 0 | V24: =Prop2021DistTar!AJ24 -> 0 | W24: =Prop2021DistTar!AK24 -> 45943073.61 | X24: =Prop2021DistTar!AL24 -> 0 | Y24: =Prop2021DistTar!AM24 -> 0 | Z24: =Prop2021DistTar!AN24 -> 0 | AA24: =Prop2021DistTar!AO24 -> 35969.74389 | AB24: =Prop2021DistTar!AP24 -> 0 | AC24: =Prop2021DistTar!AQ24 -> 0 | AD24: =Prop2021DistTar!AR24 -> 0 | AF24: 49836.18969 | AG24: 1872138.715 | AH24: 0 | AI24: 0 | AJ24: 0 | AK24: 471375.9352 | AL24: 0 | AM24: 0 | AN24: 0 | AO24: 90823.60333 | AP24: 0 | AQ24: 0 | AR24: 0 | AS24: 2484174.444
B25: =Prop2021DistTar!B25 -> Large Business - LVEN 2.2+ GWh | D25: 1337.763 | E25: 3.081 | F25: 0 | G25: 0 | H25: 0 | I25: 1.026 | J25: 0 | K25: 0 | L25: 0 | M25: 4.366 | N25: 0 | O25: 0 | P25: 0 | R25: =Prop2021DistTar!AF25 -> 8.417154573 | S25: =Prop2021DistTar!AG25 -> 10324851.16 | T25: =Prop2021DistTar!AH25 -> 0 | U25: =Prop2021DistTar!AI25 -> 0 | V25: =Prop2021DistTar!AJ25 -> 0 | W25: =Prop2021DistTar!AK25 -> 7433408.886 | X25: =Prop2021DistTar!AL25 -> 0 | Y25: =Prop2021DistTar!AM25 -> 0 | Z25: =Prop2021DistTar!AN25 -> 0 | AA25: =Prop2021DistTar!AO25 -> 7906.606048 | AB25: =Prop2021DistTar!AP25 -> 0 | AC25: =Prop2021DistTar!AQ25 -> 0 | AD25: =Prop2021DistTar!AR25 -> 0 | AF25: 11260.15795 | AG25: 318108.6643 | AH25: 0 | AI25: 0 | AJ25: 0 | AK25: 76266.77518 | AL25: 0 | AM25: 0 | AN25: 0 | AO25: 34520.24201 | AP25: 0 | AQ25: 0 | AR25: 0 | AS25: 440155.8394
B26: =Prop2021DistTar!B26 -> Large Business - LVMS 2.2+ - 6.0 GWh | D26: 1787.264 | E26: 3.309 | F26: 0 | G26: 0 | H26: 0 | I26: 1.019 | J26: 0 | K26: 0 | L26: 0 | M26: 3.375 | N26: 0 | O26: 0 | P26: 0 | R26: =Prop2021DistTar!AF26 -> 5.29401655 | S26: =Prop2021DistTar!AG26 -> 5811372.069 | T26: =Prop2021DistTar!AH26 -> 0 | U26: =Prop2021DistTar!AI26 -> 0 | V26: =Prop2021DistTar!AJ26 -> 0 | W26: =Prop2021DistTar!AK26 -> 4687995.706 | X26: =Prop2021DistTar!AL26 -> 0 | Y26: =Prop2021DistTar!AM26 -> 0 | Z26: =Prop2021DistTar!AN26 -> 0 | AA26: =Prop2021DistTar!AO26 -> 3940.796569 | AB26: =Prop2021DistTar!AP26 -> 0 | AC26: =Prop2021DistTar!AQ26 -> 0 | AD26: =Prop2021DistTar!AR26 -> 0 | AF26: 9461.805195 | AG26: 192298.3018 | AH26: 0 | AI26: 0 | AJ26: 0 | AK26: 47770.67625 | AL26: 0 | AM26: 0 | AN26: 0 | AO26: 13300.18842 | AP26: 0 | AQ26: 0 | AR26: 0 | AS26: 262830.9716
B27: =Prop2021DistTar!B27 -> Large Business - LV 6.0+ GWh | D27: 3447.177 | E27: 2.691 | F27: 0 | G27: 0 | H27: 0 | I27: 1.018 | J27: 0 | K27: 0 | L27: 0 | M27: 2.757 | N27: 0 | O27: 0 | P27: 0 | R27: =Prop2021DistTar!AF27 -> 11.31659195 | S27: =Prop2021DistTar!AG27 -> 25847888.3 | T27: =Prop2021DistTar!AH27 -> 0 | U27: =Prop2021DistTar!AI27 -> 0 | V27: =Prop2021DistTar!AJ27 -> 0 | W27: =Prop2021DistTar!AK27 -> 21661553.61 | X27: =Prop2021DistTar!AL27 -> 0 | Y27: =Prop2021DistTar!AM27 -> 0 | Z27: =Prop2021DistTar!AN27 -> 0 | AA27: =Prop2021DistTar!AO27 -> 13828.37315 | AB27: =Prop2021DistTar!AP27 -> 0 | AC27: =Prop2021DistTar!AQ27 -> 0 | AD27: =Prop2021DistTar!AR27 -> 0 | AF27: 39010.2955 | AG27: 695566.6743 | AH27: 0 | AI27: 0 | AJ27: 0 | AK27: 220514.6157 | AL27: 0 | AM27: 0 | AN27: 0 | AO27: 38124.82477 | AP27: 0 | AQ27: 0 | AR27: 0 | AS27: 993216.4102
B28: =Prop2021DistTar!B28 -> Large Business - LVMS 6.0+ GWh | D28: 4284.119 | E28: 2.826 | F28: 0 | G28: 0 | H28: 0 | I28: 1.018 | J28: 0 | K28: 0 | L28: 0 | M28: 3.425 | N28: 0 | O28: 0 | P28: 0 | R28: =Prop2021DistTar!AF28 -> 14.43822695 | S28: =Prop2021DistTar!AG28 -> 26286303.39 | T28: =Prop2021DistTar!AH28 -> 0 | U28: =Prop2021DistTar!AI28 -> 0 | V28: =Prop2021DistTar!AJ28 -> 0 | W28: =Prop2021DistTar!AK28 -> 20462464.55 | X28: =Prop2021DistTar!AL28 -> 0 | Y28: =Prop2021DistTar!AM28 -> 0 | Z28: =Prop2021DistTar!AN28 -> 0 | AA28: =Prop2021DistTar!AO28 -> 14512.00271 | AB28: =Prop2021DistTar!AP28 -> 0 | AC28: =Prop2021DistTar!AQ28 -> 0 | AD28: =Prop2021DistTar!AR28 -> 0 | AF28: 61855.08242 | AG28: 742850.9337 | AH28: 0 | AI28: 0 | AJ28: 0 | AK28: 208307.8891 | AL28: 0 | AM28: 0 | AN28: 0 | AO28: 49703.60927 | AP28: 0 | AQ28: 0 | AR28: 0 | AS28: 1062717.514
B29: =Prop2021DistTar!B29 -> Large Business - HV | D29: 9162.004 | E29: 2.982 | F29: 0 | G29: 0 | H29: 0 | I29: 0.757 | J29: 0 | K29: 0 | L29: 0 | M29: 2.901 | N29: 0 | O29: 0 | P29: 0 | R29: =Prop2021DistTar!AF29 -> 44.37266667 | S29: =Prop2021DistTar!AG29 -> 123977469.7 | T29: =Prop2021DistTar!AH29 -> 0 | U29: =Prop2021DistTar!AI29 -> 0 | V29: =Prop2021DistTar!AJ29 -> 0 | W29: =Prop2021DistTar!AK29 -> 98362237.17 | X29: =Prop2021DistTar!AL29 -> 0 | Y29: =Prop2021DistTar!AM29 -> 0 | Z29: =Prop2021DistTar!AN29 -> 0 | AA29: =Prop2021DistTar!AO29 -> 92928.2636 | AB29: =Prop2021DistTar!AP29 -> 0 | AC29: =Prop2021DistTar!AQ29 -> 0 | AD29: =Prop2021DistTar!AR29 -> 0 | AF29: 406542.5495 | AG29: 3697008.148 | AH29: 0 | AI29: 0 | AJ29: 0 | AK29: 744602.1354 | AL29: 0 | AM29: 0 | AN29: 0 | AO29: 269584.8927 | AP29: 0 | AQ29: 0 | AR29: 0 | AS29: 5117737.725
B30: =Prop2021DistTar!B30 -> Large Business – HVEN | D30: 9162.004 | E30: 2.982 | F30: 0 | G30: 0 | H30: 0 | I30: 0.757 | J30: 0 | K30: 0 | L30: 0 | M30: 2.811 | N30: 0 | O30: 0 | P30: 0 | R30: =Prop2021DistTar!AF30 -> 1 | T30: =Prop2021DistTar!AH30 -> 0 | U30: =Prop2021DistTar!AI30 -> 0 | V30: =Prop2021DistTar!AJ30 -> 0 | X30: =Prop2021DistTar!AL30 -> 0 | Y30: =Prop2021DistTar!AM30 -> 0 | Z30: =Prop2021DistTar!AN30 -> 0 | AB30: =Prop2021DistTar!AP30 -> 0 | AC30: =Prop2021DistTar!AQ30 -> 0 | AD30: =Prop2021DistTar!AR30 -> 0 | AF30: 9162.004 | AH30: 0 | AI30: 0 | AJ30: 0 | AL30: 0 | AM30: 0 | AN30: 0 | AP30: 0 | AQ30: 0 | AR30: 0
B31: =Prop2021DistTar!B31 -> Large Business - HVRF | D31: 9162.004 | E31: 2.974 | F31: 0 | G31: 0 | H31: 0 | I31: 0.757 | J31: 0 | K31: 0 | L31: 0 | M31: 7.034 | N31: 0 | O31: 0 | P31: 0 | R31: =Prop2021DistTar!AF31 -> 0.9833333333 | T31: =Prop2021DistTar!AH31 -> 0 | U31: =Prop2021DistTar!AI31 -> 0 | V31: =Prop2021DistTar!AJ31 -> 0 | X31: =Prop2021DistTar!AL31 -> 0 | Y31: =Prop2021DistTar!AM31 -> 0 | Z31: =Prop2021DistTar!AN31 -> 0 | AB31: =Prop2021DistTar!AP31 -> 0 | AC31: =Prop2021DistTar!AQ31 -> 0 | AD31: =Prop2021DistTar!AR31 -> 0 | AF31: 9009.303933 | AH31: 0 | AI31: 0 | AJ31: 0 | AL31: 0 | AM31: 0 | AN31: 0 | AP31: 0 | AQ31: 0 | AR31: 0
B32: =Prop2021DistTar!B32 -> Large Business - HV Ann Cons >= 55GWh | D32: 10148.747 | E32: 2.745 | F32: 0 | G32: 0 | H32: 0 | I32: 0.726 | J32: 0 | K32: 0 | L32: 0 | M32: 6.716 | N32: 0 | O32: 0 | P32: 0 | R32: =Prop2021DistTar!AF32 -> 0.5 | T32: =Prop2021DistTar!AH32 -> 0 | U32: =Prop2021DistTar!AI32 -> 0 | V32: =Prop2021DistTar!AJ32 -> 0 | X32: =Prop2021DistTar!AL32 -> 0 | Y32: =Prop2021DistTar!AM32 -> 0 | Z32: =Prop2021DistTar!AN32 -> 0 | AB32: =Prop2021DistTar!AP32 -> 0 | AC32: =Prop2021DistTar!AQ32 -> 0 | AD32: =Prop2021DistTar!AR32 -> 0 | AF32: 5074.3735 | AH32: 0 | AI32: 0 | AJ32: 0 | AL32: 0 | AM32: 0 | AN32: 0 | AP32: 0 | AQ32: 0 | AR32: 0
B33: =Prop2021DistTar!B33 -> Large Business - Subtransmission | D33: 15847.543 | E33: 2.268 | F33: 0 | G33: 0 | H33: 0 | I33: 0.499 | J33: 0 | K33: 0 | L33: 0 | M33: 4.238 | N33: 0 | O33: 0 | P33: 0 | R33: =Prop2021DistTar!AF33 -> 1.5 | T33: =Prop2021DistTar!AH33 -> 0 | U33: =Prop2021DistTar!AI33 -> 0 | V33: =Prop2021DistTar!AJ33 -> 0 | X33: =Prop2021DistTar!AL33 -> 0 | Y33: =Prop2021DistTar!AM33 -> 0 | Z33: =Prop2021DistTar!AN33 -> 0 | AB33: =Prop2021DistTar!AP33 -> 0 | AC33: =Prop2021DistTar!AQ33 -> 0 | AD33: =Prop2021DistTar!AR33 -> 0 | AF33: 23771.3145 | AH33: 0 | AI33: 0 | AJ33: 0 | AL33: 0 | AM33: 0 | AN33: 0 | AP33: 0 | AQ33: 0 | AR33: 0
B34: =Prop2021DistTar!B34 -> Large Business - Subtransmission MA | D34: 15847.543 | E34: 2.268 | F34: 0 | G34: 0 | H34: 0 | I34: 0.499 | J34: 0 | K34: 0 | L34: 0 | M34: 4.259 | N34: 0 | O34: 0 | P34: 0 | R34: =Prop2021DistTar!AF34 -> 0.5 | T34: =Prop2021DistTar!AH34 -> 0 | U34: =Prop2021DistTar!AI34 -> 0 | V34: =Prop2021DistTar!AJ34 -> 0 | X34: =Prop2021DistTar!AL34 -> 0 | Y34: =Prop2021DistTar!AM34 -> 0 | Z34: =Prop2021DistTar!AN34 -> 0 | AB34: =Prop2021DistTar!AP34 -> 0 | AC34: =Prop2021DistTar!AQ34 -> 0 | AD34: =Prop2021DistTar!AR34 -> 0 | AF34: 7923.7715 | AH34: 0 | AI34: 0 | AJ34: 0 | AL34: 0 | AM34: 0 | AN34: 0 | AP34: 0 | AQ34: 0 | AR34: 0
B35: =Prop2021DistTar!B35 -> Large Business - Subtransmission EG | D35: 5058.715 | E35: 2.304 | F35: 0 | G35: 0 | H35: 0 | I35: 0.508 | J35: 0 | K35: 0 | L35: 0 | M35: 4.893 | N35: 0 | O35: 0 | P35: 0 | R35: =Prop2021DistTar!AF35 -> 0.5 | T35: =Prop2021DistTar!AH35 -> 0 | U35: =Prop2021DistTar!AI35 -> 0 | V35: =Prop2021DistTar!AJ35 -> 0 | X35: =Prop2021DistTar!AL35 -> 0 | Y35: =Prop2021DistTar!AM35 -> 0 | Z35: =Prop2021DistTar!AN35 -> 0 | AB35: =Prop2021DistTar!AP35 -> 0 | AC35: =Prop2021DistTar!AQ35 -> 0 | AD35: =Prop2021DistTar!AR35 -> 0 | AF35: =D35*R35 -> 2529.3575 | AH35: =F35/100*T35 -> 0 | AI35: 0 | AJ35: 0 | AL35: 0 | AM35: 0 | AN35: 0 | AP35: =N35*AB35 -> 0 | AQ35: =O35*AC35 -> 0 | AR35: =P35*AD35 -> 0
R36: =Prop2021DistTar!AF36 -> 0 | S36: =Prop2021DistTar!AG36 -> 0 | T36: =Prop2021DistTar!AH36 -> 0 | U36: =Prop2021DistTar!AI36 -> 0 | V36: =Prop2021DistTar!AJ36 -> 0 | W36: =Prop2021DistTar!AK36 -> 0 | X36: =Prop2021DistTar!AL36 -> 0 | Y36: =Prop2021DistTar!AM36 -> 0 | Z36: =Prop2021DistTar!AN36 -> 0 | AA36: =Prop2021DistTar!AO36 -> 0 | AB36: =Prop2021DistTar!AP36 -> 0 | AC36: =Prop2021DistTar!AQ36 -> 0 | AD36: =Prop2021DistTar!AR36 -> 0 | AF36: 0 | AG36: 0 | AH36: 0 | AI36: 0 | AJ36: 0 | AK36: 0 | AL36: 0 | AM36: 0 | AN36: 0 | AO36: =M36*AA36 -> 0 | AP36: 0 | AQ36: 0 | AR36: 0 | AS36: =SUM(AF36:AR36) -> 0
R37: =Prop2021DistTar!AF37 -> 0 | S37: =Prop2021DistTar!AG37 -> 0 | T37: =Prop2021DistTar!AH37 -> 0 | U37: =Prop2021DistTar!AI37 -> 0 | V37: =Prop2021DistTar!AJ37 -> 0 | W37: =Prop2021DistTar!AK37 -> 0 | X37: =Prop2021DistTar!AL37 -> 0 | Y37: =Prop2021DistTar!AM37 -> 0 | Z37: =Prop2021DistTar!AN37 -> 0 | AA37: =Prop2021DistTar!AO37 -> 0 | AB37: =Prop2021DistTar!AP37 -> 0 | AC37: =Prop2021DistTar!AQ37 -> 0 | AD37: =Prop2021DistTar!AR37 -> 0 | AF37: 0 | AG37: 0 | AH37: 0 | AI37: 0 | AJ37: 0 | AK37: 0 | AL37: 0 | AM37: 0 | AN37: 0 | AO37: 0 | AP37: 0 | AQ37: 0 | AR37: 0 | AS37: 0
R38: =Prop2021DistTar!AF38 -> 0 | S38: =Prop2021DistTar!AG38 -> 0 | T38: =Prop2021DistTar!AH38 -> 0 | U38: =Prop2021DistTar!AI38 -> 0 | V38: =Prop2021DistTar!AJ38 -> 0 | W38: =Prop2021DistTar!AK38 -> 0 | X38: =Prop2021DistTar!AL38 -> 0 | Y38: =Prop2021DistTar!AM38 -> 0 | Z38: =Prop2021DistTar!AN38 -> 0 | AA38: =Prop2021DistTar!AO38 -> 0 | AB38: =Prop2021DistTar!AP38 -> 0 | AC38: =Prop2021DistTar!AQ38 -> 0 | AD38: =Prop2021DistTar!AR38 -> 0 | AF38: 0 | AG38: 0 | AH38: 0 | AI38: 0 | AJ38: 0 | AK38: 0 | AL38: 0 | AM38: 0 | AN38: 0 | AO38: 0 | AP38: 0 | AQ38: 0 | AR38: 0 | AS38: 0
R39: =Prop2021DistTar!AF39 -> 0 | S39: =Prop2021DistTar!AG39 -> 0 | T39: =Prop2021DistTar!AH39 -> 0 | U39: =Prop2021DistTar!AI39 -> 0 | V39: =Prop2021DistTar!AJ39 -> 0 | W39: =Prop2021DistTar!AK39 -> 0 | X39: =Prop2021DistTar!AL39 -> 0 | Y39: =Prop2021DistTar!AM39 -> 0 | Z39: =Prop2021DistTar!AN39 -> 0 | AA39: =Prop2021DistTar!AO39 -> 0 | AB39: =Prop2021DistTar!AP39 -> 0 | AC39: =Prop2021DistTar!AQ39 -> 0 | AD39: =Prop2021DistTar!AR39 -> 0 | AF39: 0 | AG39: 0 | AH39: 0 | AI39: 0 | AJ39: 0 | AK39: 0 | AL39: 0 | AM39: 0 | AN39: 0 | AO39: 0 | AP39: 0 | AQ39: 0 | AR39: 0 | AS39: 0
R40: =Prop2021DistTar!AF40 -> 0 | S40: =Prop2021DistTar!AG40 -> 0 | T40: =Prop2021DistTar!AH40 -> 0 | U40: =Prop2021DistTar!AI40 -> 0 | V40: =Prop2021DistTar!AJ40 -> 0 | W40: =Prop2021DistTar!AK40 -> 0 | X40: =Prop2021DistTar!AL40 -> 0 | Y40: =Prop2021DistTar!AM40 -> 0 | Z40: =Prop2021DistTar!AN40 -> 0 | AA40: =Prop2021DistTar!AO40 -> 0 | AB40: =Prop2021DistTar!AP40 -> 0 | AC40: =Prop2021DistTar!AQ40 -> 0 | AD40: =Prop2021DistTar!AR40 -> 0 | AF40: 0 | AG40: 0 | AH40: 0 | AI40: 0 | AJ40: 0 | AK40: 0 | AL40: 0 | AM40: 0 | AN40: 0 | AO40: 0 | AP40: 0 | AQ40: 0 | AR40: 0 | AS40: 0
R41: =Prop2021DistTar!AF41 -> 0 | S41: =Prop2021DistTar!AG41 -> 0 | T41: =Prop2021DistTar!AH41 -> 0 | U41: =Prop2021DistTar!AI41 -> 0 | V41: =Prop2021DistTar!AJ41 -> 0 | W41: =Prop2021DistTar!AK41 -> 0 | X41: =Prop2021DistTar!AL41 -> 0 | Y41: =Prop2021DistTar!AM41 -> 0 | Z41: =Prop2021DistTar!AN41 -> 0 | AA41: =Prop2021DistTar!AO41 -> 0 | AB41: =Prop2021DistTar!AP41 -> 0 | AC41: =Prop2021DistTar!AQ41 -> 0 | AD41: =Prop2021DistTar!AR41 -> 0 | AF41: 0 | AG41: 0 | AH41: 0 | AI41: 0 | AJ41: 0 | AK41: 0 | AL41: 0 | AM41: 0 | AN41: 0 | AO41: 0 | AP41: 0 | AQ41: 0 | AR41: 0 | AS41: 0
R42: =Prop2021DistTar!AF42 -> 0 | S42: =Prop2021DistTar!AG42 -> 0 | T42: =Prop2021DistTar!AH42 -> 0 | U42: =Prop2021DistTar!AI42 -> 0 | V42: =Prop2021DistTar!AJ42 -> 0 | W42: =Prop2021DistTar!AK42 -> 0 | X42: =Prop2021DistTar!AL42 -> 0 | Y42: =Prop2021DistTar!AM42 -> 0 | Z42: =Prop2021DistTar!AN42 -> 0 | AA42: =Prop2021DistTar!AO42 -> 0 | AB42: =Prop2021DistTar!AP42 -> 0 | AC42: =Prop2021DistTar!AQ42 -> 0 | AD42: =Prop2021DistTar!AR42 -> 0 | AF42: 0 | AG42: 0 | AH42: 0 | AI42: 0 | AJ42: 0 | AK42: 0 | AL42: 0 | AM42: 0 | AN42: 0 | AO42: 0 | AP42: 0 | AQ42: 0 | AR42: 0 | AS42: 0
R43: =Prop2021DistTar!AF43 -> 0 | S43: =Prop2021DistTar!AG43 -> 0 | T43: =Prop2021DistTar!AH43 -> 0 | U43: =Prop2021DistTar!AI43 -> 0 | V43: =Prop2021DistTar!AJ43 -> 0 | W43: =Prop2021DistTar!AK43 -> 0 | X43: =Prop2021DistTar!AL43 -> 0 | Y43: =Prop2021DistTar!AM43 -> 0 | Z43: =Prop2021DistTar!AN43 -> 0 | AA43: =Prop2021DistTar!AO43 -> 0 | AB43: =Prop2021DistTar!AP43 -> 0 | AC43: =Prop2021DistTar!AQ43 -> 0 | AD43: =Prop2021DistTar!AR43 -> 0 | AF43: 0 | AG43: 0 | AH43: 0 | AI43: 0 | AJ43: 0 | AK43: 0 | AL43: 0 | AM43: 0 | AN43: 0 | AO43: 0 | AP43: 0 | AQ43: 0 | AR43: 0 | AS43: 0
R44: =Prop2021DistTar!AF44 -> 0 | S44: =Prop2021DistTar!AG44 -> 0 | T44: =Prop2021DistTar!AH44 -> 0 | U44: =Prop2021DistTar!AI44 -> 0 | V44: =Prop2021DistTar!AJ44 -> 0 | W44: =Prop2021DistTar!AK44 -> 0 | X44: =Prop2021DistTar!AL44 -> 0 | Y44: =Prop2021DistTar!AM44 -> 0 | Z44: =Prop2021DistTar!AN44 -> 0 | AA44: =Prop2021DistTar!AO44 -> 0 | AB44: =Prop2021DistTar!AP44 -> 0 | AC44: =Prop2021DistTar!AQ44 -> 0 | AD44: =Prop2021DistTar!AR44 -> 0 | AF44: 0 | AG44: 0 | AH44: 0 | AI44: 0 | AJ44: 0 | AK44: 0 | AL44: 0 | AM44: 0 | AN44: 0 | AO44: 0 | AP44: 0 | AQ44: 0 | AR44: 0 | AS44: 0
R45: =Prop2021DistTar!AF45 -> 0 | S45: =Prop2021DistTar!AG45 -> 0 | T45: =Prop2021DistTar!AH45 -> 0 | U45: =Prop2021DistTar!AI45 -> 0 | V45: =Prop2021DistTar!AJ45 -> 0 | W45: =Prop2021DistTar!AK45 -> 0 | X45: =Prop2021DistTar!AL45 -> 0 | Y45: =Prop2021DistTar!AM45 -> 0 | Z45: =Prop2021DistTar!AN45 -> 0 | AA45: =Prop2021DistTar!AO45 -> 0 | AB45: =Prop2021DistTar!AP45 -> 0 | AC45: =Prop2021DistTar!AQ45 -> 0 | AD45: =Prop2021DistTar!AR45 -> 0 | AF45: 0 | AG45: 0 | AH45: 0 | AI45: 0 | AJ45: 0 | AK45: 0 | AL45: 0 | AM45: 0 | AN45: 0 | AO45: 0 | AP45: 0 | AQ45: 0 | AR45: 0 | AS45: 0
R46: =Prop2021DistTar!AF46 -> 0 | S46: =Prop2021DistTar!AG46 -> 0 | T46: =Prop2021DistTar!AH46 -> 0 | U46: =Prop2021DistTar!AI46 -> 0 | V46: =Prop2021DistTar!AJ46 -> 0 | W46: =Prop2021DistTar!AK46 -> 0 | X46: =Prop2021DistTar!AL46 -> 0 | Y46: =Prop2021DistTar!AM46 -> 0 | Z46: =Prop2021DistTar!AN46 -> 0 | AA46: =Prop2021DistTar!AO46 -> 0 | AB46: =Prop2021DistTar!AP46 -> 0 | AC46: =Prop2021DistTar!AQ46 -> 0 | AD46: =Prop2021DistTar!AR46 -> 0 | AF46: 0 | AG46: 0 | AH46: 0 | AI46: 0 | AJ46: 0 | AK46: 0 | AL46: 0 | AM46: 0 | AN46: 0 | AO46: 0 | AP46: 0 | AQ46: 0 | AR46: 0 | AS46: 0
R47: =Prop2021DistTar!AF47 -> 0 | S47: =Prop2021DistTar!AG47 -> 0 | T47: =Prop2021DistTar!AH47 -> 0 | U47: =Prop2021DistTar!AI47 -> 0 | V47: =Prop2021DistTar!AJ47 -> 0 | W47: =Prop2021DistTar!AK47 -> 0 | X47: =Prop2021DistTar!AL47 -> 0 | Y47: =Prop2021DistTar!AM47 -> 0 | Z47: =Prop2021DistTar!AN47 -> 0 | AA47: =Prop2021DistTar!AO47 -> 0 | AB47: =Prop2021DistTar!AP47 -> 0 | AC47: =Prop2021DistTar!AQ47 -> 0 | AD47: =Prop2021DistTar!AR47 -> 0 | AF47: 0 | AG47: 0 | AH47: 0 | AI47: 0 | AJ47: 0 | AK47: 0 | AL47: 0 | AM47: 0 | AN47: 0 | AO47: 0 | AP47: 0 | AQ47: 0 | AR47: 0 | AS47: 0
R48: =Prop2021DistTar!AF48 -> 0 | S48: =Prop2021DistTar!AG48 -> 0 | T48: =Prop2021DistTar!AH48 -> 0 | U48: =Prop2021DistTar!AI48 -> 0 | V48: =Prop2021DistTar!AJ48 -> 0 | W48: =Prop2021DistTar!AK48 -> 0 | X48: =Prop2021DistTar!AL48 -> 0 | Y48: =Prop2021DistTar!AM48 -> 0 | Z48: =Prop2021DistTar!AN48 -> 0 | AA48: =Prop2021DistTar!AO48 -> 0 | AB48: =Prop2021DistTar!AP48 -> 0 | AC48: =Prop2021DistTar!AQ48 -> 0 | AD48: =Prop2021DistTar!AR48 -> 0 | AF48: 0 | AG48: 0 | AH48: 0 | AI48: 0 | AJ48: 0 | AK48: 0 | AL48: 0 | AM48: 0 | AN48: 0 | AO48: 0 | AP48: 0 | AQ48: 0 | AR48: 0 | AS48: 0
R49: =Prop2021DistTar!AF49 -> 0 | S49: =Prop2021DistTar!AG49 -> 0 | T49: =Prop2021DistTar!AH49 -> 0 | U49: =Prop2021DistTar!AI49 -> 0 | V49: =Prop2021DistTar!AJ49 -> 0 | W49: =Prop2021DistTar!AK49 -> 0 | X49: =Prop2021DistTar!AL49 -> 0 | Y49: =Prop2021DistTar!AM49 -> 0 | Z49: =Prop2021DistTar!AN49 -> 0 | AA49: =Prop2021DistTar!AO49 -> 0 | AB49: =Prop2021DistTar!AP49 -> 0 | AC49: =Prop2021DistTar!AQ49 -> 0 | AD49: =Prop2021DistTar!AR49 -> 0 | AF49: 0 | AG49: 0 | AH49: 0 | AI49: 0 | AJ49: 0 | AK49: 0 | AL49: 0 | AM49: 0 | AN49: 0 | AO49: 0 | AP49: 0 | AQ49: 0 | AR49: 0 | AS49: 0
R50: =Prop2021DistTar!AF50 -> 0 | S50: =Prop2021DistTar!AG50 -> 0 | T50: =Prop2021DistTar!AH50 -> 0 | U50: =Prop2021DistTar!AI50 -> 0 | V50: =Prop2021DistTar!AJ50 -> 0 | W50: =Prop2021DistTar!AK50 -> 0 | X50: =Prop2021DistTar!AL50 -> 0 | Y50: =Prop2021DistTar!AM50 -> 0 | Z50: =Prop2021DistTar!AN50 -> 0 | AA50: =Prop2021DistTar!AO50 -> 0 | AB50: =Prop2021DistTar!AP50 -> 0 | AC50: =Prop2021DistTar!AQ50 -> 0 | AD50: =Prop2021DistTar!AR50 -> 0 | AF50: 0 | AG50: 0 | AH50: 0 | AI50: 0 | AJ50: 0 | AK50: 0 | AL50: 0 | AM50: 0 | AN50: 0 | AO50: 0 | AP50: 0 | AQ50: 0 | AR50: 0 | AS50: 0
R51: =Prop2021DistTar!AF51 -> 0 | S51: =Prop2021DistTar!AG51 -> 0 | T51: =Prop2021DistTar!AH51 -> 0 | U51: =Prop2021DistTar!AI51 -> 0 | V51: =Prop2021DistTar!AJ51 -> 0 | W51: =Prop2021DistTar!AK51 -> 0 | X51: =Prop2021DistTar!AL51 -> 0 | Y51: =Prop2021DistTar!AM51 -> 0 | Z51: =Prop2021DistTar!AN51 -> 0 | AA51: =Prop2021DistTar!AO51 -> 0 | AB51: =Prop2021DistTar!AP51 -> 0 | AC51: =Prop2021DistTar!AQ51 -> 0 | AD51: =Prop2021DistTar!AR51 -> 0 | AF51: 0 | AG51: 0 | AH51: 0 | AI51: 0 | AJ51: 0 | AK51: 0 | AL51: 0 | AM51: 0 | AN51: 0 | AO51: 0 | AP51: 0 | AQ51: 0 | AR51: 0 | AS51: 0
R52: =Prop2021DistTar!AF52 -> 0 | S52: =Prop2021DistTar!AG52 -> 0 | T52: =Prop2021DistTar!AH52 -> 0 | U52: =Prop2021DistTar!AI52 -> 0 | V52: =Prop2021DistTar!AJ52 -> 0 | W52: =Prop2021DistTar!AK52 -> 0 | X52: =Prop2021DistTar!AL52 -> 0 | Y52: =Prop2021DistTar!AM52 -> 0 | Z52: =Prop2021DistTar!AN52 -> 0 | AA52: =Prop2021DistTar!AO52 -> 0 | AB52: =Prop2021DistTar!AP52 -> 0 | AC52: =Prop2021DistTar!AQ52 -> 0 | AD52: =Prop2021DistTar!AR52 -> 0 | AF52: 0 | AG52: 0 | AH52: 0 | AI52: 0 | AJ52: 0 | AK52: 0 | AL52: 0 | AM52: 0 | AN52: 0 | AO52: 0 | AP52: 0 | AQ52: 0 | AR52: 0 | AS52: 0
R53: =Prop2021DistTar!AF53 -> 0 | S53: =Prop2021DistTar!AG53 -> 0 | T53: =Prop2021DistTar!AH53 -> 0 | U53: =Prop2021DistTar!AI53 -> 0 | V53: =Prop2021DistTar!AJ53 -> 0 | W53: =Prop2021DistTar!AK53 -> 0 | X53: =Prop2021DistTar!AL53 -> 0 | Y53: =Prop2021DistTar!AM53 -> 0 | Z53: =Prop2021DistTar!AN53 -> 0 | AA53: =Prop2021DistTar!AO53 -> 0 | AB53: =Prop2021DistTar!AP53 -> 0 | AC53: =Prop2021DistTar!AQ53 -> 0 | AD53: =Prop2021DistTar!AR53 -> 0 | AF53: 0 | AG53: 0 | AH53: 0 | AI53: 0 | AJ53: 0 | AK53: 0 | AL53: 0 | AM53: 0 | AN53: 0 | AO53: 0 | AP53: 0 | AQ53: 0 | AR53: 0 | AS53: 0
R54: =Prop2021DistTar!AF54 -> 0 | S54: =Prop2021DistTar!AG54 -> 0 | T54: =Prop2021DistTar!AH54 -> 0 | U54: =Prop2021DistTar!AI54 -> 0 | V54: =Prop2021DistTar!AJ54 -> 0 | W54: =Prop2021DistTar!AK54 -> 0 | X54: =Prop2021DistTar!AL54 -> 0 | Y54: =Prop2021DistTar!AM54 -> 0 | Z54: =Prop2021DistTar!AN54 -> 0 | AA54: =Prop2021DistTar!AO54 -> 0 | AB54: =Prop2021DistTar!AP54 -> 0 | AC54: =Prop2021DistTar!AQ54 -> 0 | AD54: =Prop2021DistTar!AR54 -> 0 | AF54: 0 | AG54: 0 | AH54: 0 | AI54: 0 | AJ54: 0 | AK54: 0 | AL54: 0 | AM54: 0 | AN54: 0 | AO54: 0 | AP54: 0 | AQ54: 0 | AR54: 0 | AS54: 0
AF55: 0 | AG55: =E55/100*S55 -> 0 | AH55: 0 | AI55: 0 | AJ55: 0 | AK55: 0 | AL55: 0 | AM55: 0 | AN55: 0 | AO55: 0 | AP55: 0 | AQ55: 0 | AR55: 0 | AS55: 0
AF56: 0 | AG56: 0 | AH56: 0 | AI56: 0 | AJ56: 0 | AK56: 0 | AL56: 0 | AM56: 0 | AN56: 0 | AO56: 0 | AP56: 0 | AQ56: 0 | AR56: 0 | AS56: 0
AF57: 0 | AG57: 0 | AH57: 0 | AI57: 0 | AJ57: 0 | AK57: 0 | AL57: 0 | AM57: 0 | AN57: 0 | AO57: 0 | AP57: 0 | AQ57: 0 | AR57: 0 | AS57: 0
AF58: 0 | AG58: 0 | AH58: 0 | AI58: 0 | AJ58: 0 | AK58: 0 | AL58: 0 | AM58: 0 | AN58: 0 | AO58: 0 | AP58: 0 | AQ58: 0 | AR58: 0 | AS58: 0
AF59: 0 | AG59: 0 | AH59: 0 | AI59: 0 | AJ59: 0 | AK59: 0 | AL59: 0 | AM59: 0 | AN59: 0 | AO59: 0 | AP59: 0 | AQ59: 0 | AR59: 0 | AS59: 0
AF60: 0 | AG60: 0 | AH60: 0 | AI60: 0 | AJ60: 0 | AK60: 0 | AL60: 0 | AM60: 0 | AN60: 0 | AO60: 0 | AP60: 0 | AQ60: 0 | AR60: 0 | AS60: 0
AF61: 0 | AG61: 0 | AH61: 0 | AI61: 0 | AJ61: 0 | AK61: 0 | AL61: 0 | AM61: 0 | AN61: 0 | AO61: 0 | AP61: 0 | AQ61: 0 | AR61: 0 | AS61: 0
AF62: 0 | AG62: 0 | AH62: 0 | AI62: 0 | AJ62: 0 | AK62: 0 | AL62: 0 | AM62: 0 | AN62: 0 | AO62: 0 | AP62: 0 | AQ62: 0 | AR62: 0 | AS62: 0
AF63: 0 | AG63: 0 | AH63: 0 | AI63: 0 | AJ63: 0 | AK63: 0 | AL63: 0 | AM63: 0 | AN63: 0 | AO63: 0 | AP63: 0 | AQ63: 0 | AR63: 0 | AS63: 0
AF64: 0 | AG64: 0 | AH64: 0 | AI64: 0 | AJ64: 0 | AK64: 0 | AL64: 0 | AM64: 0 | AN64: 0 | AO64: 0 | AP64: 0 | AQ64: 0 | AR64: 0 | AS64: 0
AF65: 0 | AG65: 0 | AH65: 0 | AI65: 0 | AJ65: 0 | AK65: 0 | AL65: 0 | AM65: 0 | AN65: 0 | AO65: 0 | AP65: 0 | AQ65: 0 | AR65: 0 | AS65: 0
R66: =SUM(R6:R65) -> 182831.4449 | S66: 1517656395 | T66: 580688.3796 | U66: 407370.3282 | V66: 757351.4178 | W66: 609112587.4 | X66: 495167.1411 | Y66: =SUM(Y6:Y65) -> 0 | Z66: 0 | AA66: 443886.2866 | AB66: 0 | AC66: 0 | AD66: 0 | AF66: =SUM(AF6:AF65) -> 1241671.767 | AG66: 28800011.58 | AH66: 5510.732723 | AI66: 1743.545005 | AJ66: 7187.264955 | AK66: 5218828.495 | AL66: 252.535242 | AM66: =SUM(AM6:AM65) -> 0 | AN66: 0 | AO66: 1186702.483 | AP66: 0 | AQ66: 0 | AR66: 0 | AS66: 36461908.4

Sheet 2021TransRevCont
B2: ="Tariff Approval - "&'Model update'!$C$3 -> Tariff Approval - Jemena | C2: ='Model update'!$C$5&"TransRevCont" -> 2021TransRevCont
B4: Designated pricing proposal charges (DPPC)
B6: Year (t) | C6: ='Model update'!C5 -> 2021
B8: Table 1- Compliance with DPPC Revenue Formula
B9: Revenue from designated pricing proposal charges for year t | C9: =Prop2021TransTar!AS66 -> 36461908.4
B10: Total DPPC related payments for year t | C10: =C19 -> 36461912
C11: =IF(C9="","",IF(C10>=C9,"DPPC REVENUE FORMULA COMPLIANT","DPPC REVENUE FORMULA BREACHED")) -> DPPC REVENUE FORMULA COMPLIANT
B14: Table 3 - Transmission charges for year t
B15: AEMO (TCt) | C15: 34006820
B16: Transmission connection (TCt) | C16: 4571285
B17: Embedded generators (Gt) | C17: 758057
B18: Inter-network (Dt) | C18: 2874250
B19: TC + G - D | C19: =C15+C16+C17-C18 -> 36461912

Sheet Prop2021JSTar
B1: ="Tariff Approval - "&'Model update'!C3 -> Tariff Approval - Jemena | D1: ="Prop"&'Model update'!$C$5&"JSTar" -> Prop2021JSTar
B3: ="PROPOSED "&'Model update'!$C$5&" JURISDICTIONAL SCHEME TARIFFS" -> PROPOSED 2021 JURISDICTIONAL SCHEME TARIFFS
D4: ="Proposed Jurisdictional scheme Tariffs (Pt) for "&'Model update'!$C$5 -> Proposed Jurisdictional scheme Tariffs (Pt) for 2021 | R4: ="Forecast Quantities (Qt) for "&'Model update'!$C$5 -> Forecast Quantities (Qt) for 2021 | AF4: ="Forecast Revenue (Pt "&'Model update'!$C$5&")*(Qt " &'Model update'!$C$5&")" -> Forecast Revenue (Pt 2021)*(Qt 2021)
B5: Proposed tariff | D5: =Prop2021DistTar!D5 -> PropTar Fixed | E5: =Prop2021DistTar!E5 -> PropTar PkBlk1 | F5: =Prop2021DistTar!F5 -> PropTar Shoulder summer | G5: =Prop2021DistTar!G5 -> PropTar peak non-summer | H5: =Prop2021DistTar!H5 -> PropTar Shoulder non-summer | I5: =Prop2021DistTar!I5 -> PropTar OPkBlk1 | J5: =Prop2021DistTar!J5 -> PropTar off peak non-summer | K5: =Prop2021DistTar!K5 -> PropTar OPkBlk3 | L5: =Prop2021DistTar!L5 -> PropTar OPkBlk4 | M5: =Prop2021DistTar!M5 -> PropTar DemBlk1 | N5: =Prop2021DistTar!N5 -> PropTar DemBlk2 | O5: =Prop2021DistTar!O5 -> PropTar DemBlk3 | P5: =Prop2021DistTar!P5 -> PropTar DemBlk4 | R5: =Prop2021DistTar!AF5 -> FcastVol Fixed | S5: =Prop2021DistTar!AG5 -> FcastVol PkBlk1 | T5: =Prop2021DistTar!AH5 -> FcastVol Shoulder summer | U5: =Prop2021DistTar!AI5 -> FcastVol peak non-summer | V5: =Prop2021DistTar!AJ5 -> FcastVol Shoulder non-summer | W5: =Prop2021DistTar!AK5 -> FcastVol OPkBlk1 | X5: =Prop2021DistTar!AL5 -> FcastVol off peak non-summer | Y5: =Prop2021DistTar!AM5 -> FcastVol OPkBlk3 | Z5: =Prop2021DistTar!AN5 -> FcastVol OPkBlk4 | AA5: =Prop2021DistTar!AO5 -> FcastVol DemBlk1 | AB5: =Prop2021DistTar!AP5 -> FcastVol DemBlk2 | AC5: =Prop2021DistTar!AQ5 -> FcastVol DemBlk3 | AD5: =Prop2021DistTar!AR5 -> FcastVol DemBlk4 | AF5: PropRev Fixed | AG5: PropRev PkBlk1 | AH5: PropRev PkBlk2 | AI5: PropRev PkBlk3 | AJ5: PropRev PkBlk4 | AK5: PropRev OPkBlk1 | AL5: PropRev OPkBlk2 | AM5: PropRev OPkBlk3 | AN5: PropRev OPkBlk4 | AO5: PropRev DemBlk1 | AP5: PropRev DemBlk2 | AQ5: PropRev DemBlk3 | AR5: PropRev DemBlk4 | AS5: PropRev Total
B6: =Prop2021DistTar!B6 -> Residential - General Purpose | D6: 0 | E6: 0.151 | F6: 0 | G6: 0 | H6: 0 | I6: 0 | J6: 0 | K6: 0 | L6: 0 | M6: 0 | N6: 0 | O6: 0 | P6: 0 | R6: =Prop2021DistTar!AF6 -> 158878.4444 | S6: =Prop2021DistTar!AG6 -> 639147331.9 | T6: =Prop2021DistTar!AH6 -> 0 | U6: =Prop2021DistTar!AI6 -> 0 | V6: =Prop2021DistTar!AJ6 -> 0 | W6: =Prop2021DistTar!AK6 -> 0 | X6: =Prop2021DistTar!AL6 -> 0 | Y6: =Prop2021DistTar!AM6 -> 0 | Z6: =Prop2021DistTar!AN6 -> 0 | AA6: =Prop2021DistTar!AO6 -> 0 | AB6: =Prop2021DistTar!AP6 -> 0 | AC6: =Prop2021DistTar!AQ6 -> 0 | AD6: =Prop2021DistTar!AR6 -> 0 | AF6: =D6*R6 -> 0 | AG6: =E6/100*S6 -> 965112.4711 | AH6: 0 | AI6: 0 | AJ6: 0 | AK6: 0 | AL6: 0 | AM6: 0 | AN6: 0 | AO6: =M6*AA6 -> 0 | AP6: 0 | AQ6: 0 | AR6: 0 | AS6: =SUM(AF6:AR6) -> 965112.4711
B7: =Prop2021DistTar!B7 -> Residential - General Purpose Demand | D7: 0 | E7: 0.151 | F7: 0 | G7: 0 | H7: 0 | I7: 0 | J7: 0 | K7: 0 | L7: 0 | M7: 0 | N7: 0 | O7: 0 | P7: 0 | R7: =Prop2021DistTar!AF7 -> 2.710534965 | S7: =Prop2021DistTar!AG7 -> 30970.704 | T7: =Prop2021DistTar!AH7 -> 0 | U7: =Prop2021DistTar!AI7 -> 0 | V7: =Prop2021DistTar!AJ7 -> 0 | W7: =Prop2021DistTar!AK7 -> 0 | X7: =Prop2021DistTar!AL7 -> 0 | Y7: =Prop2021DistTar!AM7 -> 0 | Z7: =Prop2021DistTar!AN7 -> 0 | AA7: =Prop2021DistTar!AO7 -> 5 | AB7: =Prop2021DistTar!AP7 -> 0 | AC7: =Prop2021DistTar!AQ7 -> 0 | AD7: =Prop2021DistTar!AR7 -> 0 | AF7: =D7*R7 -> 0 | AG7: =E7/100*S7 -> 46.76576304 | AH7: 0 | AI7: 0 | AJ7: 0 | AK7: 0 | AL7: 0 | AM7: 0 | AN7: 0 | AO7: =M7*AA7 -> 0 | AP7: =N7*AB7 -> 0 | AQ7: =O7*AC7 -> 0 | AR7: =P7*AD7 -> 0 | AS7: =SUM(AF7:AR7) -> 46.76576304
B8: =Prop2021DistTar!B8 -> Residential - Flexible | D8: 0 | E8: 0.151 | F8: 0.151 | G8: 0.151 | H8: 0.151 | I8: 0.145 | J8: 0.145 | K8: 0 | L8: 0 | M8: 0 | N8: 0 | O8: 0 | P8: 0 | R8: =Prop2021DistTar!AF8 -> 415.048838 | S8: =Prop2021DistTar!AG8 -> 309609.7466 | T8: =Prop2021DistTar!AH8 -> 580688.3796 | U8: =Prop2021DistTar!AI8 -> 407370.3282 | V8: =Prop2021DistTar!AJ8 -> 757351.4178 | W8: =Prop2021DistTar!AK8 -> 614725.7076 | X8: =Prop2021DistTar!AL8 -> 495167.1411 | Y8: =Prop2021DistTar!AM8 -> 0 | Z8: =Prop2021DistTar!AN8 -> 0 | AA8: =Prop2021DistTar!AO8 -> 0 | AB8: =Prop2021DistTar!AP8 -> 0 | AC8: =Prop2021DistTar!AQ8 -> 0 | AD8: =Prop2021DistTar!AR8 -> 0 | AF8: 0 | AG8: 467.5107174 | AH8: 876.8394532 | AI8: 615.1291956 | AJ8: 1143.600641 | AK8: 891.352276 | AL8: 717.9923546 | AM8: 0 | AN8: 0 | AO8: 0 | AP8: 0 | AQ8: 0 | AR8: 0 | AS8: 4712.424638
B9: =Prop2021DistTar!B9 -> Residential - Time of Use Interval Meter | D9: 0 | E9: 0.151 | F9: 0 | G9: 0 | H9: 0 | I9: 0.112 | J9: 0 | K9: 0 | L9: 0 | M9: 0 | N9: 0 | O9: 0 | P9: 0 | R9: =Prop2021DistTar!AF9 -> 7444.484259 | S9: =Prop2021DistTar!AG9 -> 16938462.59 | T9: =Prop2021DistTar!AH9 -> 0 | U9: =Prop2021DistTar!AI9 -> 0 | V9: =Prop2021DistTar!AJ9 -> 0 | W9: =Prop2021DistTar!AK9 -> 17531385.14 | X9: =Prop2021DistTar!AL9 -> 0 | Y9: =Prop2021DistTar!AM9 -> 0 | Z9: =Prop2021DistTar!AN9 -> 0 | AA9: =Prop2021DistTar!AO9 -> 0 | AB9: =Prop2021DistTar!AP9 -> 0 | AC9: =Prop2021DistTar!AQ9 -> 0 | AD9: =Prop2021DistTar!AR9 -> 0 | AF9: 0 | AG9: 25577.07851 | AH9: 0 | AI9: 0 | AJ9: 0 | AK9: 19635.15136 | AL9: 0 | AM9: 0 | AN9: 0 | AO9: 0 | AP9: 0 | AQ9: 0 | AR9: 0 | AS9: 45212.22987
B10: =Prop2021DistTar!B10 -> Residential - TOU | D10: 0 | E10: 0.151 | F10: 0 | G10: 0 | H10: 0 | I10: 0.112 | J10: 0 | K10: 0 | L10: 0 | M10: 0 | N10: 0 | O10: 0 | P10: 0 | R10: =Prop2021DistTar!AF10 -> 678.1290096 | S10: =Prop2021DistTar!AG10 -> 3116768.903 | T10: =Prop2021DistTar!AH10 -> 0 | U10: =Prop2021DistTar!AI10 -> 0 | V10: =Prop2021DistTar!AJ10 -> 0 | W10: =Prop2021DistTar!AK10 -> 3413336.918 | X10: =Prop2021DistTar!AL10 -> 0 | Y10: =Prop2021DistTar!AM10 -> 0 | Z10: =Prop2021DistTar!AN10 -> 0 | AA10: =Prop2021DistTar!AO10 -> 0 | AB10: =Prop2021DistTar!AP10 -> 0 | AC10: =Prop2021DistTar!AQ10 -> 0 | AD10: =Prop2021DistTar!AR10 -> 0 | AF10: 0 | AG10: 4706.321044 | AH10: 0 | AI10: 0 | AJ10: 0 | AK10: 3822.937349 | AL10: 0 | AM10: 0 | AN10: 0 | AO10: 0 | AP10: 0 | AQ10: 0 | AR10: 0 | AS10: 8529.258392
B11: =Prop2021DistTar!B11 -> Residential - Off Peak Only | D11: 0 | E11: 0 | F11: 0 | G11: 0 | H11: 0 | I11: 0.112 | J11: 0 | K11: 0 | L11: 0 | M11: 0 | N11: 0 | O11: 0 | P11: 0 | R11: =Prop2021DistTar!AF11 -> 0 | S11: =Prop2021DistTar!AG11 -> 0 | T11: =Prop2021DistTar!AH11 -> 0 | U11: =Prop2021DistTar!AI11 -> 0 | V11: =Prop2021DistTar!AJ11 -> 0 | W11: =Prop2021DistTar!AK11 -> 15302727.76 | X11: =Prop2021DistTar!AL11 -> 0 | Y11: =Prop2021DistTar!AM11 -> 0 | Z11: =Prop2021DistTar!AN11 -> 0 | AA11: =Prop2021DistTar!AO11 -> 0 | AB11: =Prop2021DistTar!AP11 -> 0 | AC11: =Prop2021DistTar!AQ11 -> 0 | AD11: =Prop2021DistTar!AR11 -> 0 | AF11: 0 | AG11: 0 | AH11: 0 | AI11: 0 | AJ11: 0 | AK11: 17139.05509 | AL11: 0 | AM11: 0 | AN11: 0 | AO11: 0 | AP11: 0 | AQ11: 0 | AR11: 0 | AS11: 17139.05509
B12: =Prop2021DistTar!B12 -> Small Business - General Purpose | D12: 0 | E12: 0.166 | F12: 0 | G12: 0 | H12: 0 | I12: 0 | J12: 0 | K12: 0 | L12: 0 | M12: 0 | N12: 0 | O12: 0 | P12: 0 | R12: =Prop2021DistTar!AF12 -> 9576.272866 | S12: =Prop2021DistTar!AG12 -> 101667470 | T12: =Prop2021DistTar!AH12 -> 0 | U12: =Prop2021DistTar!AI12 -> 0 | V12: =Prop2021DistTar!AJ12 -> 0 | W12: =Prop2021DistTar!AK12 -> 0 | X12: =Prop2021DistTar!AL12 -> 0 | Y12: =Prop2021DistTar!AM12 -> 0 | Z12: =Prop2021DistTar!AN12 -> 0 | AA12: =Prop2021DistTar!AO12 -> 0 | AB12: =Prop2021DistTar!AP12 -> 0 | AC12: =Prop2021DistTar!AQ12 -> 0 | AD12: =Prop2021DistTar!AR12 -> 0 | AF12: 0 | AG12: 168768.0002 | AH12: 0 | AI12: 0 | AJ12: 0 | AK12: 0 | AL12: 0 | AM12: 0 | AN12: 0 | AO12: 0 | AP12: 0 | AQ12: 0 | AR12: 0 | AS12: 168768.0002
B13: =Prop2021DistTar!B13 -> Small Business - General Purpose Demand | D13: 0 | E13: 0.166 | F13: 0 | G13: 0 | H13: 0 | I13: 0 | J13: 0 | K13: 0 | L13: 0 | M13: 0 | N13: 0 | O13: 0 | P13: 0 | R13: =Prop2021DistTar!AF13 -> 0.5059185863 | T13: =Prop2021DistTar!AH13 -> 0 | U13: =Prop2021DistTar!AI13 -> 0 | V13: =Prop2021DistTar!AJ13 -> 0 | X13: =Prop2021DistTar!AL13 -> 0 | Y13: =Prop2021DistTar!AM13 -> 0 | Z13: =Prop2021DistTar!AN13 -> 0 | AB13: =Prop2021DistTar!AP13 -> 0 | AC13: =Prop2021DistTar!AQ13 -> 0 | AD13: =Prop2021DistTar!AR13 -> 0 | AF13: 0 | AH13: 0 | AI13: 0 | AJ13: 0 | AL13: 0 | AM13: 0 | AN13: 0 | AO13: 0 | AP13: 0 | AQ13: 0 | AR13: 0
B14: =Prop2021DistTar!B14 -> Small Business - TOU Weekdays | D14: 0 | E14: 0.166 | F14: 0 | G14: 0 | H14: 0 | I14: 0.112 | J14: 0 | K14: 0 | L14: 0 | M14: 0 | N14: 0 | O14: 0 | P14: 0 | R14: =Prop2021DistTar!AF14 -> 3714.353077 | S14: =Prop2021DistTar!AG14 -> 76073895.73 | T14: =Prop2021DistTar!AH14 -> 0 | U14: =Prop2021DistTar!AI14 -> 0 | V14: =Prop2021DistTar!AJ14 -> 0 | W14: =Prop2021DistTar!AK14 -> 49617354.31 | X14: =Prop2021DistTar!AL14 -> 0 | Y14: =Prop2021DistTar!AM14 -> 0 | Z14: =Prop2021DistTar!AN14 -> 0 | AA14: =Prop2021DistTar!AO14 -> 0 | AB14: =Prop2021DistTar!AP14 -> 0 | AC14: =Prop2021DistTar!AQ14 -> 0 | AD14: =Prop2021DistTar!AR14 -> 0 | AF14: 0 | AG14: 126282.6669 | AH14: 0 | AI14: 0 | AJ14: 0 | AK14: 55571.43683 | AL14: 0 | AM14: 0 | AN14: 0 | AO14: 0 | AP14: 0 | AQ14: 0 | AR14: 0 | AS14: 181854.1037
B15: =Prop2021DistTar!B15 -> Small Business - TOU Weekdays Demand | D15: 0 | E15: 0.166 | F15: 0 | G15: 0 | H15: 0 | I15: 0.112 | J15: 0 | K15: 0 | L15: 0 | M15: 0 | N15: 0 | O15: 0 | P15: 0 | R15: =Prop2021DistTar!AF15 -> 345.7784898 | S15: =Prop2021DistTar!AG15 -> 34833063.04 | T15: =Prop2021DistTar!AH15 -> 0 | U15: =Prop2021DistTar!AI15 -> 0 | V15: =Prop2021DistTar!AJ15 -> 0 | W15: =Prop2021DistTar!AK15 -> 24232702.15 | X15: =Prop2021DistTar!AL15 -> 0 | Y15: =Prop2021DistTar!AM15 -> 0 | Z15: =Prop2021DistTar!AN15 -> 0 | AA15: =Prop2021DistTar!AO15 -> 24819.49201 | AB15: =Prop2021DistTar!AP15 -> 0 | AC15: =Prop2021DistTar!AQ15 -> 0 | AD15: =Prop2021DistTar!AR15 -> 0 | AF15: 0 | AG15: 57822.88464 | AH15: 0 | AI15: 0 | AJ15: 0 | AK15: 27140.62641 | AL15: 0 | AM15: 0 | AN15: 0 | AO15: 0 | AP15: 0 | AQ15: 0 | AR15: 0 | AS15: 84963.51105
B16: =Prop2021DistTar!B16 -> Small Business - TOU Opt out | D16: 0 | E16: 0.166 | F16: 0 | G16: 0 | H16: 0 | I16: 0.112 | J16: 0 | K16: 0 | L16: 0 | M16: 0 | N16: 0 | O16: 0 | P16: 0 | R16: =Prop2021DistTar!AF16 -> 15.71720408 | S16: =Prop2021DistTar!AG16 -> 1276940.757 | T16: =Prop2021DistTar!AH16 -> 0 | U16: =Prop2021DistTar!AI16 -> 0 | V16: =Prop2021DistTar!AJ16 -> 0 | W16: =Prop2021DistTar!AK16 -> 390747.4038 | X16: =Prop2021DistTar!AL16 -> 0 | Y16: =Prop2021DistTar!AM16 -> 0 | Z16: =Prop2021DistTar!AN16 -> 0 | AA16: =Prop2021DistTar!AO16 -> 0 | AB16: =Prop2021DistTar!AP16 -> 0 | AC16: =Prop2021DistTar!AQ16 -> 0 | AD16: =Prop2021DistTar!AR16 -> 0 | AF16: 0 | AG16: 2119.721656 | AH16: 0 | AI16: 0 | AJ16: 0 | AK16: 437.6370923 | AL16: 0 | AM16: 0 | AN16: 0 | AO16: 0 | AP16: 0 | AQ16: 0 | AR16: 0 | AS16: 2557.358749
B17: =Prop2021DistTar!B17 -> Small Business - TOU Extended | D17: 0 | E17: 0.166 | F17: 0 | G17: 0 | H17: 0 | I17: 0.112 | J17: 0 | K17: 0 | L17: 0 | M17: 0 | N17: 0 | O17: 0 | P17: 0 | R17: =Prop2021DistTar!AF17 -> 941.073449 | S17: =Prop2021DistTar!AG17 -> 18814347.71 | T17: =Prop2021DistTar!AH17 -> 0 | U17: =Prop2021DistTar!AI17 -> 0 | V17: =Prop2021DistTar!AJ17 -> 0 | W17: =Prop2021DistTar!AK17 -> 5757242.442 | X17: =Prop2021DistTar!AL17 -> 0 | Y17: =Prop2021DistTar!AM17 -> 0 | Z17: =Prop2021DistTar!AN17 -> 0 | AA17: =Prop2021DistTar!AO17 -> 0 | AB17: =Prop2021DistTar!AP17 -> 0 | AC17: =Prop2021DistTar!AQ17 -> 0 | AD17: =Prop2021DistTar!AR17 -> 0 | AF17: 0 | AG17: 31231.81719 | AH17: 0 | AI17: 0 | AJ17: 0 | AK17: 6448.111535 | AL17: 0 | AM17: 0 | AN17: 0 | AO17: 0 | AP17: 0 | AQ17: 0 | AR17: 0 | AS17: 37679.92873
B18: =Prop2021DistTar!B18 -> Small Business - TOU Extended Demand | D18: 0 | E18: 0.166 | F18: 0 | G18: 0 | H18: 0 | I18: 0.112 | J18: 0 | K18: 0 | L18: 0 | M18: 0 | N18: 0 | O18: 0 | P18: 0 | R18: =Prop2021DistTar!AF18 -> 52.37457958 | S18: =Prop2021DistTar!AG18 -> 7861230.03 | T18: =Prop2021DistTar!AH18 -> 0 | U18: =Prop2021DistTar!AI18 -> 0 | V18: =Prop2021DistTar!AJ18 -> 0 | W18: =Prop2021DistTar!AK18 -> 2311605.613 | X18: =Prop2021DistTar!AL18 -> 0 | Y18: =Prop2021DistTar!AM18 -> 0 | Z18: =Prop2021DistTar!AN18 -> 0 | AA18: =Prop2021DistTar!AO18 -> 5262.517165 | AB18: =Prop2021DistTar!AP18 -> 0 | AC18: =Prop2021DistTar!AQ18 -> 0 | AD18: =Prop2021DistTar!AR18 -> 0 | AF18: 0 | AG18: 13049.64185 | AH18: 0 | AI18: 0 | AJ18: 0 | AK18: 2588.998287 | AL18: 0 | AM18: 0 | AN18: 0 | AO18: 0 | AP18: 0 | AQ18: 0 | AR18: 0 | AS18: 15638.64014
B19: =Prop2021DistTar!B19 -> Small Business - Unmetered Supply | D19: 0 | E19: 0.166 | F19: 0 | G19: 0 | H19: 0 | I19: 0.111 | J19: 0 | K19: 0 | L19: 0 | M19: 0 | N19: 0 | O19: 0 | P19: 0 | R19: =Prop2021DistTar!AF19 -> 0 | S19: =Prop2021DistTar!AG19 -> 6906799.943 | T19: =Prop2021DistTar!AH19 -> 0 | U19: =Prop2021DistTar!AI19 -> 0 | V19: =Prop2021DistTar!AJ19 -> 0 | W19: =Prop2021DistTar!AK19 -> 15374842.67 | X19: =Prop2021DistTar!AL19 -> 0 | Y19: =Prop2021DistTar!AM19 -> 0 | Z19: =Prop2021DistTar!AN19 -> 0 | AA19: =Prop2021DistTar!AO19 -> 0 | AB19: =Prop2021DistTar!AP19 -> 0 | AC19: =Prop2021DistTar!AQ19 -> 0 | AD19: =Prop2021DistTar!AR19 -> 0 | AF19: 0 | AG19: 11465.28791 | AH19: 0 | AI19: 0 | AJ19: 0 | AK19: 17066.07536 | AL19: 0 | AM19: 0 | AN19: 0 | AO19: 0 | AP19: 0 | AQ19: 0 | AR19: 0 | AS19: 28531.36327
B20: =Prop2021DistTar!B20 -> Large Business - LV 0.4 - 0.8 GWh | D20: 0 | E20: 0.148 | F20: 0 | G20: 0 | H20: 0 | I20: 0.121 | J20: 0 | K20: 0 | L20: 0 | M20: 0 | N20: 0 | O20: 0 | P20: 0 | R20: =Prop2021DistTar!AF20 -> 388.5597535 | S20: =Prop2021DistTar!AG20 -> 87157927.2 | T20: =Prop2021DistTar!AH20 -> 0 | U20: =Prop2021DistTar!AI20 -> 0 | V20: =Prop2021DistTar!AJ20 -> 0 | W20: =Prop2021DistTar!AK20 -> 55986708.41 | X20: =Prop2021DistTar!AL20 -> 0 | Y20: =Prop2021DistTar!AM20 -> 0 | Z20: =Prop2021DistTar!AN20 -> 0 | AA20: =Prop2021DistTar!AO20 -> 72443.42972 | AB20: =Prop2021DistTar!AP20 -> 0 | AC20: =Prop2021DistTar!AQ20 -> 0 | AD20: =Prop2021DistTar!AR20 -> 0 | AF20: 0 | AG20: 128993.7322 | AH20: 0 | AI20: 0 | AJ20: 0 | AK20: 67743.91718 | AL20: 0 | AM20: 0 | AN20: 0 | AO20: 0 | AP20: 0 | AQ20: 0 | AR20: 0 | AS20: 196737.6494
B21: =Prop2021DistTar!B21 -> Large Business – LVEN Annual Consumption <= 0.8 GWh | D21: 0 | E21: 0.148 | F21: 0 | G21: 0 | H21: 0 | I21: 0.121 | J21: 0 | K21: 0 | L21: 0 | M21: 0 | N21: 0 | O21: 0 | P21: 0 | R21: =Prop2021DistTar!AF21 -> 37.27094958 | S21: =Prop2021DistTar!AG21 -> 8221991.161 | T21: =Prop2021DistTar!AH21 -> 0 | U21: =Prop2021DistTar!AI21 -> 0 | V21: =Prop2021DistTar!AJ21 -> 0 | W21: =Prop2021DistTar!AK21 -> 5679598.85 | X21: =Prop2021DistTar!AL21 -> 0 | Y21: =Prop2021DistTar!AM21 -> 0 | Z21: =Prop2021DistTar!AN21 -> 0 | AA21: =Prop2021DistTar!AO21 -> 8689.771245 | AB21: =Prop2021DistTar!AP21 -> 0 | AC21: =Prop2021DistTar!AQ21 -> 0 | AD21: =Prop2021DistTar!AR21 -> 0 | AF21: 0 | AG21: 12168.54692 | AH21: 0 | AI21: 0 | AJ21: 0 | AK21: 6872.314609 | AL21: 0 | AM21: 0 | AN21: 0 | AO21: 0 | AP21: 0 | AQ21: 0 | AR21: 0 | AS21: 19040.86153
B22: =Prop2021DistTar!B22 -> Large Business - LV 0.8+ - 2.2 GWh | D22: 0 | E22: 0.148 | F22: 0 | G22: 0 | H22: 0 | I22: 0.121 | J22: 0 | K22: 0 | L22: 0 | M22: 0 | N22: 0 | O22: 0 | P22: 0 | R22: =Prop2021DistTar!AF22 -> 194.0865809 | S22: =Prop2021DistTar!AG22 -> 131452092.7 | T22: =Prop2021DistTar!AH22 -> 0 | U22: =Prop2021DistTar!AI22 -> 0 | V22: =Prop2021DistTar!AJ22 -> 0 | W22: =Prop2021DistTar!AK22 -> 90838121.03 | X22: =Prop2021DistTar!AL22 -> 0 | Y22: =Prop2021DistTar!AM22 -> 0 | Z22: =Prop2021DistTar!AN22 -> 0 | AA22: =Prop2021DistTar!AO22 -> 89510.48129 | AB22: =Prop2021DistTar!AP22 -> 0 | AC22: =Prop2021DistTar!AQ22 -> 0 | AD22: =Prop2021DistTar!AR22 -> 0 | AF22: 0 | AG22: 194549.0972 | AH22: 0 | AI22: 0 | AJ22: 0 | AK22: 109914.1264 | AL22: 0 | AM22: 0 | AN22: 0 | AO22: 0 | AP22: 0 | AQ22: 0 | AR22: 0 | AS22: 304463.2236
B23: =Prop2021DistTar!B23 -> Large Business - LVEN 0.8+ - 2.2 GWh | D23: 0 | E23: 0.148 | F23: 0 | G23: 0 | H23: 0 | I23: 0.121 | J23: 0 | K23: 0 | L23: 0 | M23: 0 | N23: 0 | O23: 0 | P23: 0 | R23: =Prop2021DistTar!AF23 -> 20.55964687 | S23: =Prop2021DistTar!AG23 -> 14920570.35 | T23: =Prop2021DistTar!AH23 -> 0 | U23: =Prop2021DistTar!AI23 -> 0 | V23: =Prop2021DistTar!AJ23 -> 0 | W23: =Prop2021DistTar!AK23 -> 9815052.433 | X23: =Prop2021DistTar!AL23 -> 0 | Y23: =Prop2021DistTar!AM23 -> 0 | Z23: =Prop2021DistTar!AN23 -> 0 | AA23: =Prop2021DistTar!AO23 -> 9299.521264 | AB23: =Prop2021DistTar!AP23 -> 0 | AC23: =Prop2021DistTar!AQ23 -> 0 | AD23: =Prop2021DistTar!AR23 -> 0 | AF23: 0 | AG23: 22082.44411 | AH23: 0 | AI23: 0 | AJ23: 0 | AK23: 11876.21344 | AL23: 0 | AM23: 0 | AN23: 0 | AO23: 0 | AP23: 0 | AQ23: 0 | AR23: 0 | AS23: 33958.65756
B24: =Prop2021DistTar!B24 -> Large Business - LV 2.2+ - 6.0 GWh | D24: 0 | E24: 0.148 | F24: 0 | G24: 0 | H24: 0 | I24: 0.121 | J24: 0 | K24: 0 | L24: 0 | M24: 0 | N24: 0 | O24: 0 | P24: 0 | R24: =Prop2021DistTar!AF24 -> 37.25337723 | S24: =Prop2021DistTar!AG24 -> 60763995.95 | T24: =Prop2021DistTar!AH24 -> 0 | U24: =Prop2021DistTar!AI24 -> 0 | V24: =Prop2021DistTar!AJ24 -> 0 | W24: =Prop2021DistTar!AK24 -> 45943073.61 | X24: =Prop2021DistTar!AL24 -> 0 | Y24: =Prop2021DistTar!AM24 -> 0 | Z24: =Prop2021DistTar!AN24 -> 0 | AA24: =Prop2021DistTar!AO24 -> 35969.74389 | AB24: =Prop2021DistTar!AP24 -> 0 | AC24: =Prop2021DistTar!AQ24 -> 0 | AD24: =Prop2021DistTar!AR24 -> 0 | AF24: 0 | AG24: 89930.71401 | AH24: 0 | AI24: 0 | AJ24: 0 | AK24: 55591.11907 | AL24: 0 | AM24: 0 | AN24: 0 | AO24: 0 | AP24: 0 | AQ24: 0 | AR24: 0 | AS24: 145521.8331
B25: =Prop2021DistTar!B25 -> Large Business - LVEN 2.2+ GWh | D25: 0 | E25: 0.148 | F25: 0 | G25: 0 | H25: 0 | I25: 0.121 | J25: 0 | K25: 0 | L25: 0 | M25: 0 | N25: 0 | O25: 0 | P25: 0 | R25: =Prop2021DistTar!AF25 -> 8.417154573 | S25: =Prop2021DistTar!AG25 -> 10324851.16 | T25: =Prop2021DistTar!AH25 -> 0 | U25: =Prop2021DistTar!AI25 -> 0 | V25: =Prop2021DistTar!AJ25 -> 0 | W25: =Prop2021DistTar!AK25 -> 7433408.886 | X25: =Prop2021DistTar!AL25 -> 0 | Y25: =Prop2021DistTar!AM25 -> 0 | Z25: =Prop2021DistTar!AN25 -> 0 | AA25: =Prop2021DistTar!AO25 -> 7906.606048 | AB25: =Prop2021DistTar!AP25 -> 0 | AC25: =Prop2021DistTar!AQ25 -> 0 | AD25: =Prop2021DistTar!AR25 -> 0 | AF25: 0 | AG25: 15280.77972 | AH25: 0 | AI25: 0 | AJ25: 0 | AK25: 8994.424753 | AL25: 0 | AM25: 0 | AN25: 0 | AO25: 0 | AP25: 0 | AQ25: 0 | AR25: 0 | AS25: 24275.20447
B26: =Prop2021DistTar!B26 -> Large Business - LVMS 2.2+ - 6.0 GWh | D26: 0 | E26: 0.148 | F26: 0 | G26: 0 | H26: 0 | I26: 0.121 | J26: 0 | K26: 0 | L26: 0 | M26: 0 | N26: 0 | O26: 0 | P26: 0 | R26: =Prop2021DistTar!AF26 -> 5.29401655 | S26: =Prop2021DistTar!AG26 -> 5811372.069 | T26: =Prop2021DistTar!AH26 -> 0 | U26: =Prop2021DistTar!AI26 -> 0 | V26: =Prop2021DistTar!AJ26 -> 0 | W26: =Prop2021DistTar!AK26 -> 4687995.706 | X26: =Prop2021DistTar!AL26 -> 0 | Y26: =Prop2021DistTar!AM26 -> 0 | Z26: =Prop2021DistTar!AN26 -> 0 | AA26: =Prop2021DistTar!AO26 -> 3940.796569 | AB26: =Prop2021DistTar!AP26 -> 0 | AC26: =Prop2021DistTar!AQ26 -> 0 | AD26: =Prop2021DistTar!AR26 -> 0 | AF26: 0 | AG26: 8600.830663 | AH26: 0 | AI26: 0 | AJ26: 0 | AK26: 5672.474804 | AL26: 0 | AM26: 0 | AN26: 0 | AO26: 0 | AP26: 0 | AQ26: 0 | AR26: 0 | AS26: 14273.30547
B27: =Prop2021DistTar!B27 -> Large Business - LV 6.0+ GWh | D27: 0 | E27: 0.148 | F27: 0 | G27: 0 | H27: 0 | I27: 0.121 | J27: 0 | K27: 0 | L27: 0 | M27: 0 | N27: 0 | O27: 0 | P27: 0 | R27: =Prop2021DistTar!AF27 -> 11.31659195 | S27: =Prop2021DistTar!AG27 -> 25847888.3 | T27: =Prop2021DistTar!AH27 -> 0 | U27: =Prop2021DistTar!AI27 -> 0 | V27: =Prop2021DistTar!AJ27 -> 0 | W27: =Prop2021DistTar!AK27 -> 21661553.61 | X27: =Prop2021DistTar!AL27 -> 0 | Y27: =Prop2021DistTar!AM27 -> 0 | Z27: =Prop2021DistTar!AN27 -> 0 | AA27: =Prop2021DistTar!AO27 -> 13828.37315 | AB27: =Prop2021DistTar!AP27 -> 0 | AC27: =Prop2021DistTar!AQ27 -> 0 | AD27: =Prop2021DistTar!AR27 -> 0 | AF27: 0 | AG27: 38254.87469 | AH27: 0 | AI27: 0 | AJ27: 0 | AK27: 26210.47986 | AL27: 0 | AM27: 0 | AN27: 0 | AO27: 0 | AP27: 0 | AQ27: 0 | AR27: 0 | AS27: 64465.35455
B28: =Prop2021DistTar!B28 -> Large Business - LVMS 6.0+ GWh | D28: 0 | E28: 0.148 | F28: 0 | G28: 0 | H28: 0 | I28: 0.121 | J28: 0 | K28: 0 | L28: 0 | M28: 0 | N28: 0 | O28: 0 | P28: 0 | R28: =Prop2021DistTar!AF28 -> 14.43822695 | S28: =Prop2021DistTar!AG28 -> 26286303.39 | T28: =Prop2021DistTar!AH28 -> 0 | U28: =Prop2021DistTar!AI28 -> 0 | V28: =Prop2021DistTar!AJ28 -> 0 | W28: =Prop2021DistTar!AK28 -> 20462464.55 | X28: =Prop2021DistTar!AL28 -> 0 | Y28: =Prop2021DistTar!AM28 -> 0 | Z28: =Prop2021DistTar!AN28 -> 0 | AA28: =Prop2021DistTar!AO28 -> 14512.00271 | AB28: =Prop2021DistTar!AP28 -> 0 | AC28: =Prop2021DistTar!AQ28 -> 0 | AD28: =Prop2021DistTar!AR28 -> 0 | AF28: 0 | AG28: 38903.72901 | AH28: 0 | AI28: 0 | AJ28: 0 | AK28: 24759.5821 | AL28: 0 | AM28: 0 | AN28: 0 | AO28: 0 | AP28: 0 | AQ28: 0 | AR28: 0 | AS28: 63663.31111
B29: =Prop2021DistTar!B29 -> Large Business - HV | D29: 0 | E29: 0.156 | F29: 0 | G29: 0 | H29: 0 | I29: 0.132 | J29: 0 | K29: 0 | L29: 0 | M29: 0 | N29: 0 | O29: 0 | P29: 0 | R29: =Prop2021DistTar!AF29 -> 44.37266667 | S29: =Prop2021DistTar!AG29 -> 123977469.7 | T29: =Prop2021DistTar!AH29 -> 0 | U29: =Prop2021DistTar!AI29 -> 0 | V29: =Prop2021DistTar!AJ29 -> 0 | W29: =Prop2021DistTar!AK29 -> 98362237.17 | X29: =Prop2021DistTar!AL29 -> 0 | Y29: =Prop2021DistTar!AM29 -> 0 | Z29: =Prop2021DistTar!AN29 -> 0 | AA29: =Prop2021DistTar!AO29 -> 92928.2636 | AB29: =Prop2021DistTar!AP29 -> 0 | AC29: =Prop2021DistTar!AQ29 -> 0 | AD29: =Prop2021DistTar!AR29 -> 0 | AF29: 0 | AG29: 193404.8528 | AH29: 0 | AI29: 0 | AJ29: 0 | AK29: 129838.1531 | AL29: 0 | AM29: 0 | AN29: 0 | AO29: 0 | AP29: 0 | AQ29: 0 | AR29: 0 | AS29: 323243.0059
B30: =Prop2021DistTar!B30 -> Large Business – HVEN | D30: 0 | E30: 0.156 | F30: 0 | G30: 0 | H30: 0 | I30: 0.132 | J30: 0 | K30: 0 | L30: 0 | M30: 0 | N30: 0 | O30: 0 | P30: 0 | R30: =Prop2021DistTar!AF30 -> 1 | T30: =Prop2021DistTar!AH30 -> 0 | U30: =Prop2021DistTar!AI30 -> 0 | V30: =Prop2021DistTar!AJ30 -> 0 | X30: =Prop2021DistTar!AL30 -> 0 | Y30: =Prop2021DistTar!AM30 -> 0 | Z30: =Prop2021DistTar!AN30 -> 0 | AB30: =Prop2021DistTar!AP30 -> 0 | AC30: =Prop2021DistTar!AQ30 -> 0 | AD30: =Prop2021DistTar!AR30 -> 0 | AF30: 0 | AH30: 0 | AI30: 0 | AJ30: 0 | AL30: 0 | AM30: 0 | AN30: 0 | AO30: 0 | AP30: 0 | AQ30: 0 | AR30: 0
B31: =Prop2021DistTar!B31 -> Large Business - HVRF | D31: 0 | E31: 0.156 | F31: 0 | G31: 0 | H31: 0 | I31: 0.132 | J31: 0 | K31: 0 | L31: 0 | M31: 0 | N31: 0 | O31: 0 | P31: 0 | R31: =Prop2021DistTar!AF31 -> 0.9833333333 | T31: =Prop2021DistTar!AH31 -> 0 | U31: =Prop2021DistTar!AI31 -> 0 | V31: =Prop2021DistTar!AJ31 -> 0 | X31: =Prop2021DistTar!AL31 -> 0 | Y31: =Prop2021DistTar!AM31 -> 0 | Z31: =Prop2021DistTar!AN31 -> 0 | AB31: =Prop2021DistTar!AP31 -> 0 | AC31: =Prop2021DistTar!AQ31 -> 0 | AD31: =Prop2021DistTar!AR31 -> 0 | AF31: 0 | AH31: 0 | AI31: 0 | AJ31: 0 | AL31: 0 | AM31: 0 | AN31: 0 | AO31: 0 | AP31: 0 | AQ31: 0 | AR31: 0
B32: =Prop2021DistTar!B32 -> Large Business - HV Ann Cons >= 55GWh | D32: 0 | E32: 0.156 | F32: 0 | G32: 0 | H32: 0 | I32: 0.132 | J32: 0 | K32: 0 | L32: 0 | M32: 0 | N32: 0 | O32: 0 | P32: 0 | R32: =Prop2021DistTar!AF32 -> 0.5 | T32: =Prop2021DistTar!AH32 -> 0 | U32: =Prop2021DistTar!AI32 -> 0 | V32: =Prop2021DistTar!AJ32 -> 0 | X32: =Prop2021DistTar!AL32 -> 0 | Y32: =Prop2021DistTar!AM32 -> 0 | Z32: =Prop2021DistTar!AN32 -> 0 | AB32: =Prop2021DistTar!AP32 -> 0 | AC32: =Prop2021DistTar!AQ32 -> 0 | AD32: =Prop2021DistTar!AR32 -> 0 | AF32: 0 | AH32: 0 | AI32: 0 | AJ32: 0 | AL32: 0 | AM32: 0 | AN32: 0 | AO32: 0 | AP32: 0 | AQ32: 0 | AR32: 0
B33: =Prop2021DistTar!B33 -> Large Business - Subtransmission | D33: 0 | E33: 0.133 | F33: 0 | G33: 0 | H33: 0 | I33: 0.112 | J33: 0 | K33: 0 | L33: 0 | M33: 0 | N33: 0 | O33: 0 | P33: 0 | R33: =Prop2021DistTar!AF33 -> 1.5 | T33: =Prop2021DistTar!AH33 -> 0 | U33: =Prop2021DistTar!AI33 -> 0 | V33: =Prop2021DistTar!AJ33 -> 0 | X33: =Prop2021DistTar!AL33 -> 0 | Y33: =Prop2021DistTar!AM33 -> 0 | Z33: =Prop2021DistTar!AN33 -> 0 | AB33: =Prop2021DistTar!AP33 -> 0 | AC33: =Prop2021DistTar!AQ33 -> 0 | AD33: =Prop2021DistTar!AR33 -> 0 | AF33: =D33*R33 -> 0 | AH33: =F33/100*T33 -> 0 | AI33: 0 | AJ33: 0 | AL33: 0 | AM33: 0 | AN33: 0 | AO33: =M33*AA33 -> 0 | AP33: =N33*AB33 -> 0 | AQ33: =O33*AC33 -> 0 | AR33: =P33*AD33 -> 0
B34: =Prop2021DistTar!B34 -> Large Business - Subtransmission MA | D34: 0 | E34: 0.133 | F34: 0 | G34: 0 | H34: 0 | I34: 0.112 | J34: 0 | K34: 0 | L34: 0 | M34: 0 | N34: 0 | O34: 0 | P34: 0 | R34: =Prop2021DistTar!AF34 -> 0.5 | T34: =Prop2021DistTar!AH34 -> 0 | U34: =Prop2021DistTar!AI34 -> 0 | V34: =Prop2021DistTar!AJ34 -> 0 | X34: =Prop2021DistTar!AL34 -> 0 | Y34: =Prop2021DistTar!AM34 -> 0 | Z34: =Prop2021DistTar!AN34 -> 0 | AB34: =Prop2021DistTar!AP34 -> 0 | AC34: =Prop2021DistTar!AQ34 -> 0 | AD34: =Prop2021DistTar!AR34 -> 0 | AF34: 0 | AH34: 0 | AI34: 0 | AJ34: 0 | AL34: 0 | AM34: 0 | AN34: 0 | AO34: 0 | AP34: 0 | AQ34: 0 | AR34: 0
B35: =Prop2021DistTar!B35 -> Large Business - Subtransmission EG | D35: 0 | E35: 0.133 | F35: 0 | G35: 0 | H35: 0 | I35: 0.112 | J35: 0 | K35: 0 | L35: 0 | M35: 0 | N35: 0 | O35: 0 | P35: 0 | R35: =Prop2021DistTar!AF35 -> 0.5 | T35: =Prop2021DistTar!AH35 -> 0 | U35: =Prop2021DistTar!AI35 -> 0 | V35: =Prop2021DistTar!AJ35 -> 0 | X35: =Prop2021DistTar!AL35 -> 0 | Y35: =Prop2021DistTar!AM35 -> 0 | Z35: =Prop2021DistTar!AN35 -> 0 | AB35: =Prop2021DistTar!AP35 -> 0 | AC35: =Prop2021DistTar!AQ35 -> 0 | AD35: =Prop2021DistTar!AR35 -> 0 | AF35: =D35*R35 -> 0 | AH35: =F35/100*T35 -> 0 | AI35: =G35/100*U35 -> 0 | AJ35: =H35/100*V35 -> 0 | AL35: =J35/100*X35 -> 0 | AM35: =K35/100*Y35 -> 0 | AN35: =L35/100*Z35 -> 0 | AO35: =M35*AA35 -> 0 | AP35: =N35*AB35 -> 0 | AQ35: =O35*AC35 -> 0 | AR35: =P35*AD35 -> 0
R36: =Prop2021DistTar!AF36 -> 0 | S36: =Prop2021DistTar!AG36 -> 0 | T36: =Prop2021DistTar!AH36 -> 0 | U36: =Prop2021DistTar!AI36 -> 0 | V36: =Prop2021DistTar!AJ36 -> 0 | W36: =Prop2021DistTar!AK36 -> 0 | X36: =Prop2021DistTar!AL36 -> 0 | Y36: =Prop2021DistTar!AM36 -> 0 | Z36: =Prop2021DistTar!AN36 -> 0 | AA36: =Prop2021DistTar!AO36 -> 0 | AB36: =Prop2021DistTar!AP36 -> 0 | AC36: =Prop2021DistTar!AQ36 -> 0 | AD36: =Prop2021DistTar!AR36 -> 0 | AF36: 0 | AG36: 0 | AH36: 0 | AI36: 0 | AJ36: 0 | AK36: 0 | AL36: 0 | AM36: 0 | AN36: 0 | AO36: 0 | AP36: 0 | AQ36: 0 | AR36: 0 | AS36: 0
R37: =Prop2021DistTar!AF37 -> 0 | S37: =Prop2021DistTar!AG37 -> 0 | T37: =Prop2021DistTar!AH37 -> 0 | U37: =Prop2021DistTar!AI37 -> 0 | V37: =Prop2021DistTar!AJ37 -> 0 | W37: =Prop2021DistTar!AK37 -> 0 | X37: =Prop2021DistTar!AL37 -> 0 | Y37: =Prop2021DistTar!AM37 -> 0 | Z37: =Prop2021DistTar!AN37 -> 0 | AA37: =Prop2021DistTar!AO37 -> 0 | AB37: =Prop2021DistTar!AP37 -> 0 | AC37: =Prop2021DistTar!AQ37 -> 0 | AD37: =Prop2021DistTar!AR37 -> 0 | AF37: 0 | AG37: 0 | AH37: 0 | AI37: 0 | AJ37: 0 | AK37: 0 | AL37: 0 | AM37: 0 | AN37: 0 | AO37: 0 | AP37: 0 | AQ37: 0 | AR37: 0 | AS37: 0
R38: =Prop2021DistTar!AF38 -> 0 | S38: =Prop2021DistTar!AG38 -> 0 | T38: =Prop2021DistTar!AH38 -> 0 | U38: =Prop2021DistTar!AI38 -> 0 | V38: =Prop2021DistTar!AJ38 -> 0 | W38: =Prop2021DistTar!AK38 -> 0 | X38: =Prop2021DistTar!AL38 -> 0 | Y38: =Prop2021DistTar!AM38 -> 0 | Z38: =Prop2021DistTar!AN38 -> 0 | AA38: =Prop2021DistTar!AO38 -> 0 | AB38: =Prop2021DistTar!AP38 -> 0 | AC38: =Prop2021DistTar!AQ38 -> 0 | AD38: =Prop2021DistTar!AR38 -> 0 | AF38: 0 | AG38: 0 | AH38: 0 | AI38: 0 | AJ38: 0 | AK38: 0 | AL38: 0 | AM38: 0 | AN38: =L38/100*Z38 -> 0 | AO38: 0 | AP38: 0 | AQ38: 0 | AR38: 0 | AS38: 0
R39: =Prop2021DistTar!AF39 -> 0 | S39: =Prop2021DistTar!AG39 -> 0 | T39: =Prop2021DistTar!AH39 -> 0 | U39: =Prop2021DistTar!AI39 -> 0 | V39: =Prop2021DistTar!AJ39 -> 0 | W39: =Prop2021DistTar!AK39 -> 0 | X39: =Prop2021DistTar!AL39 -> 0 | Y39: =Prop2021DistTar!AM39 -> 0 | Z39: =Prop2021DistTar!AN39 -> 0 | AA39: =Prop2021DistTar!AO39 -> 0 | AB39: =Prop2021DistTar!AP39 -> 0 | AC39: =Prop2021DistTar!AQ39 -> 0 | AD39: =Prop2021DistTar!AR39 -> 0 | AF39: 0 | AG39: 0 | AH39: 0 | AI39: 0 | AJ39: 0 | AK39: 0 | AL39: 0 | AM39: 0 | AN39: 0 | AO39: 0 | AP39: 0 | AQ39: 0 | AR39: 0 | AS39: 0
R40: =Prop2021DistTar!AF40 -> 0 | S40: =Prop2021DistTar!AG40 -> 0 | T40: =Prop2021DistTar!AH40 -> 0 | U40: =Prop2021DistTar!AI40 -> 0 | V40: =Prop2021DistTar!AJ40 -> 0 | W40: =Prop2021DistTar!AK40 -> 0 | X40: =Prop2021DistTar!AL40 -> 0 | Y40: =Prop2021DistTar!AM40 -> 0 | Z40: =Prop2021DistTar!AN40 -> 0 | AA40: =Prop2021DistTar!AO40 -> 0 | AB40: =Prop2021DistTar!AP40 -> 0 | AC40: =Prop2021DistTar!AQ40 -> 0 | AD40: =Prop2021DistTar!AR40 -> 0 | AF40: 0 | AG40: 0 | AH40: 0 | AI40: 0 | AJ40: 0 | AK40: 0 | AL40: 0 | AM40: 0 | AN40: 0 | AO40: 0 | AP40: 0 | AQ40: 0 | AR40: 0 | AS40: 0
R41: =Prop2021DistTar!AF41 -> 0 | S41: =Prop2021DistTar!AG41 -> 0 | T41: =Prop2021DistTar!AH41 -> 0 | U41: =Prop2021DistTar!AI41 -> 0 | V41: =Prop2021DistTar!AJ41 -> 0 | W41: =Prop2021DistTar!AK41 -> 0 | X41: =Prop2021DistTar!AL41 -> 0 | Y41: =Prop2021DistTar!AM41 -> 0 | Z41: =Prop2021DistTar!AN41 -> 0 | AA41: =Prop2021DistTar!AO41 -> 0 | AB41: =Prop2021DistTar!AP41 -> 0 | AC41: =Prop2021DistTar!AQ41 -> 0 | AD41: =Prop2021DistTar!AR41 -> 0 | AF41: 0 | AG41: 0 | AH41: 0 | AI41: 0 | AJ41: 0 | AK41: 0 | AL41: 0 | AM41: 0 | AN41: 0 | AO41: 0 | AP41: 0 | AQ41: 0 | AR41: 0 | AS41: 0
R42: =Prop2021DistTar!AF42 -> 0 | S42: =Prop2021DistTar!AG42 -> 0 | T42: =Prop2021DistTar!AH42 -> 0 | U42: =Prop2021DistTar!AI42 -> 0 | V42: =Prop2021DistTar!AJ42 -> 0 | W42: =Prop2021DistTar!AK42 -> 0 | X42: =Prop2021DistTar!AL42 -> 0 | Y42: =Prop2021DistTar!AM42 -> 0 | Z42: =Prop2021DistTar!AN42 -> 0 | AA42: =Prop2021DistTar!AO42 -> 0 | AB42: =Prop2021DistTar!AP42 -> 0 | AC42: =Prop2021DistTar!AQ42 -> 0 | AD42: =Prop2021DistTar!AR42 -> 0 | AF42: 0 | AG42: 0 | AH42: 0 | AI42: 0 | AJ42: 0 | AK42: 0 | AL42: 0 | AM42: 0 | AN42: 0 | AO42: 0 | AP42: 0 | AQ42: 0 | AR42: 0 | AS42: 0
R43: =Prop2021DistTar!AF43 -> 0 | S43: =Prop2021DistTar!AG43 -> 0 | T43: =Prop2021DistTar!AH43 -> 0 | U43: =Prop2021DistTar!AI43 -> 0 | V43: =Prop2021DistTar!AJ43 -> 0 | W43: =Prop2021DistTar!AK43 -> 0 | X43: =Prop2021DistTar!AL43 -> 0 | Y43: =Prop2021DistTar!AM43 -> 0 | Z43: =Prop2021DistTar!AN43 -> 0 | AA43: =Prop2021DistTar!AO43 -> 0 | AB43: =Prop2021DistTar!AP43 -> 0 | AC43: =Prop2021DistTar!AQ43 -> 0 | AD43: =Prop2021DistTar!AR43 -> 0 | AF43: 0 | AG43: 0 | AH43: 0 | AI43: 0 | AJ43: 0 | AK43: 0 | AL43: 0 | AM43: 0 | AN43: 0 | AO43: 0 | AP43: 0 | AQ43: 0 | AR43: 0 | AS43: 0
R44: =Prop2021DistTar!AF44 -> 0 | S44: =Prop2021DistTar!AG44 -> 0 | T44: =Prop2021DistTar!AH44 -> 0 | U44: =Prop2021DistTar!AI44 -> 0 | V44: =Prop2021DistTar!AJ44 -> 0 | W44: =Prop2021DistTar!AK44 -> 0 | X44: =Prop2021DistTar!AL44 -> 0 | Y44: =Prop2021DistTar!AM44 -> 0 | Z44: =Prop2021DistTar!AN44 -> 0 | AA44: =Prop2021DistTar!AO44 -> 0 | AB44: =Prop2021DistTar!AP44 -> 0 | AC44: =Prop2021DistTar!AQ44 -> 0 | AD44: =Prop2021DistTar!AR44 -> 0 | AF44: 0 | AG44: 0 | AH44: 0 | AI44: 0 | AJ44: 0 | AK44: 0 | AL44: 0 | AM44: 0 | AN44: 0 | AO44: 0 | AP44: 0 | AQ44: 0 | AR44: 0 | AS44: 0
R45: =Prop2021DistTar!AF45 -> 0 | S45: =Prop2021DistTar!AG45 -> 0 | T45: =Prop2021DistTar!AH45 -> 0 | U45: =Prop2021DistTar!AI45 -> 0 | V45: =Prop2021DistTar!AJ45 -> 0 | W45: =Prop2021DistTar!AK45 -> 0 | X45: =Prop2021DistTar!AL45 -> 0 | Y45: =Prop2021DistTar!AM45 -> 0 | Z45: =Prop2021DistTar!AN45 -> 0 | AA45: =Prop2021DistTar!AO45 -> 0 | AB45: =Prop2021DistTar!AP45 -> 0 | AC45: =Prop2021DistTar!AQ45 -> 0 | AD45: =Prop2021DistTar!AR45 -> 0 | AF45: 0 | AG45: 0 | AH45: 0 | AI45: 0 | AJ45: 0 | AK45: 0 | AL45: 0 | AM45: 0 | AN45: 0 | AO45: 0 | AP45: 0 | AQ45: 0 | AR45: 0 | AS45: 0
R46: =Prop2021DistTar!AF46 -> 0 | S46: =Prop2021DistTar!AG46 -> 0 | T46: =Prop2021DistTar!AH46 -> 0 | U46: =Prop2021DistTar!AI46 -> 0 | V46: =Prop2021DistTar!AJ46 -> 0 | W46: =Prop2021DistTar!AK46 -> 0 | X46: =Prop2021DistTar!AL46 -> 0 | Y46: =Prop2021DistTar!AM46 -> 0 | Z46: =Prop2021DistTar!AN46 -> 0 | AA46: =Prop2021DistTar!AO46 -> 0 | AB46: =Prop2021DistTar!AP46 -> 0 | AC46: =Prop2021DistTar!AQ46 -> 0 | AD46: =Prop2021DistTar!AR46 -> 0 | AF46: 0 | AG46: 0 | AH46: 0 | AI46: 0 | AJ46: 0 | AK46: 0 | AL46: 0 | AM46: 0 | AN46: 0 | AO46: 0 | AP46: 0 | AQ46: 0 | AR46: 0 | AS46: 0
R47: =Prop2021DistTar!AF47 -> 0 | S47: =Prop2021DistTar!AG47 -> 0 | T47: =Prop2021DistTar!AH47 -> 0 | U47: =Prop2021DistTar!AI47 -> 0 | V47: =Prop2021DistTar!AJ47 -> 0 | W47: =Prop2021DistTar!AK47 -> 0 | X47: =Prop2021DistTar!AL47 -> 0 | Y47: =Prop2021DistTar!AM47 -> 0 | Z47: =Prop2021DistTar!AN47 -> 0 | AA47: =Prop2021DistTar!AO47 -> 0 | AB47: =Prop2021DistTar!AP47 -> 0 | AC47: =Prop2021DistTar!AQ47 -> 0 | AD47: =Prop2021DistTar!AR47 -> 0 | AF47: 0 | AG47: 0 | AH47: 0 | AI47: 0 | AJ47: 0 | AK47: 0 | AL47: 0 | AM47: 0 | AN47: 0 | AO47: 0 | AP47: 0 | AQ47: 0 | AR47: 0 | AS47: 0
R48: =Prop2021DistTar!AF48 -> 0 | S48: =Prop2021DistTar!AG48 -> 0 | T48: =Prop2021DistTar!AH48 -> 0 | U48: =Prop2021DistTar!AI48 -> 0 | V48: =Prop2021DistTar!AJ48 -> 0 | W48: =Prop2021DistTar!AK48 -> 0 | X48: =Prop2021DistTar!AL48 -> 0 | Y48: =Prop2021DistTar!AM48 -> 0 | Z48: =Prop2021DistTar!AN48 -> 0 | AA48: =Prop2021DistTar!AO48 -> 0 | AB48: =Prop2021DistTar!AP48 -> 0 | AC48: =Prop2021DistTar!AQ48 -> 0 | AD48: =Prop2021DistTar!AR48 -> 0 | AF48: 0 | AG48: 0 | AH48: 0 | AI48: 0 | AJ48: 0 | AK48: 0 | AL48: 0 | AM48: 0 | AN48: 0 | AO48: 0 | AP48: 0 | AQ48: 0 | AR48: 0 | AS48: 0
R49: =Prop2021DistTar!AF49 -> 0 | S49: =Prop2021DistTar!AG49 -> 0 | T49: =Prop2021DistTar!AH49 -> 0 | U49: =Prop2021DistTar!AI49 -> 0 | V49: =Prop2021DistTar!AJ49 -> 0 | W49: =Prop2021DistTar!AK49 -> 0 | X49: =Prop2021DistTar!AL49 -> 0 | Y49: =Prop2021DistTar!AM49 -> 0 | Z49: =Prop2021DistTar!AN49 -> 0 | AA49: =Prop2021DistTar!AO49 -> 0 | AB49: =Prop2021DistTar!AP49 -> 0 | AC49: =Prop2021DistTar!AQ49 -> 0 | AD49: =Prop2021DistTar!AR49 -> 0 | AF49: 0 | AG49: 0 | AH49: 0 | AI49: 0 | AJ49: 0 | AK49: 0 | AL49: 0 | AM49: 0 | AN49: 0 | AO49: 0 | AP49: 0 | AQ49: 0 | AR49: 0 | AS49: 0
R50: =Prop2021DistTar!AF50 -> 0 | S50: =Prop2021DistTar!AG50 -> 0 | T50: =Prop2021DistTar!AH50 -> 0 | U50: =Prop2021DistTar!AI50 -> 0 | V50: =Prop2021DistTar!AJ50 -> 0 | W50: =Prop2021DistTar!AK50 -> 0 | X50: =Prop2021DistTar!AL50 -> 0 | Y50: =Prop2021DistTar!AM50 -> 0 | Z50: =Prop2021DistTar!AN50 -> 0 | AA50: =Prop2021DistTar!AO50 -> 0 | AB50: =Prop2021DistTar!AP50 -> 0 | AC50: =Prop2021DistTar!AQ50 -> 0 | AD50: =Prop2021DistTar!AR50 -> 0 | AF50: 0 | AG50: 0 | AH50: 0 | AI50: 0 | AJ50: 0 | AK50: 0 | AL50: 0 | AM50: 0 | AN50: 0 | AO50: 0 | AP50: 0 | AQ50: 0 | AR50: 0 | AS50: 0
R51: =Prop2021DistTar!AF51 -> 0 | S51: =Prop2021DistTar!AG51 -> 0 | T51: =Prop2021DistTar!AH51 -> 0 | U51: =Prop2021DistTar!AI51 -> 0 | V51: =Prop2021DistTar!AJ51 -> 0 | W51: =Prop2021DistTar!AK51 -> 0 | X51: =Prop2021DistTar!AL51 -> 0 | Y51: =Prop2021DistTar!AM51 -> 0 | Z51: =Prop2021DistTar!AN51 -> 0 | AA51: =Prop2021DistTar!AO51 -> 0 | AB51: =Prop2021DistTar!AP51 -> 0 | AC51: =Prop2021DistTar!AQ51 -> 0 | AD51: =Prop2021DistTar!AR51 -> 0 | AF51: 0 | AG51: 0 | AH51: 0 | AI51: 0 | AJ51: 0 | AK51: 0 | AL51: 0 | AM51: 0 | AN51: 0 | AO51: 0 | AP51: 0 | AQ51: 0 | AR51: 0 | AS51: 0
R52: =Prop2021DistTar!AF52 -> 0 | S52: =Prop2021DistTar!AG52 -> 0 | T52: =Prop2021DistTar!AH52 -> 0 | U52: =Prop2021DistTar!AI52 -> 0 | V52: =Prop2021DistTar!AJ52 -> 0 | W52: =Prop2021DistTar!AK52 -> 0 | X52: =Prop2021DistTar!AL52 -> 0 | Y52: =Prop2021DistTar!AM52 -> 0 | Z52: =Prop2021DistTar!AN52 -> 0 | AA52: =Prop2021DistTar!AO52 -> 0 | AB52: =Prop2021DistTar!AP52 -> 0 | AC52: =Prop2021DistTar!AQ52 -> 0 | AD52: =Prop2021DistTar!AR52 -> 0 | AF52: 0 | AG52: 0 | AH52: 0 | AI52: 0 | AJ52: 0 | AK52: 0 | AL52: 0 | AM52: 0 | AN52: 0 | AO52: 0 | AP52: 0 | AQ52: 0 | AR52: 0 | AS52: 0
R53: =Prop2021DistTar!AF53 -> 0 | S53: =Prop2021DistTar!AG53 -> 0 | T53: =Prop2021DistTar!AH53 -> 0 | U53: =Prop2021DistTar!AI53 -> 0 | V53: =Prop2021DistTar!AJ53 -> 0 | W53: =Prop2021DistTar!AK53 -> 0 | X53: =Prop2021DistTar!AL53 -> 0 | Y53: =Prop2021DistTar!AM53 -> 0 | Z53: =Prop2021DistTar!AN53 -> 0 | AA53: =Prop2021DistTar!AO53 -> 0 | AB53: =Prop2021DistTar!AP53 -> 0 | AC53: =Prop2021DistTar!AQ53 -> 0 | AD53: =Prop2021DistTar!AR53 -> 0 | AF53: 0 | AG53: 0 | AH53: 0 | AI53: 0 | AJ53: 0 | AK53: 0 | AL53: 0 | AM53: 0 | AN53: 0 | AO53: 0 | AP53: 0 | AQ53: 0 | AR53: 0 | AS53: 0
R54: =Prop2021DistTar!AF54 -> 0 | S54: =Prop2021DistTar!AG54 -> 0 | T54: =Prop2021DistTar!AH54 -> 0 | U54: =Prop2021DistTar!AI54 -> 0 | V54: =Prop2021DistTar!AJ54 -> 0 | W54: =Prop2021DistTar!AK54 -> 0 | X54: =Prop2021DistTar!AL54 -> 0 | Y54: =Prop2021DistTar!AM54 -> 0 | Z54: =Prop2021DistTar!AN54 -> 0 | AA54: =Prop2021DistTar!AO54 -> 0 | AB54: =Prop2021DistTar!AP54 -> 0 | AC54: =Prop2021DistTar!AQ54 -> 0 | AD54: =Prop2021DistTar!AR54 -> 0 | AF54: 0 | AG54: 0 | AH54: 0 | AI54: 0 | AJ54: 0 | AK54: 0 | AL54: 0 | AM54: 0 | AN54: 0 | AO54: 0 | AP54: 0 | AQ54: 0 | AR54: 0 | AS54: 0
AF55: 0 | AG55: 0 | AH55: 0 | AI55: 0 | AJ55: 0 | AK55: 0 | AL55: 0 | AM55: 0 | AN55: 0 | AO55: 0 | AP55: 0 | AQ55: 0 | AR55: 0 | AS55: 0
AF56: 0 | AG56: 0 | AH56: 0 | AI56: 0 | AJ56: 0 | AK56: 0 | AL56: 0 | AM56: 0 | AN56: 0 | AO56: 0 | AP56: 0 | AQ56: 0 | AR56: 0 | AS56: 0
AF57: 0 | AG57: 0 | AH57: 0 | AI57: 0 | AJ57: 0 | AK57: 0 | AL57: 0 | AM57: 0 | AN57: 0 | AO57: 0 | AP57: 0 | AQ57: 0 | AR57: 0 | AS57: 0
AF58: 0 | AG58: 0 | AH58: 0 | AI58: 0 | AJ58: 0 | AK58: 0 | AL58: 0 | AM58: 0 | AN58: 0 | AO58: 0 | AP58: 0 | AQ58: 0 | AR58: 0 | AS58: 0
AF59: 0 | AG59: 0 | AH59: 0 | AI59: 0 | AJ59: 0 | AK59: 0 | AL59: 0 | AM59: 0 | AN59: 0 | AO59: 0 | AP59: 0 | AQ59: 0 | AR59: 0 | AS59: 0
AF60: 0 | AG60: 0 | AH60: 0 | AI60: 0 | AJ60: 0 | AK60: 0 | AL60: 0 | AM60: 0 | AN60: 0 | AO60: 0 | AP60: 0 | AQ60: 0 | AR60: 0 | AS60: 0
AF61: 0 | AG61: 0 | AH61: 0 | AI61: 0 | AJ61: 0 | AK61: 0 | AL61: 0 | AM61: 0 | AN61: 0 | AO61: 0 | AP61: 0 | AQ61: 0 | AR61: 0 | AS61: 0
AF62: 0 | AG62: 0 | AH62: 0 | AI62: 0 | AJ62: 0 | AK62: 0 | AL62: 0 | AM62: 0 | AN62: 0 | AO62: 0 | AP62: 0 | AQ62: 0 | AR62: 0 | AS62: 0
AF63: 0 | AG63: 0 | AH63: 0 | AI63: 0 | AJ63: 0 | AK63: 0 | AL63: 0 | AM63: 0 | AN63: 0 | AO63: 0 | AP63: 0 | AQ63: 0 | AR63: 0 | AS63: 0
AF64: 0 | AG64: 0 | AH64: 0 | AI64: 0 | AJ64: 0 | AK64: 0 | AL64: 0 | AM64: 0 | AN64: 0 | AO64: 0 | AP64: 0 | AQ64: 0 | AR64: 0 | AS64: 0
AF65: 0 | AG65: 0 | AH65: 0 | AI65: 0 | AJ65: 0 | AK65: 0 | AL65: 0 | AM65: 0 | AN65: 0 | AO65: 0 | AP65: 0 | AQ65: 0 | AR65: 0 | AS65: 0
R66: =SUM(R6:R65) -> 182831.4449 | S66: 1517656395 | T66: 580688.3796 | U66: 407370.3282 | V66: 757351.4178 | W66: 609112587.4 | X66: 495167.1411 | Y66: =SUM(Y6:Y65) -> 0 | Z66: 0 | AA66: 443886.2866 | AB66: 0 | AC66: 0 | AD66: 0 | AF66: =SUM(AF6:AF65) -> 0 | AG66: 2313120.185 | AH66: 876.8394532 | AI66: 615.1291956 | AJ66: 1143.600641 | AK66: 733286.1171 | AL66: 717.9923546 | AM66: =SUM(AM6:AM65) -> 0 | AN66: 0 | AO66: 0 | AP66: 0 | AQ66: 0 | AR66: 0 | AS66: 3049759.864

Sheet 2021JSRevCont
B2: ="Tariff Approval - "&'Model update'!$C$3 -> Tariff Approval - Jemena | C2: ='Model update'!$C$5&"JSRevCont" -> 2021JSRevCont
B4: Jurisdictional Scheme Amounts (JSA)
B6: Year (t) | C6: ='Model update'!C5 -> 2021
B8: Table 1- Compliance with JSA Revenue Formula
B9: Revenue from Jurisdictional Scheme Amounts charges for year t | C9: =Prop2021JSTar!AS66 -> 3049759.864
B10: Total JSA related payments for year t | C10: =C17 -> 3050000
C11: =IF(C9="","",IF(C10>=C9,"JSA REVENUE FORMULA COMPLIANT","JSA REVENUE FORMULA BREACHED")) -> JSA REVENUE FORMULA COMPLIANT
B14: Table 3 - PFIT & TFIT charges for year t
B15: PFIT | C15: 3050000
B16: TFIT | C16: 0
B17: PFIT & TFIT charges | C17: =SUM(C15:C16) -> 3050000
